Workbook

Sheet Pollock
B2: Pollock: retained catch in all target fisheries - includes fish used to produce fish meal | O2: Pollock: retained catch in all target fisheries -excludes catch used to produce fish meal
C3: Allocation Area | F3: Total | G3: Retained Catch % | J3: Retained Catch (mt) | P3: Allocation Area | S3: Total | T3: Retained Catch
B4: Year | D4: ABC | E4: TAC | F4: Catch | G4: Trawl | H4: Trawl CV | I4: Trawl CP | J4: Trawl | K4: Trawl CV | L4: Trawl CP | O4: Year | Q4: ABC | R4: TAC | S4: Catch | T4: %Trawl | U4: % Trawl CV | V4: % Trawl CP
B5: 2003 | C5: 610 | D5: 16,788 | E5: 16,788 | F5: 16,512 | G5: 100.0% | H5: 98.1% | I5: 1.9% | J5: 16,512 | K5: 16,195 | L5: 317 | O5: 2003 | P5: 610 | Q5: 16,788 | R5: 16,788 | S5: 16,512 | T5: 100.0% | U5: 98.1% | V5: 1.9%
B6: 2004 | C6: 610 | D6: 22,930 | E6: 22,930 | F6: 23,508 | G6: 99.1% | H6: 99.0% | I6: 1.0% | J6: 23,288 | K6: 23,050 | L6: 238 | O6: 2004 | P6: 610 | Q6: 22,930 | R6: 22,930 | S6: 23,508 | T6: 98.9% | U6: 99.0% | V6: 1.0%
B7: 2005 | C7: 610 | D7: 30,380 | E7: 30,380 | F7: 30,927 | G7: 100.0% | H7: 99.5% | I7: 0.5% | J7: 30,931 | K7: 30,777 | L7: 154 | O7: 2005 | P7: 610 | Q7: 30,380 | R7: 30,380 | S7: 30,927 | T7: 99.8% | U7: 99.5% | V7: 0.5%
B8: 2006 | C8: 610 | D8: 28,918 | E8: 28,918 | F8: 24,619 | G8: 99.5% | H8: 99.5% | I8: 0.5% | J8: 24,504 | K8: 24,381 | L8: 123 | O8: 2006 | P8: 610 | Q8: 28,918 | R8: 28,918 | S8: 24,619 | T8: 98.4% | U8: 99.5% | V8: 0.5%
B9: 2007 | C9: 610 | D9: 25,012 | E9: 25,012 | F9: 17,731 | G9: 98.3% | H9: 99.2% | I9: 0.8% | J9: 17,438 | K9: 17,297 | L9: 141 | O9: 2007 | P9: 610 | Q9: 25,012 | R9: 25,012 | S9: 17,731 | T9: 95.2% | U9: 99.2% | V9: 0.8%
B10: 2008 | C10: 610 | D10: 17,602 | E10: 17,602 | F10: 17,260 | G10: 87.4% | H10: 98.4% | I10: 1.6% | J10: 15,081 | K10: 14,847 | L10: 234 | O10: 2008 | P10: 610 | Q10: 17,602 | R10: 17,602 | S10: 17,260 | T10: 85.1% | U10: 98.4% | V10: 1.6%
B11: 2009 | C11: 610 | D11: 15,249 | E11: 15,249 | F11: 15,079 | G11: 95.9% | H11: 95.3% | I11: 4.7% | J11: 14,468 | K11: 13,789 | L11: 678 | O11: 2009 | P11: 610 | Q11: 15,249 | R11: 15,249 | S11: 15,079 | T11: 93.9% | U11: 95.2% | V11: 4.8%
B12: 2010 | C12: 610 | D12: 26,256 | E12: 26,256 | F12: 26,051 | G12: 99.6% | H12: 99.4% | I12: 0.6% | J12: 25,942 | K12: 25,787 | L12: 155 | O12: 2010 | P12: 610 | Q12: 26,256 | R12: 26,256 | S12: 26,051 | T12: 94.0% | U12: 99.4% | V12: 0.6%
B13: 2011 | C13: 610 | D13: 27,031 | E13: 27,031 | F13: 20,594 | G13: 99.3% | H13: 99.2% | I13: 0.8% | J13: 20,447 | K13: 20,286 | L13: 162 | O13: 2011 | P13: 610 | Q13: 27,031 | R13: 27,031 | S13: 20,594 | T13: 97.7% | U13: 99.2% | V13: 0.8%
B14: 2012 | C14: 610 | D14: 30,270 | E14: 30,270 | F14: 27,893 | G14: 98.0% | H14: 99.3% | I14: 0.7% | J14: 27,348 | K14: 27,153 | L14: 195 | O14: 2012 | P14: 610 | Q14: 30,270 | R14: 30,270 | S14: 27,893 | T14: 97.5% | U14: 99.3% | V14: 0.7%
B15: 2013 | C15: 610 | D15: 28,072 | E15: 28,072 | F15: 7,711 | G15: 99.1% | H15: 97.6% | I15: 2.4% | J15: 7,642 | K15: 7,456 | L15: 186 | O15: 2013 | P15: 610 | Q15: 28,072 | R15: 28,072 | S15: 7,711 | T15: 98.1% | U15: 97.5% | V15: 2.5%
B16: 2014 | C16: 610 | D16: 30,884 | E16: 30,884 | F16: 13,364 | G16: 101.4% | H16: 96.3% | I16: 3.7% | J16: 13,545 | K16: 13,042 | L16: 502 | O16: 2014 | P16: 610 | Q16: 30,884 | R16: 30,884 | S16: 13,364 | T16: 89.5% | U16: 95.8% | V16: 4.2%
B17: 2008-2012 | C17: 610 | G17: 96.6% | H17: 98.6% | I17: 1.4% | O17: 2008-2012 | P17: 610 | T17: 94.2% | U17: 98.6% | V17: 1.4%
B18: 2007-2012 | C18: 610 | G18: 96.9% | H18: 98.7% | I18: 1.3% | O18: 2007-2012 | P18: 610 | T18: 94.3% | U18: 98.7% | V18: 1.3%
B19: 2003-2012 | C19: 610 | G19: 98.2% | H19: 98.9% | I19: 1.1% | O19: 2003-2012 | P19: 610 | T19: 96.5% | U19: 98.9% | V19: 1.1%
B20: 2003 | C20: 620 | D20: 19,685 | E20: 19,685 | F20: 19,642 | G20: 100.0% | H20: 99.8% | I20: 0.2% | J20: 19,642 | K20: 19,597 | L20: 45 | O20: 2003 | P20: 620 | Q20: 19,685 | R20: 19,685 | S20: 19,642 | T20: 96.8% | U20: 99.8% | V20: 0.2%
B21: 2004 | C21: 620 | D21: 26,490 | E21: 26,490 | F21: 24,659 | G21: 99.9% | H21: 100.0% | I21: 0.0% | J21: 24,629 | K21: 24,620 | L21: 9 | O21: 2004 | P21: 620 | Q21: 26,490 | R21: 26,490 | S21: 24,659 | T21: 94.8% | U21: 100.0% | V21: 0.0%
B22: 2005 | C22: 620 | D22: 34,404 | E22: 34,404 | F22: 28,040 | G22: 97.8% | H22: 99.9% | I22: 0.1% | J22: 27,434 | K22: 27,413 | L22: 21 | O22: 2005 | P22: 620 | Q22: 34,404 | R22: 34,404 | S22: 28,040 | T22: 95.4% | U22: 99.9% | V22: 0.1%
B23: 2006 | C23: 620 | D23: 30,492 | E23: 30,492 | F23: 27,159 | G23: 96.0% | H23: 99.9% | I23: 0.1% | J23: 26,073 | K23: 26,044 | L23: 29 | O23: 2006 | P23: 620 | Q23: 30,492 | R23: 30,492 | S23: 27,159 | T23: 90.8% | U23: 99.9% | V23: 0.1%
B24: 2007 | C24: 620 | D24: 20,890 | E24: 20,890 | F24: 19,363 | G24: 97.2% | H24: 99.4% | I24: 0.6% | J24: 18,830 | K24: 18,716 | L24: 113 | O24: 2007 | P24: 620 | Q24: 20,890 | R24: 20,890 | S24: 19,363 | T24: 93.2% | U24: 99.4% | V24: 0.6%
B25: 2008 | C25: 620 | D25: 19,181 | E25: 19,181 | F25: 19,070 | G25: 98.0% | H25: 99.5% | I25: 0.5% | J25: 18,681 | K25: 18,584 | L25: 97 | O25: 2008 | P25: 620 | Q25: 19,181 | R25: 19,181 | S25: 19,070 | T25: 90.7% | U25: 99.4% | V25: 0.6%
B26: 2009 | C26: 620 | D26: 14,098 | E26: 14,098 | F26: 14,000 | G26: 96.8% | H26: 97.8% | I26: 2.2% | J26: 13,556 | K26: 13,251 | L26: 305 | O26: 2009 | P26: 620 | Q26: 14,098 | R26: 14,098 | S26: 14,000 | T26: 85.6% | U26: 97.5% | V26: 2.5%
B27: 2010 | C27: 620 | D27: 28,095 | E27: 28,095 | F27: 28,250 | G27: 98.9% | H27: 98.9% | I27: 1.1% | J27: 27,926 | K27: 27,614 | L27: 313 | O27: 2010 | P27: 620 | Q27: 28,095 | R27: 28,095 | S27: 28,250 | T27: 93.1% | U27: 98.8% | V27: 1.2%
B28: 2011 | C28: 620 | D28: 37,365 | E28: 37,365 | F28: 37,223 | G28: 96.9% | H28: 99.0% | I28: 1.0% | J28: 36,077 | K28: 35,724 | L28: 352 | O28: 2011 | P28: 620 | Q28: 37,365 | R28: 37,365 | S28: 37,223 | T28: 93.8% | U28: 99.0% | V28: 1.0%
B29: 2012 | C29: 620 | D29: 45,808 | E29: 45,808 | F29: 45,095 | G29: 98.8% | H29: 99.1% | I29: 0.9% | J29: 44,561 | K29: 44,158 | L29: 403 | O29: 2012 | P29: 620 | Q29: 45,808 | R29: 45,808 | S29: 45,095 | T29: 97.4% | U29: 99.1% | V29: 0.9%
B30: 2013 | C30: 620 | D30: 51,443 | E30: 51,443 | F30: 53,112 | G30: 100.0% | H30: 99.4% | I30: 0.6% | J30: 53,112 | K30: 52,801 | L30: 311 | O30: 2013 | P30: 620 | Q30: 51,443 | R30: 51,443 | S30: 53,112 | T30: 96.7% | U30: 99.4% | V30: 0.6%
B31: 2014 | C31: 620 | D31: 84,274 | E31: 84,274 | F31: 83,082 | G31: 101.0% | H31: 99.4% | I31: 0.6% | J31: 83,912 | K31: 83,440 | L31: 472 | O31: 2014 | P31: 620 | Q31: 84,274 | R31: 84,274 | S31: 83,082 | T31: 98.0% | U31: 99.4% | V31: 0.6%
B32: 2008-2012 | C32: 620 | G32: 98.0% | H32: 99.0% | I32: 1.0% | O32: 2008-2012 | P32: 620 | T32: 93.6% | U32: 98.9% | V32: 1.1%
B33: 2007-2012 | C33: 620 | G33: 97.9% | H33: 99.0% | I33: 1.0% | O33: 2007-2012 | P33: 620 | T33: 93.5% | U33: 99.0% | V33: 1.0%
B34: 2003-2012 | C34: 620 | G34: 98.2% | H34: 99.3% | I34: 0.7% | O34: 2003-2012 | P34: 620 | T34: 93.8% | U34: 99.3% | V34: 0.7%
B35: 2003 | C35: 630 | D35: 10,339 | E35: 10,339 | F35: 12,435 | G35: 95.9% | H35: 97.9% | I35: 2.1% | J35: 11,925 | K35: 11,677 | L35: 248 | O35: 2003 | P35: 630 | Q35: 10,339 | R35: 10,339 | S35: 12,435 | T35: 93.0% | U35: 97.9% | V35: 2.1%
B36: 2004 | C36: 630 | D36: 14,040 | E36: 14,040 | F36: 14,324 | G36: 99.1% | H36: 99.3% | I36: 0.7% | J36: 14,201 | K36: 14,103 | L36: 98 | O36: 2004 | P36: 630 | Q36: 14,040 | R36: 14,040 | S36: 14,324 | T36: 97.6% | U36: 99.3% | V36: 0.7%
B37: 2005 | C37: 630 | D37: 18,718 | E37: 18,718 | F37: 19,336 | G37: 97.0% | H37: 99.3% | I37: 0.7% | J37: 18,758 | K37: 18,621 | L37: 137 | O37: 2005 | P37: 630 | Q37: 18,718 | R37: 18,718 | S37: 19,336 | T37: 95.3% | U37: 99.3% | V37: 0.7%
B38: 2006 | C38: 630 | D38: 18,448 | E38: 18,448 | F38: 17,078 | G38: 97.3% | H38: 99.2% | I38: 0.8% | J38: 16,616 | K38: 16,485 | L38: 131 | O38: 2006 | P38: 630 | Q38: 18,448 | R38: 18,448 | S38: 17,078 | T38: 91.8% | U38: 99.2% | V38: 0.8%
B39: 2007 | C39: 630 | D39: 14,850 | E39: 14,850 | F39: 14,477 | G39: 94.0% | H39: 99.1% | I39: 0.9% | J39: 13,615 | K39: 13,489 | L39: 126 | O39: 2007 | P39: 630 | Q39: 14,850 | R39: 14,850 | S39: 14,477 | T39: 85.6% | U39: 99.0% | V39: 1.0%
B40: 2008 | C40: 630 | D40: 13,640 | E40: 13,640 | F40: 14,456 | G40: 91.3% | H40: 99.0% | I40: 1.0% | J40: 13,193 | K40: 13,059 | L40: 135 | O40: 2008 | P40: 630 | Q40: 13,640 | R40: 13,640 | S40: 14,456 | T40: 83.9% | U40: 98.9% | V40: 1.1%
B41: 2009 | C41: 630 | D41: 11,058 | E41: 11,058 | F41: 12,469 | G41: 86.8% | H41: 96.6% | I41: 3.4% | J41: 10,824 | K41: 10,454 | L41: 370 | O41: 2009 | P41: 630 | Q41: 11,058 | R41: 11,058 | S41: 12,469 | T41: 80.4% | U41: 96.3% | V41: 3.7%
B42: 2010 | C42: 630 | D42: 19,118 | E42: 19,118 | F42: 19,134 | G42: 95.5% | H42: 97.4% | I42: 2.6% | J42: 18,264 | K42: 17,789 | L42: 475 | O42: 2010 | P42: 630 | Q42: 19,118 | R42: 19,118 | S42: 19,134 | T42: 93.6% | U42: 97.3% | V42: 2.7%
B43: 2011 | C43: 630 | D43: 20,235 | E43: 20,235 | F43: 19,704 | G43: 96.0% | H43: 97.3% | I43: 2.7% | J43: 18,925 | K43: 18,413 | L43: 512 | O43: 2011 | P43: 630 | Q43: 20,235 | R43: 20,235 | S43: 19,704 | T43: 94.7% | U43: 97.3% | V43: 2.7%
B44: 2012 | C44: 630 | D44: 26,348 | E44: 26,348 | F44: 25,987 | G44: 96.1% | H44: 98.1% | I44: 1.9% | J44: 24,964 | K44: 24,499 | L44: 465 | O44: 2012 | P44: 630 | Q44: 26,348 | R44: 26,348 | S44: 25,987 | T44: 95.2% | U44: 98.1% | V44: 1.9%
B45: 2013 | C45: 630 | D45: 27,372 | E45: 27,372 | F45: 29,888 | G45: 94.4% | H45: 97.7% | I45: 2.3% | J45: 28,220 | K45: 27,583 | L45: 637 | O45: 2013 | P45: 630 | Q45: 27,372 | R45: 27,372 | S45: 29,888 | T45: 92.0% | U45: 97.7% | V45: 2.3%
B46: 2014 | C46: 630 | D46: 42,452 | E46: 42,452 | F46: 42,757 | G46: 101.8% | H46: 98.4% | I46: 1.6% | J46: 43,543 | K46: 42,862 | L46: 680 | O46: 2014 | P46: 630 | Q46: 42,452 | R46: 42,452 | S46: 42,757 | T46: 97.3% | U46: 98.4% | V46: 1.6%
B47: 2008-2012 | C47: 630 | G47: 93.9% | H47: 97.7% | I47: 2.3% | O47: 2008-2012 | P47: 630 | T47: 91.0% | U47: 97.7% | V47: 2.3%
B48: 2007-2012 | C48: 630 | G48: 93.9% | H48: 97.9% | I48: 2.1% | O48: 2007-2012 | P48: 630 | T48: 90.2% | U48: 97.8% | V48: 2.2%
B49: 2003-2012 | C49: 630 | G49: 95.2% | H49: 98.3% | I49: 1.7% | O49: 2003-2012 | P49: 630 | T49: 91.8% | U49: 98.3% | V49: 1.7%
B50: 2003 | C50: 640 | D50: Not Defined (2003-2006) | O50: 2003 | P50: 640 | Q50: Not Defined (2003-2006)
B51: 2004 | C51: 640 | O51: 2004 | P51: 640
B52: 2005 | C52: 640 | O52: 2005 | P52: 640
B53: 2006 | C53: 640 | O53: 2006 | P53: 640
B54: 2007 | C54: 640 | D54: 1,398 | E54: 1,398 | F54: 83 | G54: 97.1% | H54: 99.2% | I54: 0.8% | J54: 80 | K54: 80 | L54: 1 | O54: 2007 | P54: 640 | Q54: 1,398 | R54: 1,398 | S54: 87 | T54: 95.5% | U54: 99.2% | V54: 0.8%
B55: 2008 | C55: 640 | D55: 1,517 | E55: 1,517 | F55: 1,145 | G55: 99.4% | H55: 100.0% | I55: 0.0% | J55: 1,139 | K55: 1,139 | L55: 0 | O55: 2008 | P55: 640 | Q55: 1,517 | R55: 1,517 | S55: 1,161 | T55: 98.6% | U55: 100.0% | V55: 0.0%
B56: 2009 | C56: 640 | D56: 1,215 | E56: 1,215 | F56: 1,183 | G56: 97.4% | H56: 96.4% | I56: 3.6% | J56: 1,153 | K56: 1,111 | L56: 41 | O56: 2009 | P56: 640 | Q56: 1,215 | R56: 1,215 | S56: 1,222 | T56: 96.8% | U56: 96.4% | V56: 3.6%
B57: 2010 | C57: 640 | D57: 2,031 | E57: 2,031 | F57: 1,589 | G57: 99.2% | H57: 98.5% | I57: 1.5% | J57: 1,577 | K57: 1,553 | L57: 24 | O57: 2010 | P57: 640 | Q57: 2,031 | R57: 2,031 | S57: 1,637 | T57: 97.1% | U57: 98.5% | V57: 1.5%
B58: 2011 | C58: 640 | D58: 2,339 | E58: 2,339 | F58: 2,248 | G58: 99.9% | H58: 99.7% | I58: 0.3% | J58: 2,245 | K58: 2,239 | L58: 6 | O58: 2011 | P58: 640 | Q58: 2,339 | R58: 2,339 | S58: 2,271 | T58: 99.0% | U58: 99.7% | V58: 0.3%
B59: 2012 | C59: 640 | D59: 3,244 | E59: 3,244 | F59: 2,346 | G59: 98.7% | H59: 97.7% | I59: 2.3% | J59: 2,316 | K59: 2,262 | L59: 54 | O59: 2012 | P59: 640 | Q59: 3,244 | R59: 3,244 | S59: 2,381 | T59: 98.5% | U59: 97.7% | V59: 2.3%
B60: 2013 | C60: 640 | D60: 3,385 | E60: 3,385 | F60: 2,908 | G60: 99.6% | H60: 99.3% | I60: 0.7% | J60: 2,895 | K60: 2,876 | L60: 19 | O60: 2013 | P60: 640 | Q60: 3,385 | R60: 3,385 | S60: 2,940 | T60: 98.9% | U60: 99.3% | V60: 0.7%
B61: 2014 | C61: 640 | D61: 4,741 | E61: 4,741 | F61: 1,056 | G61: 100.4% | H61: 99.2% | I61: 0.8% | J61: 1,060 | K61: 1,051 | L61: 9 | O61: 2014 | P61: 640 | Q61: 4,741 | R61: 4,741 | S61: 1,056 | T61: 99.5% | U61: 99.2% | V61: 0.8%
B62: 2008-2012 | C62: 640 | G62: 99.0% | H62: 98.5% | I62: 1.5% | O62: 2008-2012 | P62: 640 | T62: 98.2% | U62: 98.5% | V62: 1.5%
B63: 2007-2012 | C63: 640 | G63: 99.0% | H63: 98.5% | I63: 1.5% | O63: 2007-2012 | P63: 640 | T63: 98.1% | U63: 98.5% | V63: 1.5%
B64: 2003-2012 | C64: 640 | G64: 99.0% | H64: 98.5% | I64: 1.5% | O64: 2003-2012 | P64: 640 | T64: 98.1% | U64: 98.5% | V64: 1.5%
B66: The aggregate pollock ABC for the Western, Central, and West Yakutat Regulatory Areas is apportioned among four statistical areas after deducting 2.5 percent of the ABC for the State’s pollock GHL fishery.

Sheet Rockfish Program Allocations
B3: CG Rockfish Program cooperative allocation of primary species
C4: TAC (2015) | D4: ICA (based on recent average incidental catches on other fisheries | E4: Allocation to entery level longline fishery | F4: Cooperative allocations = TAC-ICA-entry level fishery
B5: Pacific Ocean Perch | C5: 15,873 | D5: 2,000 | E5: 5 | F5: =C5-D5-E5 -> 13,868
B6: Northern Rockfish | C6: 3,772 | D6: 200 | E6: 5 | F6: =C6-D6-E6 -> 3,567
B7: Dusky | C7: 3,336 | D7: 250 | E7: 30 | F7: =C7-D7-E7 -> 3,056
B10: CG Rockfish Program allocation of secondary species
D11: CV Cooperatives | F11: C/P Cooperatives
C12: TAC (2015) | D12: % of TAC | E12: Allocation (mt) | F12: % of TAC | G12: Allocation (mt)
B13: Pacific cod | C13: 45,990 | D13: 3.81% | E13: =D13*C13 -> 1,752 | F13: 0.00% | G13: =F13*C13 -> 0
B14: Sablefish | C14: 4,658 | D14: 6.78% | E14: =D14*C14 -> 316 | F14: 3.51% | G14: =F14*C14 -> 163
B15: Shortraker rockfish | C15: 397 | D15: 0.00% | E15: =D15*C15 -> 0 | F15: 40.00% | G15: =F15*C15 -> 159
B16: Rougheye rockfish | C16: 632 | D16: 0.00% | E16: =D16*C16 -> 0 | F16: 58.87% | G16: =F16*C16 -> 372
B17: Thornyhead rockfish | C17: 875 | D17: 7.84% | E17: =D17*C17 -> 69 | F17: 26.50% | G17: =F17*C17 -> 232

Sheet Pacific Cod
B3: The Council's motion indicates that Pacific cod allocations would be based on Amendment 83 allocations. Table 5 of the GOA final specifications (http://alaskafisheries.noaa.gov/sustainablefisheries/specs15_16/goatable5.pdf) defines the CG and WG allocations (Am 83) proposed for this program. WG CVs would be allocated 27.70% of the WG non-jig Pacific cod TAC for the A season and 10.70% of the WG non-jig allocation. CG CVs would be allocated 21.14% of the non-jig CG TAC. CG CVs would be allocated 20.45% of the non-jig CG TAC (this accounts for the 3.81% of the annual CG TAC being allocated to the CG Rockfish Program).
B4: Percentage of the annual area Pacific cod TAC allocated to trawl CVs and C/Ps
B5: Am 83 | C5: A season | E5: B season | G5: Total
C6: CV | D6: C/P | E6: CV | F6: C/P | G6: CV | H6: C/P | I6: Total
B7: WG | C7: 27.70% | D7: 0.90% | E7: 10.70% | F7: 1.50% | G7: =E7+C7 -> 38.40% | H7: =F7+D7 -> 2.40% | I7: =H7+G7 -> 40.80%
B8: CG | C8: 21.14% | D8: 2.00% | E8: 20.45%* | F8: 2.19% | G8: 41.59% | H8: 4.19% | I8: 45.78%
B9: * Accounts for 3.81% of the annual CG TAC being removed and allocated to the CG Rockfish Program

Sheet Sablefish
B2: Sablefish: retained catch in all target fisheries- includes fish used to produce fish meal | O2: Sablefish: retained catch in all target fisheries - excludes catch used to produce fish meal
C3: Allocation Area | F3: Total | G3: Retained Catch % | J3: Retained Catch (mt) | P3: Allocation Area | S3: Total | T3: Retained Catch %
B4: Year | D4: ABC | E4: TAC | F4: Catch | G4: Trawl | H4: Trawl CV | I4: Trawl CP | J4: Trawl | K4: Trawl CV | L4: Trawl CP | O4: Year | Q4: ABC | R4: TAC | S4: Catch | T4: Trawl | U4: Trawl CV | V4: Trawl CP
B5: 2003 | C5: WG | D5: 2,570 | E5: 2,570 | F5: 2,119 | G5: 4.5% | H5: 0.0% | I5: 100.0% | J5: 96 | K5: 0 | L5: 96 | O5: 2003 | P5: WG | Q5: 2,570 | R5: 2,570 | S5: 2,119 | T5: 4.5% | U5: 0.0% | V5: 100.0%
B6: 2004 | C6: WG | D6: 2,930 | E6: 2,930 | F6: 2,171 | G6: 5.8% | H6: 0.0% | I6: 100.0% | J6: 126 | K6: 0 | L6: 126 | O6: 2004 | P6: WG | Q6: 2,930 | R6: 2,930 | S6: 2,171 | T6: 5.8% | U6: 0.0% | V6: 100.0%
B7: 2005 | C7: WG | D7: 2,540 | E7: 2,540 | F7: 1,929 | G7: 3.6% | H7: 0.1% | I7: 99.9% | J7: 70 | K7: 0 | L7: 69 | O7: 2005 | P7: WG | Q7: 2,540 | R7: 2,540 | S7: 1,929 | T7: 3.6% | U7: 0.1% | V7: 99.9%
B8: 2006 | C8: WG | D8: 2,670 | E8: 2,670 | F8: 2,150 | G8: 2.4% | H8: 0.9% | I8: 99.1% | J8: 51 | K8: 0 | L8: 51 | O8: 2006 | P8: WG | Q8: 2,670 | R8: 2,670 | S8: 2,150 | T8: 2.4% | U8: 0.9% | V8: 99.1%
B9: 2007 | C9: WG | D9: 2,470 | E9: 2,470 | F9: 2,134 | G9: 8.9% | H9: 0.1% | I9: 99.9% | J9: 190 | K9: 0 | L9: 190 | O9: 2007 | P9: WG | Q9: 2,470 | R9: 2,470 | S9: 2,134 | T9: 8.9% | U9: 0.0% | V9: 100.0%
B10: 2008 | C10: WG | D10: 1,890 | E10: 1,890 | F10: 1,669 | G10: 7.6% | H10: 1.6% | I10: 98.4% | J10: 127 | K10: 2 | L10: 125 | O10: 2008 | P10: WG | Q10: 1,890 | R10: 1,890 | S10: 1,669 | T10: 7.6% | U10: 1.5% | V10: 98.5%
B11: 2009 | C11: WG | D11: 1,640 | E11: 1,640 | F11: 1,421 | G11: 6.3% | H11: 0.0% | I11: 100.0% | J11: 89 | K11: 0 | L11: 89 | O11: 2009 | P11: WG | Q11: 1,640 | R11: 1,640 | S11: 1,421 | T11: 6.3% | U11: 0.0% | V11: 100.0%
B12: 2010 | C12: WG | D12: 1,660 | E12: 1,660 | F12: 1,352 | G12: 1.9% | H12: 0.2% | I12: 99.8% | J12: 26 | K12: 0 | L12: 26 | O12: 2010 | P12: WG | Q12: 1,660 | R12: 1,660 | S12: 1,352 | T12: 1.9% | U12: 0.1% | V12: 99.9%
B13: 2011 | C13: WG | D13: 1,620 | E13: 1,620 | F13: 1,396 | G13: 3.8% | H13: 0.1% | I13: 99.9% | J13: 53 | K13: 0 | L13: 53 | O13: 2011 | P13: WG | Q13: 1,620 | R13: 1,620 | S13: 1,396 | T13: 3.8% | U13: 0.0% | V13: 100.0%
B14: 2012 | C14: WG | D14: 1,780 | E14: 1,780 | F14: 1,397 | G14: 4.1% | H14: 0.0% | I14: 100.0% | J14: 57 | K14: 0 | L14: 57 | O14: 2012 | P14: WG | Q14: 1,780 | R14: 1,780 | S14: 1,397 | T14: 4.1% | U14: 0.0% | V14: 100.0%
B15: 2013 | C15: WG | D15: 1,750 | E15: 1,750 | F15: 1,384 | G15: 0.9% | H15: 0.0% | I15: 100.0% | J15: 13 | K15: 0 | L15: 13 | O15: 2013 | P15: WG | Q15: 1,750 | R15: 1,750 | S15: 1,384 | T15: 0.9% | U15: 0.0% | V15: 100.0%
B16: 2014 | C16: WG | D16: 1,480 | E16: 1,480 | F16: 1,200 | G16: 5.0% | H16: 0.0% | I16: 100.0% | J16: 60 | K16: 0 | L16: 60 | O16: 2014 | P16: WG | Q16: 1,480 | R16: 1,480 | S16: 1,200 | T16: 5.0% | U16: 0.0% | V16: 100.0%
B17: 2008-2012 | C17: WG | G17: 4.9% | H17: 0.6% | I17: 99.4% | O17: 2008-2012 | P17: WG | T17: 4.9% | U17: 0.6% | V17: 99.4%
B18: 2007-2012 | C18: WG | G18: 5.8% | H18: 0.4% | I18: 99.6% | O18: 2007-2012 | P18: WG | T18: 5.8% | U18: 0.4% | V18: 99.6%
B19: 2003-2012 | C19: WG | G19: 5.0% | H19: 0.3% | I19: 99.7% | O19: 2003-2012 | P19: WG | T19: 5.0% | U19: 0.3% | V19: 99.7%
B20: 2003 | C20: CG | D20: 6,440 | E20: 6,440 | F20: 7,088 | G20: 13.4% | H20: 62.7% | I20: 37.3% | J20: 934 | K20: 579 | L20: 355 | O20: 2003 | P20: CG | Q20: 6,440 | R20: 6,440 | S20: 7,088 | T20: 13.2% | U20: 62.0% | V20: 38.0%
B21: 2004 | C21: CG | D21: 7,300 | E21: 7,300 | F21: 7,456 | G21: 11.8% | H21: 66.3% | I21: 33.7% | J21: 873 | K21: 576 | L21: 296 | O21: 2004 | P21: CG | Q21: 7,300 | R21: 7,300 | S21: 7,456 | T21: 11.7% | U21: 66.1% | V21: 33.9%
B22: 2005 | C22: CG | D22: 7,250 | E22: 7,250 | F22: 6,701 | G22: 13.1% | H22: 54.0% | I22: 46.0% | J22: 874 | K22: 472 | L22: 403 | O22: 2005 | P22: CG | Q22: 7,250 | R22: 7,250 | S22: 6,701 | T22: 13.0% | U22: 53.9% | V22: 46.1%
B23: 2006 | C23: CG | D23: 6,370 | E23: 6,370 | F23: 5,965 | G23: 11.2% | H23: 62.1% | I23: 37.9% | J23: 666 | K23: 413 | L23: 253 | O23: 2006 | P23: CG | Q23: 6,370 | R23: 6,370 | S23: 5,965 | T23: 11.2% | U23: 62.0% | V23: 38.0%
B24: 2007 | C24: CG | D24: 6,190 | E24: 6,190 | F24: 6,021 | G24: 11.1% | H24: 72.9% | I24: 27.1% | J24: 668 | K24: 487 | L24: 181 | O24: 2007 | P24: CG | Q24: 6,190 | R24: 6,190 | S24: 6,021 | T24: 11.1% | U24: 72.9% | V24: 27.1%
B25: 2008 | C25: CG | D25: 5,500 | E25: 5,500 | F25: 5,544 | G25: 11.1% | H25: 68.7% | I25: 31.3% | J25: 613 | K25: 420 | L25: 192 | O25: 2008 | P25: CG | Q25: 5,500 | R25: 5,500 | S25: 5,544 | T25: 11.0% | U25: 68.6% | V25: 31.4%
B26: 2009 | C26: CG | D26: 4,990 | E26: 4,990 | F26: 5,000 | G26: 12.5% | H26: 72.7% | I26: 27.3% | J26: 621 | K26: 451 | L26: 170 | O26: 2009 | P26: CG | Q26: 4,990 | R26: 4,990 | S26: 5,000 | T26: 12.4% | U26: 72.6% | V26: 27.4%
B27: 2010 | C27: CG | D27: 4,510 | E27: 4,510 | F27: 4,514 | G27: 15.2% | H27: 63.7% | I27: 36.3% | J27: 685 | K27: 436 | L27: 249 | O27: 2010 | P27: CG | Q27: 4,510 | R27: 4,510 | S27: 4,514 | T27: 15.2% | U27: 63.6% | V27: 36.4%
B28: 2011 | C28: CG | D28: 4,740 | E28: 4,740 | F28: 4,891 | G28: 15.7% | H28: 66.9% | I28: 33.1% | J28: 768 | K28: 513 | L28: 254 | O28: 2011 | P28: CG | Q28: 4,740 | R28: 4,740 | S28: 4,891 | T28: 15.7% | U28: 66.9% | V28: 33.1%
B29: 2012 | C29: CG | D29: 5,760 | E29: 5,760 | F29: 5,327 | G29: 12.6% | H29: 61.1% | I29: 38.9% | J29: 673 | K29: 411 | L29: 262 | O29: 2012 | P29: CG | Q29: 5,760 | R29: 5,760 | S29: 5,327 | T29: 12.6% | U29: 61.1% | V29: 38.9%
B30: 2013 | C30: CG | D30: 5,540 | E30: 5,540 | F30: 5,207 | G30: 12.4% | H30: 62.4% | I30: 37.6% | J30: 648 | K30: 404 | L30: 244 | O30: 2013 | P30: CG | Q30: 5,540 | R30: 5,540 | S30: 5,207 | T30: 12.4% | U30: 62.4% | V30: 37.6%
B31: 2014 | C31: CG | D31: 4,681 | E31: 4,681 | F31: 4,729 | G31: 20.6% | H31: 75.4% | I31: 24.6% | J31: 972 | K31: 733 | L31: 239 | O31: 2014 | P31: CG | Q31: 4,681 | R31: 4,681 | S31: 4,729 | T31: 20.6% | U31: 75.4% | V31: 24.6%
B32: 2008-2012 | C32: CG | G32: 13.3% | H32: 66.5% | I32: 33.5% | O32: 2008-2012 | P32: CG | T32: 13.3% | U32: 66.4% | V32: 33.6%
B33: 2007-2012 | C33: CG | G33: 12.9% | H33: 67.6% | I33: 32.4% | O33: 2007-2012 | P33: CG | T33: 12.9% | U33: 67.5% | V33: 32.5%
B34: 2003-2012 | C34: CG | G34: 12.6% | H34: 64.5% | I34: 35.5% | O34: 2003-2012 | P34: CG | T34: 12.6% | U34: 64.3% | V34: 35.7%
B35: 2003 | C35: WY | D35: 2,320 | E35: 2,320 | F35: 1,823 | G35: 7.1% | H35: 0.0% | I35: 100.0% | J35: 130 | K35: 0 | L35: 130 | O35: 2003 | P35: WY | Q35: 2,320 | R35: 2,320 | S35: 1,823 | T35: 7.1% | U35: 0.0% | V35: 100.0%
B36: 2004 | C36: WY | D36: 2,550 | E36: 2,550 | F36: 2,250 | G36: 6.0% | H36: 2.8% | I36: 97.2% | J36: 134 | K36: 4 | L36: 130 | O36: 2004 | P36: WY | Q36: 2,550 | R36: 2,550 | S36: 2,250 | T36: 6.0% | U36: 2.8% | V36: 97.2%
B37: 2005 | C37: WY | D37: 2,580 | E37: 2,580 | F37: 1,824 | G37: 3.3% | H37: 0.0% | I37: 100.0% | J37: 60 | K37: 0 | L37: 60 | O37: 2005 | P37: WY | Q37: 2,580 | R37: 2,580 | S37: 1,824 | T37: 3.3% | U37: 0.0% | V37: 100.0%
B38: 2006 | C38: WY | D38: 2,280 | E38: 2,280 | F38: 1,890 | G38: 6.1% | H38: 12.2% | I38: 87.8% | J38: 116 | K38: 14 | L38: 102 | O38: 2006 | P38: WY | Q38: 2,280 | R38: 2,280 | S38: 1,890 | T38: 6.1% | U38: 12.2% | V38: 87.8%
B39: 2007 | C39: WY | D39: 2,280 | E39: 2,280 | F39: 2,145 | G39: 3.2% | H39: 1.4% | I39: 98.6% | J39: 68 | K39: 1 | L39: 67 | O39: 2007 | P39: WY | Q39: 2,280 | R39: 2,280 | S39: 2,145 | T39: 3.2% | U39: 1.4% | V39: 98.6%
B40: 2008 | C40: WY | D40: 1,950 | E40: 1,950 | F40: 2,058 | G40: 2.4% | H40: 4.9% | I40: 95.1% | J40: 50 | K40: 2 | L40: 48 | O40: 2008 | P40: WY | Q40: 1,950 | R40: 1,950 | S40: 2,058 | T40: 2.4% | U40: 4.9% | V40: 95.1%
B41: 2009 | C41: WY | D41: 1,784 | E41: 1,784 | F41: 1,824 | G41: 5.1% | H41: 0.0% | I41: 100.0% | J41: 94 | K41: 0 | L41: 94 | O41: 2009 | P41: WY | Q41: 1,784 | R41: 1,784 | S41: 1,824 | T41: 5.1% | U41: 0.0% | V41: 100.0%
B42: 2010 | C42: WY | D42: 1,620 | E42: 1,620 | F42: 1,579 | G42: 8.9% | H42: 14.4% | I42: 85.6% | J42: 141 | K42: 20 | L42: 121 | O42: 2010 | P42: WY | Q42: 1,620 | R42: 1,620 | S42: 1,579 | T42: 8.9% | U42: 14.4% | V42: 85.6%
B43: 2011 | C43: WY | D43: 1,990 | E43: 1,990 | F43: 1,895 | G43: 5.1% | H43: 8.4% | I43: 91.6% | J43: 96 | K43: 8 | L43: 88 | O43: 2011 | P43: WY | Q43: 1,990 | R43: 1,990 | S43: 1,895 | T43: 5.1% | U43: 8.4% | V43: 91.6%
B44: 2012 | C44: WY | D44: 2,247 | E44: 2,247 | F44: 2,033 | G44: 3.2% | H44: 2.1% | I44: 97.9% | J44: 66 | K44: 1 | L44: 64 | O44: 2012 | P44: WY | Q44: 2,247 | R44: 2,247 | S44: 2,033 | T44: 3.2% | U44: 2.1% | V44: 97.9%
B45: 2013 | C45: WY | D45: 2,030 | E45: 2,030 | F45: 2,106 | G45: 6.6% | H45: 0.6% | I45: 99.4% | J45: 138 | K45: 1 | L45: 137 | O45: 2013 | P45: WY | Q45: 2,030 | R45: 2,030 | S45: 2,106 | T45: 6.6% | U45: 0.6% | V45: 99.4%
B46: 2014 | C46: WY | D46: 1,716 | E46: 1,716 | F46: 1,669 | G46: 15.5% | H46: 47.9% | I46: 52.1% | J46: 258 | K46: 124 | L46: 135 | O46: 2014 | P46: WY | Q46: 1,716 | R46: 1,716 | S46: 1,669 | T46: 15.5% | U46: 47.9% | V46: 52.1%
B47: 2008-2012 | C47: WY | G47: 4.8% | H47: 66.4% | I47: 33.6% | O47: 2008-2012 | P47: WY | T47: 4.8% | U47: 7.2% | V47: 92.8%
B48: 2007-2012 | C48: WY | G48: 4.5% | H48: 67.3% | I48: 32.7% | O48: 2007-2012 | P48: WY | T48: 4.5% | U48: 6.4% | V48: 93.6%
B49: 2003-2012 | C49: WY | G49: 5.1% | H49: 64.7% | I49: 35.3% | O49: 2003-2012 | P49: WY | T49: 5.1% | U49: 4.7% | V49: 95.3%

Sheet Arrowtooth
B2: Arrowtooth: retained catch in all target fisheries- includes fish used to produce fish meal | O2: Arrowtooth: retained catch in all target fisheries - excludes catch used to produce fish meal
C3: Allocation Area | F3: Total | G3: Retained Catch % | J3: Retained Catch (mt) | P3: Allocation Area | S3: Total | T3: Retained Catch %
B4: Year | D4: ABC | E4: TAC | F4: Catch | G4: Trawl | H4: Trawl CV | I4: Trawl CP | J4: Trawl | K4: Trawl CV | L4: Trawl CP | O4: Year | Q4: ABC | R4: TAC | S4: Catch | T4: Trawl | U4: Trawl CV | V4: Trawl CP
B5: 2003 | C5: WG | D5: 17,990 | E5: 8,000 | F5: 8,211 | G5: 62.9% | H5: 62.7% | I5: 37.3% | J5: 5,162 | K5: 3,238 | L5: 1,925 | O5: 2003 | P5: WG | Q5: 17,990 | R5: 8,000 | S5: 8,211 | T5: 62.0% | U5: 0.0% | V5: 100.0%
B6: 2004 | C6: WG | D6: 23,590 | E6: 8,000 | F6: 2,877 | G6: 29.0% | H6: 66.3% | I6: 33.7% | J6: 835 | K6: 553 | L6: 282 | O6: 2004 | P6: WG | Q6: 23,590 | R6: 8,000 | S6: 2,877 | T6: 26.7% | U6: 0.0% | V6: 100.0%
B7: 2005 | C7: WG | D7: 26,250 | E7: 8,000 | F7: 2,545 | G7: 48.2% | H7: 54.0% | I7: 46.0% | J7: 1,227 | K7: 663 | L7: 564 | O7: 2005 | P7: WG | Q7: 26,250 | R7: 8,000 | S7: 2,545 | T7: 37.5% | U7: 0.9% | V7: 99.1%
B8: 2006 | C8: WG | D8: 20,154 | E8: 8,000 | F8: 2,043 | G8: 51.9% | H8: 62.1% | I8: 37.9% | J8: 1,061 | K8: 659 | L8: 402 | O8: 2006 | P8: WG | Q8: 20,154 | R8: 8,000 | S8: 2,043 | T8: 34.9% | U8: 0.4% | V8: 99.6%
B9: 2007 | C9: WG | D9: 20,852 | E9: 8,000 | F9: 3,149 | G9: 53.1% | H9: 72.9% | I9: 27.1% | J9: 1,672 | K9: 1,220 | L9: 452 | O9: 2007 | P9: WG | Q9: 20,852 | R9: 8,000 | S9: 3,149 | T9: 41.7% | U9: 0.2% | V9: 99.8%
B10: 2008 | C10: WG | D10: 30,817 | E10: 8,000 | F10: 3,192 | G10: 55.7% | H10: 68.7% | I10: 31.3% | J10: 1,778 | K10: 1,221 | L10: 557 | O10: 2008 | P10: WG | Q10: 30,817 | R10: 8,000 | S10: 3,192 | T10: 47.4% | U10: 5.6% | V10: 94.4%
B11: 2009 | C11: WG | D11: 30,148 | E11: 8,000 | F11: 1,504 | G11: 34.0% | H11: 72.7% | I11: 27.3% | J11: 511 | K11: 372 | L11: 140 | O11: 2009 | P11: WG | Q11: 30,148 | R11: 8,000 | S11: 1,504 | T11: 20.4% | U11: 0.0% | V11: 100.0%
B12: 2010 | C12: WG | D12: 34,773 | E12: 8,000 | F12: 2,406 | G12: 68.2% | H12: 63.7% | I12: 36.3% | J12: 1,640 | K12: 1,044 | L12: 596 | O12: 2010 | P12: WG | Q12: 34,773 | R12: 8,000 | S12: 2,406 | T12: 14.0% | U12: 1.6% | V12: 98.4%
B13: 2011 | C13: WG | D13: 34,317 | E13: 8,000 | F13: 1,684 | G13: 69.4% | H13: 66.9% | I13: 33.1% | J13: 1,169 | K13: 782 | L13: 387 | O13: 2011 | P13: WG | Q13: 34,317 | R13: 8,000 | S13: 1,684 | T13: 58.5% | U13: 19.3% | V13: 80.7%
B14: 2012 | C14: WG | D14: 27,495 | E14: 14,500 | F14: 1,233 | G14: 78.6% | H14: 61.1% | I14: 38.9% | J14: 969 | K14: 592 | L14: 377 | O14: 2012 | P14: WG | Q14: 27,495 | R14: 14,500 | S14: 1,233 | T14: 63.8% | U14: 48.7% | V14: 51.3%
B15: 2013 | C15: WG | D15: 27,181 | E15: 14,500 | F15: 805 | G15: 20.0% | H15: 62.4% | I15: 37.6% | J15: 161 | K15: 101 | L15: 61 | O15: 2013 | P15: WG | Q15: 27,181 | R15: 14,500 | S15: 805 | T15: 11.3% | U15: 0.0% | V15: 100.0%
B16: 2014 | C16: WG | D16: 31,142 | E16: 14,500 | F16: 1,895 | G16: 116.3% | H16: 50.2% | I16: 49.8% | J16: 2,204 | K16: 1,106 | L16: 1,098 | O16: 2014 | P16: WG | Q16: 31,142 | R16: 14,500 | S16: 1,895 | T16: 97.3% | U16: 50.2% | V16: 49.8%
B17: 2008-2012 | C17: WG | G17: 60.6% | H17: 66.1% | I17: 33.9% | O17: 2008-2012 | P17: WG | T17: 39.2% | U17: 16.9% | V17: 83.1%
B18: 2007-2012 | C18: WG | G18: 58.8% | H18: 67.6% | I18: 32.4% | O18: 2007-2012 | P18: WG | T18: 39.8% | U18: 12.7% | V18: 87.3%
B19: 2003-2012 | C19: WG | G19: 54.6% | H19: 64.5% | I19: 35.5% | O19: 2003-2012 | P19: WG | T19: 43.4% | U19: 5.3% | V19: 94.7%
B20: 2003 | C20: CG | D20: 113,050 | E20: 25,000 | F20: 22,149 | G20: 35.9% | H20: 62.7% | I20: 37.3% | J20: 7,960 | K20: 4,993 | L20: 2,968 | O20: 2003 | P20: CG | Q20: 113,050 | R20: 25,000 | S20: 22,149 | T20: 30.0% | U20: 11.5% | V20: 88.5%
B21: 2004 | C21: CG | D21: 151,840 | E21: 25,000 | F21: 12,760 | G21: 48.4% | H21: 66.3% | I21: 33.7% | J21: 6,177 | K21: 4,093 | L21: 2,084 | O21: 2004 | P21: CG | Q21: 151,840 | R21: 25,000 | S21: 12,760 | T21: 32.9% | U21: 93.6% | V21: 6.4%
B22: 2005 | C22: CG | D22: 168,950 | E22: 25,000 | F22: 17,379 | G22: 62.7% | H22: 54.0% | I22: 46.0% | J22: 10,897 | K22: 5,886 | L22: 5,011 | O22: 2005 | P22: CG | Q22: 168,950 | R22: 25,000 | S22: 17,379 | T22: 48.6% | U22: 66.3% | V22: 33.7%
B23: 2006 | C23: CG | D23: 134,906 | E23: 25,000 | F23: 25,580 | G23: 60.1% | H23: 62.1% | I23: 37.9% | J23: 15,377 | K23: 9,551 | L23: 5,826 | O23: 2006 | P23: CG | Q23: 134,906 | R23: 25,000 | S23: 25,580 | T23: 48.2% | U23: 68.0% | V23: 32.0%
B24: 2007 | C24: CG | D24: 139,582 | E24: 30,000 | F24: 22,210 | G24: 60.2% | H24: 72.9% | I24: 27.1% | J24: 13,369 | K24: 9,752 | L24: 3,617 | O24: 2007 | P24: CG | Q24: 139,582 | R24: 30,000 | S24: 22,210 | T24: 50.0% | U24: 72.1% | V24: 27.9%
B25: 2008 | C25: CG | D25: 167,936 | E25: 30,000 | F25: 26,192 | G25: 71.3% | H25: 68.7% | I25: 31.3% | J25: 18,675 | K25: 12,827 | L25: 5,847 | O25: 2008 | P25: CG | Q25: 167,936 | R25: 30,000 | S25: 26,192 | T25: 61.2% | U25: 73.4% | V25: 26.6%
B26: 2009 | C26: CG | D26: 164,251 | E26: 30,000 | F26: 23,361 | G26: 52.6% | H26: 72.7% | I26: 27.3% | J26: 12,286 | K26: 8,929 | L26: 3,357 | O26: 2009 | P26: CG | Q26: 164,251 | R26: 30,000 | S26: 23,361 | T26: 34.9% | U26: 86.5% | V26: 13.5%
B27: 2010 | C27: CG | D27: 146,407 | E27: 30,000 | F27: 21,605 | G27: 58.6% | H27: 63.7% | I27: 36.3% | J27: 12,662 | K27: 8,061 | L27: 4,602 | O27: 2010 | P27: CG | Q27: 146,407 | R27: 30,000 | S27: 21,605 | T27: 45.7% | U27: 75.0% | V27: 25.0%
B28: 2011 | C28: CG | D28: 144,559 | E28: 30,000 | F28: 28,964 | G28: 77.8% | H28: 66.9% | I28: 33.1% | J28: 22,522 | K28: 15,071 | L28: 7,452 | O28: 2011 | P28: CG | Q28: 144,559 | R28: 30,000 | S28: 28,964 | T28: 67.1% | U28: 55.1% | V28: 44.9%
B29: 2012 | C29: CG | D29: 143,162 | E29: 75,000 | F29: 19,328 | G29: 74.4% | H29: 61.1% | I29: 38.9% | J29: 14,375 | K29: 8,786 | L29: 5,589 | O29: 2012 | P29: CG | Q29: 143,162 | R29: 75,000 | S29: 19,328 | T29: 64.7% | U29: 47.3% | V29: 52.7%
B30: 2013 | C30: CG | D30: 141,527 | E30: 75,000 | F30: 20,561 | G30: 77.3% | H30: 62.4% | I30: 37.6% | J30: 15,902 | K30: 9,926 | L30: 5,976 | O30: 2013 | P30: CG | Q30: 141,527 | R30: 75,000 | S30: 20,561 | T30: 60.1% | U30: 54.2% | V30: 45.8%
B31: 2014 | C31: CG | D31: 115,612 | E31: 75,000 | F31: 34,326 | G31: 143.8% | H31: 57.6% | I31: 42.4% | J31: 49,374 | K31: 28,461 | L31: 20,913 | O31: 2014 | P31: CG | Q31: 115,612 | R31: 75,000 | S31: 34,326 | T31: 134.1% | U31: 54.6% | V31: 45.4%
B32: 2008-2012 | C32: CG | G32: 67.4% | H32: 66.7% | I32: 33.3% | O32: 2008-2012 | P32: CG | T32: 55.3% | U32: 64.9% | V32: 35.1%
B33: 2007-2012 | C33: CG | G33: 66.3% | H33: 67.6% | I33: 32.4% | O33: 2007-2012 | P33: CG | T33: 54.4% | U33: 65.9% | V33: 34.1%
B34: 2003-2012 | C34: CG | G34: 62.6% | H34: 65.2% | I34: 34.8% | O34: 2003-2012 | P34: CG | T34: 50.4% | U34: 62.9% | V34: 37.1%
B35: 2003 | C35: WY | D35: 18,190 | E35: 2,500 | F35: 37 | G35: 21.7% | H35: 62.7% | I35: 37.3% | J35: 8 | K35: 5 | L35: 3 | O35: 2003 | P35: WY | Q35: 18,190 | R35: 2,500 | S35: 37 | T35: 0.0% | U35: 0.0% | V35: 0.0%
B36: 2004 | C36: WY | D36: 10,590 | E36: 2,500 | F36: 80 | G36: 3.6% | H36: 66.3% | I36: 33.7% | J36: 3 | K36: 2 | L36: 1 | O36: 2004 | P36: WY | Q36: 10,590 | R36: 2,500 | S36: 80 | T36: 0.1% | U36: 91.6% | V36: 8.4%
B37: 2005 | C37: WY | D37: 11,790 | E37: 2,500 | F37: 26 | G37: 4.4% | H37: 54.0% | I37: 46.0% | J37: 1 | K37: 1 | L37: 1 | O37: 2005 | P37: WY | Q37: 11,790 | R37: 2,500 | S37: 26 | T37: 0.0% | U37: 0.0% | V37: 0.0%
B38: 2006 | C38: WY | D38: 15,954 | E38: 2,500 | F38: 32 | G38: 11.7% | H38: 62.1% | I38: 37.9% | J38: 4 | K38: 2 | L38: 1 | O38: 2006 | P38: WY | Q38: 15,954 | R38: 2,500 | S38: 32 | T38: 0.0% | U38: 0.0% | V38: 0.0%
B39: 2007 | C39: WY | D39: 16,507 | E39: 2,500 | F39: 77 | G39: 0.4% | H39: 72.9% | I39: 27.1% | J39: 0 | K39: 0 | L39: 0 | O39: 2007 | P39: WY | Q39: 16,507 | R39: 2,500 | S39: 77 | T39: 0.0% | U39: 0.0% | V39: 0.0%
B40: 2008 | C40: WY | D40: 15,245 | E40: 2,500 | F40: 30 | G40: 17.1% | H40: 68.7% | I40: 31.3% | J40: 5 | K40: 4 | L40: 2 | O40: 2008 | P40: WY | Q40: 15,245 | R40: 2,500 | S40: 30 | T40: 0.0% | U40: 0.0% | V40: 0.0%
B41: 2009 | C41: WY | D41: 14,908 | E41: 2,500 | F41: 57 | G41: 4.5% | H41: 72.7% | I41: 27.3% | J41: 3 | K41: 2 | L41: 1 | O41: 2009 | P41: WY | Q41: 14,908 | R41: 2,500 | S41: 57 | T41: 0.0% | U41: 0.0% | V41: 0.0%
B42: 2010 | C42: WY | D42: 22,835 | E42: 2,500 | F42: 138 | G42: 4.4% | H42: 63.7% | I42: 36.3% | J42: 6 | K42: 4 | L42: 2 | O42: 2010 | P42: WY | Q42: 22,835 | R42: 2,500 | S42: 138 | T42: 2.3% | U42: 10.3% | V42: 89.7%
B43: 2011 | C43: WY | D43: 22,551 | E43: 2,500 | F43: 144 | G43: 14.9% | H43: 66.9% | I43: 33.1% | J43: 21 | K43: 14 | L43: 7 | O43: 2011 | P43: WY | Q43: 22,551 | R43: 2,500 | S43: 144 | T43: 0.4% | U43: 27.3% | V43: 72.7%
B44: 2012 | C44: WY | D44: 21,159 | E44: 6,900 | F44: 28 | G44: 6.1% | H44: 61.1% | I44: 38.9% | J44: 2 | K44: 1 | L44: 1 | O44: 2012 | P44: WY | Q44: 21,159 | R44: 6,900 | S44: 28 | T44: 0.0% | U44: 0.0% | V44: 0.0%
B45: 2013 | C45: WY | D45: 20,917 | E45: 6,900 | F45: 40 | G45: 23.5% | H45: 62.4% | I45: 37.6% | J45: 9 | K45: 6 | L45: 4 | O45: 2013 | P45: WY | Q45: 20,917 | R45: 6,900 | S45: 40 | T45: 0.0% | U45: 0.0% | V45: 0.0%
B46: 2014 | C46: WY | D46: 37,232 | E46: 6,900 | F46: 52 | G46: 20.1% | H46: 14.9% | I46: 85.1% | J46: 10 | K46: 2 | L46: 9 | O46: 2014 | P46: WY | Q46: 37,232 | R46: 6,900 | S46: 52 | T46: 0.6% | U46: 14.0% | V46: 86.0%
B47: 2008-2012 | C47: WY | G47: 9.3% | H47: 66.8% | I47: 33.2% | O47: 2008-2012 | P47: WY | T47: 0.9% | U47: 12.8% | V47: 87.2%
B48: 2007-2012 | C48: WY | G48: 7.9% | H48: 66.8% | I48: 33.2% | O48: 2007-2012 | P48: WY | T48: 0.8% | U48: 12.8% | V48: 87.2%
B49: 2003-2012 | C49: WY | G49: 9.1% | H49: 65.1% | I49: 34.9% | O49: 2003-2012 | P49: WY | T49: 0.5% | U49: 14.6% | V49: 85.4%

Sheet Shallow-Water Flatfish
B2: Shallow-Water Flatfish: retained catch in all target fisheries- includes fish used to produce fish meal | O2: Shallow-Water Flatfish: retained catch in all target fisheries - excludes catch used to produce fish meal
C3: Allocation Area | F3: Total | G3: Retained Catch % | J3: Retained Catch (mt) | P3: Allocation Area | S3: Total | T3: Retained Catch %
B4: Year | D4: ABC | E4: TAC | F4: Catch | G4: Trawl | H4: Trawl CV | I4: Trawl CP | J4: Trawl | K4: Trawl CV | L4: Trawl CP | O4: Year | Q4: ABC | R4: TAC | S4: Catch | T4: Trawl | U4: Trawl CV | V4: Trawl CP
B5: 2003 | C5: WG | D5: 23,480 | E5: 4,500 | F5: 202 | G5: 55.3% | H5: 20.3% | I5: 79.7% | J5: 112 | K5: 23 | L5: 89 | O5: 2003 | P5: WG | Q5: 23,480 | R5: 4,500 | S5: 202 | T5: 52.1% | U5: 15.4% | V5: 84.6%
B6: 2004 | C6: WG | D6: 21,580 | E6: 4,500 | F6: 118 | G6: 71.4% | H6: 39.8% | I6: 60.2% | J6: 84 | K6: 34 | L6: 51 | O6: 2004 | P6: WG | Q6: 21,580 | R6: 4,500 | S6: 118 | T6: 56.5% | U6: 24.0% | V6: 76.0%
B7: 2005 | C7: WG | D7: 21,580 | E7: 4,500 | F7: 122 | G7: 65.8% | H7: 0.4% | I7: 99.6% | J7: 80 | K7: 0 | L7: 80 | O7: 2005 | P7: WG | Q7: 21,580 | R7: 4,500 | S7: 122 | T7: 65.5% | U7: 0.0% | V7: 100.0%
B8: 2006 | C8: WG | D8: 24,720 | E8: 4,500 | F8: 240 | G8: 18.6% | H8: 0.9% | I8: 99.1% | J8: 45 | K8: 0 | L8: 44 | O8: 2006 | P8: WG | Q8: 24,720 | R8: 4,500 | S8: 240 | T8: 18.4% | U8: 0.0% | V8: 100.0%
B9: 2007 | C9: WG | D9: 24,720 | E9: 4,500 | F9: 191 | G9: 25.2% | H9: 2.8% | I9: 97.2% | J9: 48 | K9: 1 | L9: 47 | O9: 2007 | P9: WG | Q9: 24,720 | R9: 4,500 | S9: 191 | T9: 24.9% | U9: 1.9% | V9: 98.1%
B10: 2008 | C10: WG | D10: 26,360 | E10: 4,500 | F10: 761 | G10: 6.5% | H10: 3.7% | I10: 96.3% | J10: 50 | K10: 2 | L10: 48 | O10: 2008 | P10: WG | Q10: 26,360 | R10: 4,500 | S10: 761 | T10: 6.4% | U10: 1.0% | V10: 99.0%
B11: 2009 | C11: WG | D11: 26,360 | E11: 4,500 | F11: 97 | G11: 59.7% | H11: 10.3% | I11: 89.7% | J11: 58 | K11: 6 | L11: 52 | O11: 2009 | P11: WG | Q11: 26,360 | R11: 4,500 | S11: 97 | T11: 53.5% | U11: 0.0% | V11: 100.0%
B12: 2010 | C12: WG | D12: 23,681 | E12: 4,500 | F12: 84 | G12: 39.9% | H12: 7.5% | I12: 92.5% | J12: 34 | K12: 2 | L12: 31 | O12: 2010 | P12: WG | Q12: 23,681 | R12: 4,500 | S12: 84 | T12: 37.0% | U12: 0.1% | V12: 99.9%
B13: 2011 | C13: WG | D13: 23,681 | E13: 4,500 | F13: 124 | G13: 73.2% | H13: 72.8% | I13: 27.2% | J13: 91 | K13: 66 | L13: 25 | O13: 2011 | P13: WG | Q13: 23,681 | R13: 4,500 | S13: 124 | T13: 19.9% | U13: 0.0% | V13: 100.0%
B14: 2012 | C14: WG | D14: 21,994 | E14: 13,250 | F14: 153 | G14: 60.5% | H14: 46.5% | I14: 53.5% | J14: 93 | K14: 43 | L14: 49 | O14: 2012 | P14: WG | Q14: 21,994 | R14: 13,250 | S14: 153 | T14: 32.4% | U14: 0.2% | V14: 99.8%
B15: 2013 | C15: WG | D15: 19,489 | E15: 13,250 | F15: 155 | G15: 11.6% | H15: 12.9% | I15: 87.1% | J15: 18 | K15: 2 | L15: 16 | O15: 2013 | P15: WG | Q15: 19,489 | R15: 13,250 | S15: 155 | T15: 10.2% | U15: 0.7% | V15: 99.3%
B16: 2014 | C16: WG | D16: 20,376 | E16: 13,250 | F16: 246 | G16: 13.2% | H16: 66.8% | I16: 33.2% | J16: 33 | K16: 22 | L16: 11 | O16: 2014 | P16: WG | Q16: 20,376 | R16: 13,250 | S16: 246 | T16: 5.7% | U16: 22.5% | V16: 77.5%
B17: 2008-2012 | C17: WG | G17: 26.6% | H17: 36.8% | I17: 63.2% | O17: 2008-2012 | P17: WG | T17: 16.9% | U17: 0.3% | V17: 99.7%
B18: 2007-2012 | C18: WG | G18: 26.4% | H18: 32.4% | I18: 67.6% | O18: 2007-2012 | P18: WG | T18: 18.0% | U18: 0.6% | V18: 99.4%
B19: 2003-2012 | C19: WG | G19: 31.7% | H19: 25.3% | I19: 74.7% | O19: 2003-2012 | P19: WG | T19: 25.1% | U19: 6.0% | V19: 94.0%
B20: 2003 | C20: CG | D20: 21,740 | E20: 13,000 | F20: 4,443 | G20: 95.0% | H20: 98.8% | I20: 1.2% | J20: 4,221 | K20: 4,171 | L20: 50 | O20: 2003 | P20: CG | Q20: 21,740 | R20: 13,000 | S20: 4,443 | T20: 71.2% | U20: 98.4% | V20: 1.6%
B21: 2004 | C21: CG | D21: 27,250 | E21: 13,000 | F21: 2,975 | G21: 90.3% | H21: 90.1% | I21: 9.9% | J21: 2,688 | K21: 2,421 | L21: 267 | O21: 2004 | P21: CG | Q21: 27,250 | R21: 13,000 | S21: 2,975 | T21: 70.8% | U21: 87.3% | V21: 12.7%
B22: 2005 | C22: CG | D22: 27,250 | E22: 13,000 | F22: 4,676 | G22: 95.4% | H22: 92.5% | I22: 7.5% | J22: 4,459 | K22: 4,126 | L22: 333 | O22: 2005 | P22: CG | Q22: 27,250 | R22: 13,000 | S22: 4,676 | T22: 85.3% | U22: 91.6% | V22: 8.4%
B23: 2006 | C23: CG | D23: 24,258 | E23: 13,000 | F23: 7,411 | G23: 91.8% | H23: 96.2% | I23: 3.8% | J23: 6,802 | K23: 6,545 | L23: 257 | O23: 2006 | P23: CG | Q23: 24,258 | R23: 13,000 | S23: 7,411 | T23: 86.8% | U23: 96.0% | V23: 4.0%
B24: 2007 | C24: CG | D24: 24,258 | E24: 13,000 | F24: 8,501 | G24: 94.6% | H24: 99.7% | I24: 0.3% | J24: 8,041 | K24: 8,020 | L24: 21 | O24: 2007 | P24: CG | Q24: 24,258 | R24: 13,000 | S24: 8,501 | T24: 89.7% | U24: 99.7% | V24: 0.3%
B25: 2008 | C25: CG | D25: 29,873 | E25: 13,000 | F25: 8,957 | G25: 94.8% | H25: 99.6% | I25: 0.4% | J25: 8,491 | K25: 8,456 | L25: 35 | O25: 2008 | P25: CG | Q25: 29,873 | R25: 13,000 | S25: 8,957 | T25: 89.6% | U25: 99.6% | V25: 0.4%
B26: 2009 | C26: CG | D26: 29,873 | E26: 13,000 | F26: 8,386 | G26: 98.8% | H26: 97.6% | I26: 2.4% | J26: 8,282 | K26: 8,085 | L26: 197 | O26: 2009 | P26: CG | Q26: 29,873 | R26: 13,000 | S26: 8,386 | T26: 87.3% | U26: 97.3% | V26: 2.7%
B27: 2010 | C27: CG | D27: 29,999 | E27: 13,000 | F27: 5,448 | G27: 95.8% | H27: 94.9% | I27: 5.1% | J27: 5,220 | K27: 4,956 | L27: 264 | O27: 2010 | P27: CG | Q27: 29,999 | R27: 13,000 | S27: 5,448 | T27: 87.7% | U27: 94.5% | V27: 5.5%
B28: 2011 | C28: CG | D28: 29,999 | E28: 13,000 | F28: 3,863 | G28: 95.6% | H28: 90.8% | I28: 9.2% | J28: 3,692 | K28: 3,351 | L28: 340 | O28: 2011 | P28: CG | Q28: 29,999 | R28: 13,000 | S28: 3,863 | T28: 89.1% | U28: 90.1% | V28: 9.9%
B29: 2012 | C29: CG | D29: 22,910 | E29: 18,000 | F29: 3,869 | G29: 95.6% | H29: 90.9% | I29: 9.1% | J29: 3,698 | K29: 3,363 | L29: 335 | O29: 2012 | P29: CG | Q29: 22,910 | R29: 18,000 | S29: 3,869 | T29: 91.0% | U29: 90.5% | V29: 9.5%
B30: 2013 | C30: CG | D30: 20,168 | E30: 18,000 | F30: 5,357 | G30: 98.2% | H30: 77.1% | I30: 22.9% | J30: 5,261 | K30: 4,057 | L30: 1,204 | O30: 2013 | P30: CG | Q30: 20,168 | R30: 18,000 | S30: 5,357 | T30: 94.3% | U30: 76.2% | V30: 23.8%
B31: 2014 | C31: CG | D31: 17,813 | E31: 17,813 | F31: 4,499 | G31: 104.9% | H31: 79.2% | I31: 20.8% | J31: 4,718 | K31: 3,735 | L31: 983 | O31: 2014 | P31: CG | Q31: 17,813 | R31: 17,813 | S31: 4,499 | T31: 97.0% | U31: 77.5% | V31: 22.5%
B32: 2008-2012 | C32: CG | G32: 96.3% | H32: 96.0% | I32: 4.0% | O32: 2008-2012 | P32: CG | T32: 88.7% | U32: 95.7% | V32: 4.3%
B33: 2007-2012 | C33: CG | G33: 95.9% | H33: 96.8% | I33: 3.2% | O33: 2007-2012 | P33: CG | T33: 88.9% | U33: 96.6% | V33: 3.4%
B34: 2003-2012 | C34: CG | G34: 95.3% | H34: 94.6% | I34: 5.4% | O34: 2003-2012 | P34: CG | T34: 86.8% | U34: 94.0% | V34: 6.0%
B35: 2003 | C35: WY | D35: 1,160 | E35: 1,160 | F35: 0 | G35: 0.0% | H35: 0.0% | I35: 0.0% | J35: 0 | K35: 0 | L35: 0 | O35: 2003 | P35: WY | Q35: 1,160 | R35: 1,160 | S35: 0 | T35: 0.0% | U35: 0.0% | V35: 0.0%
B36: 2004 | C36: WY | D36: 2,030 | E36: 2,030 | F36: 1 | G36: 0.0% | H36: 100.0% | I36: 0.0% | J36: 0 | K36: 0 | L36: 0 | O36: 2004 | P36: WY | Q36: 2,030 | R36: 2,030 | S36: 1 | T36: 80.9% | U36: 100.0% | V36: 0.0%
B37: 2005 | C37: WY | D37: 2,030 | E37: 2,030 | F37: 0 | G37: 0.0% | H37: 0.0% | I37: 0.0% | J37: 0 | K37: 0 | L37: 0 | O37: 2005 | P37: WY | Q37: 2,030 | R37: 2,030 | S37: 0 | T37: 0.0% | U37: 0.0% | V37: 0.0%
B38: 2006 | C38: WY | D38: 628 | E38: 628 | F38: 0 | G38: 0.0% | H38: 0.0% | I38: 0.0% | J38: 0 | K38: 0 | L38: 0 | O38: 2006 | P38: WY | Q38: 628 | R38: 628 | S38: 0 | T38: 0.0% | U38: 0.0% | V38: 0.0%
B39: 2007 | C39: WY | D39: 628 | E39: 628 | F39: 0 | G39: 0.0% | H39: 0.0% | I39: 0.0% | J39: 0 | K39: 0 | L39: 0 | O39: 2007 | P39: WY | Q39: 628 | R39: 628 | S39: 0 | T39: 0.0% | U39: 0.0% | V39: 0.0%
B40: 2008 | C40: WY | D40: 3,333 | E40: 3,333 | F40: 0 | G40: 0.0% | H40: 0.0% | I40: 0.0% | J40: 0 | K40: 0 | L40: 0 | O40: 2008 | P40: WY | Q40: 3,333 | R40: 3,333 | S40: 0 | T40: 0.0% | U40: 0.0% | V40: 0.0%
B41: 2009 | C41: WY | D41: 3,333 | E41: 3,333 | F41: 1 | G41: 0.0% | H41: 100.0% | I41: 0.0% | J41: 0 | K41: 0 | L41: 0 | O41: 2009 | P41: WY | Q41: 3,333 | R41: 3,333 | S41: 1 | T41: 0.0% | U41: 0.0% | V41: 0.0%
B42: 2010 | C42: WY | D42: 1,228 | E42: 1,228 | F42: 1 | G42: 0.0% | H42: 100.0% | I42: 0.0% | J42: 0 | K42: 0 | L42: 0 | O42: 2010 | P42: WY | Q42: 1,228 | R42: 1,228 | S42: 1 | T42: 0.0% | U42: 0.0% | V42: 0.0%
B43: 2011 | C43: WY | D43: 1,228 | E43: 1,228 | F43: 0 | G43: 0.0% | H43: 0.0% | I43: 0.0% | J43: 0 | K43: 0 | L43: 0 | O43: 2011 | P43: WY | Q43: 1,228 | R43: 1,228 | S43: 0 | T43: 0.0% | U43: 0.0% | V43: 0.0%
B44: 2012 | C44: WY | D44: 4,307 | E44: 4,307 | F44: 0 | G44: 0.0% | H44: 0.0% | I44: 0.0% | J44: 0 | K44: 0 | L44: 0 | O44: 2012 | P44: WY | Q44: 4,307 | R44: 4,307 | S44: 0 | T44: 0.0% | U44: 0.0% | V44: 0.0%
B45: 2013 | C45: WY | D45: 4,647 | E45: 4,647 | F45: 1 | G45: 0.0% | H45: 0.0% | I45: 0.0% | J45: 0 | K45: 0 | L45: 0 | O45: 2013 | P45: WY | Q45: 4,647 | R45: 4,647 | S45: 1 | T45: 0.0% | U45: 0.0% | V45: 0.0%
B46: 2014 | C46: WY | D46: 2,039 | E46: 2,039 | F46: 2 | G46: 2.3% | H46: 100.0% | I46: 0.0% | J46: 0 | K46: 0 | L46: 0 | O46: 2014 | P46: WY | Q46: 2,039 | R46: 2,039 | S46: 2 | T46: 0.0% | U46: 0.0% | V46: 0.0%
B47: 2008-2012 | C47: WY | G47: 0.0% | H47: 0.0% | I47: 0.0% | O47: 2008-2012 | P47: WY | T47: 0.0% | U47: 0.0% | V47: 0.0%
B48: 2007-2012 | C48: WY | G48: 0.0% | H48: 0.0% | I48: 0.0% | O48: 2007-2012 | P48: WY | T48: 0.0% | U48: 0.0% | V48: 0.0%
B49: 2003-2012 | C49: WY | G49: 0.0% | H49: 100.0% | I49: 0.0% | O49: 2003-2012 | P49: WY | T49: 20.2% | U49: 100.0% | V49: 0.0%

Sheet Deep-Water Flatfish
B2: Deep-Water Flatfish: retained catch in all target fisheries- includes fish used to produce fish meal | O2: Deep-Water Flatfish: retained catch in all target fisheries - excludes catch used to produce fish meal
C3: Allocation Area | F3: Total | G3: Retained Catch % | J3: Retained Catch (mt) | P3: Allocation Area | S3: Total | T3: Retained Catch %
B4: Year | D4: ABC | E4: TAC | F4: Catch | G4: Trawl | H4: Trawl CV | I4: Trawl CP | J4: Trawl | K4: Trawl CV | L4: Trawl CP | O4: Year | Q4: ABC | R4: TAC | S4: Catch | T4: Trawl | U4: Trawl CV | V4: Trawl CP
B5: 2003 | C5: WG | D5: 180 | E5: 180 | F5: 29 | G5: 1.7% | H5: 6.8% | I5: 93.2% | J5: 0 | K5: 0 | L5: 0 | O5: 2003 | P5: WG | Q5: 180 | R5: 180 | S5: 29 | T5: 1.7% | U5: 0.0% | V5: 100.0%
B6: 2004 | C6: WG | D6: 310 | E6: 310 | F6: 8 | G6: 4.2% | H6: 0.0% | I6: 100.0% | J6: 0 | K6: 0 | L6: 0 | O6: 2004 | P6: WG | Q6: 310 | R6: 310 | S6: 8 | T6: 4.7% | U6: 0.0% | V6: 100.0%
B7: 2005 | C7: WG | D7: 330 | E7: 330 | F7: 4 | G7: 7.1% | H7: 6.8% | I7: 93.2% | J7: 0 | K7: 0 | L7: 0 | O7: 2005 | P7: WG | Q7: 330 | R7: 330 | S7: 4 | T7: 7.3% | U7: 0.0% | V7: 100.0%
B8: 2006 | C8: WG | D8: 420 | E8: 420 | F8: 8 | G8: 15.8% | H8: 0.9% | I8: 99.1% | J8: 1 | K8: 0 | L8: 1 | O8: 2006 | P8: WG | Q8: 420 | R8: 420 | S8: 8 | T8: 17.2% | U8: 0.0% | V8: 100.0%
B9: 2007 | C9: WG | D9: 420 | E9: 420 | F9: 10 | G9: 34.0% | H9: 14.8% | I9: 85.2% | J9: 3 | K9: 0 | L9: 3 | O9: 2007 | P9: WG | Q9: 420 | R9: 420 | S9: 10 | T9: 32.0% | U9: 0.4% | V9: 99.6%
B10: 2008 | C10: WG | D10: 690 | E10: 690 | F10: 13 | G10: 37.2% | H10: 75.4% | I10: 24.6% | J10: 5 | K10: 4 | L10: 1 | O10: 2008 | P10: WG | Q10: 690 | R10: 690 | S10: 13 | T10: 10.1% | U10: 0.0% | V10: 100.0%
B11: 2009 | C11: WG | D11: 706 | E11: 706 | F11: 8 | G11: 19.7% | H11: 0.0% | I11: 100.0% | J11: 2 | K11: 0 | L11: 2 | O11: 2009 | P11: WG | Q11: 706 | R11: 706 | S11: 8 | T11: 21.6% | U11: 0.0% | V11: 100.0%
B12: 2010 | C12: WG | D12: 521 | E12: 521 | F12: 2 | G12: 13.2% | H12: 0.3% | I12: 99.7% | J12: 0 | K12: 0 | L12: 0 | O12: 2010 | P12: WG | Q12: 521 | R12: 521 | S12: 2 | T12: 14.4% | U12: 0.0% | V12: 100.0%
B13: 2011 | C13: WG | D13: 529 | E13: 529 | F13: 13 | G13: 51.6% | H13: 0.0% | I13: 100.0% | J13: 6 | K13: 0 | L13: 6 | O13: 2011 | P13: WG | Q13: 529 | R13: 529 | S13: 13 | T13: 56.7% | U13: 0.0% | V13: 100.0%
B14: 2012 | C14: WG | D14: 176 | E14: 176 | F14: 2 | G14: 12.8% | H14: 2.1% | I14: 97.9% | J14: 0 | K14: 0 | L14: 0 | O14: 2012 | P14: WG | Q14: 176 | R14: 176 | S14: 2 | T14: 13.7% | U14: 0.0% | V14: 100.0%
B15: 2013 | C15: WG | D15: 176 | E15: 176 | F15: 20 | G15: 5.9% | H15: 0.0% | I15: 100.0% | J15: 1 | K15: 0 | L15: 1 | O15: 2013 | P15: WG | Q15: 176 | R15: 176 | S15: 20 | T15: 6.5% | U15: 0.0% | V15: 100.0%
B16: 2014 | C16: WG | D16: 302 | E16: 302 | F16: 68 | G16: 207.6% | H16: 53.8% | I16: 46.2% | J16: 141 | K16: 76 | L16: 65 | O16: 2014 | P16: WG | Q16: 302 | R16: 302 | S16: 68 | T16: 207.6% | U16: 53.8% | V16: 46.2%
B17: 2008-2012 | C17: WG | G17: 35.4% | H17: 26.9% | I17: 73.1% | O17: 2008-2012 | P17: WG | T17: 28.4% | U17: 0.0% | V17: 100.0%
B18: 2007-2012 | C18: WG | G18: 35.1% | H18: 24.5% | I18: 75.5% | O18: 2007-2012 | P18: WG | T18: 29.2% | U18: 0.1% | V18: 99.9%
B19: 2003-2012 | C19: WG | G19: 17.4% | H19: 20.5% | I19: 79.5% | O19: 2003-2012 | P19: WG | T19: 15.2% | U19: 0.1% | V19: 99.9%
B20: 2003 | C20: CG | D20: 2,220 | E20: 2,220 | F20: 918 | G20: 51.5% | H20: 83.5% | I20: 16.5% | J20: 473 | K20: 395 | L20: 78 | O20: 2003 | P20: CG | Q20: 2,220 | R20: 2,220 | S20: 918 | T20: 47.7% | U20: 82.2% | V20: 17.8%
B21: 2004 | C21: CG | D21: 2,970 | E21: 2,970 | F21: 620 | G21: 81.6% | H21: 99.9% | I21: 0.1% | J21: 506 | K21: 506 | L21: 0 | O21: 2004 | P21: CG | Q21: 2,970 | R21: 2,970 | S21: 620 | T21: 74.4% | U21: 99.9% | V21: 0.1%
B22: 2005 | C22: CG | D22: 3,340 | E22: 3,340 | F22: 402 | G22: 42.5% | H22: 99.1% | I22: 0.9% | J22: 171 | K22: 169 | L22: 1 | O22: 2005 | P22: CG | Q22: 3,340 | R22: 3,340 | S22: 402 | T22: 39.1% | U22: 99.1% | V22: 0.9%
B23: 2006 | C23: CG | D23: 4,139 | E23: 4,139 | F23: 372 | G23: 43.2% | H23: 87.4% | I23: 12.6% | J23: 161 | K23: 141 | L23: 20 | O23: 2006 | P23: CG | Q23: 4,139 | R23: 4,139 | S23: 372 | T23: 41.8% | U23: 87.0% | V23: 13.0%
B24: 2007 | C24: CG | D24: 4,163 | E24: 4,163 | F24: 259 | G24: 42.5% | H24: 88.9% | I24: 11.1% | J24: 110 | K24: 98 | L24: 12 | O24: 2007 | P24: CG | Q24: 4,163 | R24: 4,163 | S24: 259 | T24: 38.0% | U24: 87.6% | V24: 12.4%
B25: 2008 | C25: CG | D25: 6,771 | E25: 6,771 | F25: 556 | G25: 36.8% | H25: 98.0% | I25: 2.0% | J25: 205 | K25: 201 | L25: 4 | O25: 2008 | P25: CG | Q25: 6,771 | R25: 6,771 | S25: 556 | T25: 34.3% | U25: 97.8% | V25: 2.2%
B26: 2009 | C26: CG | D26: 6,927 | E26: 6,927 | F26: 454 | G26: 22.8% | H26: 92.3% | I26: 7.7% | J26: 103 | K26: 96 | L26: 8 | O26: 2009 | P26: CG | Q26: 6,927 | R26: 6,927 | S26: 454 | T26: 15.9% | U26: 89.0% | V26: 11.0%
B27: 2010 | C27: CG | D27: 2,865 | E27: 2,865 | F27: 532 | G27: 62.9% | H27: 96.0% | I27: 4.0% | J27: 335 | K27: 321 | L27: 14 | O27: 2010 | P27: CG | Q27: 2,865 | R27: 2,865 | S27: 532 | T27: 57.0% | U27: 95.5% | V27: 4.5%
B28: 2011 | C28: CG | D28: 2,919 | E28: 2,919 | F28: 444 | G28: 50.1% | H28: 99.3% | I28: 0.7% | J28: 223 | K28: 221 | L28: 1 | O28: 2011 | P28: CG | Q28: 2,919 | R28: 2,919 | S28: 444 | T28: 45.4% | U28: 99.3% | V28: 0.7%
B29: 2012 | C29: CG | D29: 2,308 | E29: 2,308 | F29: 284 | G29: 25.8% | H29: 88.3% | I29: 11.7% | J29: 73 | K29: 65 | L29: 9 | O29: 2012 | P29: CG | Q29: 2,308 | R29: 2,308 | S29: 284 | T29: 23.4% | U29: 87.1% | V29: 12.9%
B30: 2013 | C30: CG | D30: 2,308 | E30: 2,308 | F30: 215 | G30: 64.5% | H30: 95.4% | I30: 4.6% | J30: 139 | K30: 133 | L30: 6 | O30: 2013 | P30: CG | Q30: 2,308 | R30: 2,308 | S30: 215 | T30: 55.7% | U30: 94.7% | V30: 5.3%
B31: 2014 | C31: CG | D31: 3,727 | E31: 3,727 | F31: 278 | G31: 60.7% | H31: 95.6% | I31: 4.4% | J31: 169 | K31: 161 | L31: 7 | O31: 2014 | P31: CG | Q31: 3,727 | R31: 3,727 | S31: 278 | T31: 53.8% | U31: 95.0% | V31: 5.0%
B32: 2008-2012 | C32: CG | G32: 41.4% | H32: 96.2% | I32: 3.8% | O32: 2008-2012 | P32: CG | T32: 36.8% | U32: 95.7% | V32: 4.3%
B33: 2007-2012 | C33: CG | G33: 41.5% | H33: 95.4% | I33: 4.6% | O33: 2007-2012 | P33: CG | T33: 36.9% | U33: 94.9% | V33: 5.1%
B34: 2003-2012 | C34: CG | G34: 49.4% | H34: 93.8% | I34: 6.2% | O34: 2003-2012 | P34: CG | T34: 44.8% | U34: 93.2% | V34: 6.8%
B35: 2003 | C35: WY | D35: 1,330 | E35: 1,330 | F35: 2 | G35: 0.0% | H35: 0.0% | I35: 0.0% | J35: 0 | K35: 0 | L35: 0 | O35: 2003 | P35: WY | Q35: 1,330 | R35: 1,330 | S35: 2 | T35: 0.0% | U35: 0.0% | V35: 0.0%
B36: 2004 | C36: WY | D36: 1,880 | E36: 1,880 | F36: 55 | G36: 21.2% | H36: 0.0% | I36: 100.0% | J36: 12 | K36: 0 | L36: 12 | O36: 2004 | P36: WY | Q36: 1,880 | R36: 1,880 | S36: 55 | T36: 95.4% | U36: 0.0% | V36: 100.0%
B37: 2005 | C37: WY | D37: 2,120 | E37: 2,120 | F37: 5 | G37: 0.0% | H37: 0.0% | I37: 0.0% | J37: 0 | K37: 0 | L37: 0 | O37: 2005 | P37: WY | Q37: 2,120 | R37: 2,120 | S37: 5 | T37: 0.0% | U37: 0.0% | V37: 0.0%
B38: 2006 | C38: WY | D38: 2,661 | E38: 2,661 | F38: 12 | G38: 11.2% | H38: 100.0% | I38: 0.0% | J38: 1 | K38: 1 | L38: 0 | O38: 2006 | P38: WY | Q38: 2,661 | R38: 2,661 | S38: 12 | T38: 0.0% | U38: 0.0% | V38: 0.0%
B39: 2007 | C39: WY | D39: 2,677 | E39: 2,677 | F39: 3 | G39: 0.0% | H39: 0.0% | I39: 0.0% | J39: 0 | K39: 0 | L39: 0 | O39: 2007 | P39: WY | Q39: 2,677 | R39: 2,677 | S39: 3 | T39: 0.0% | U39: 0.0% | V39: 0.0%
B40: 2008 | C40: WY | D40: 965 | E40: 965 | F40: 1 | G40: 0.0% | H40: 0.0% | I40: 0.0% | J40: 0 | K40: 0 | L40: 0 | O40: 2008 | P40: WY | Q40: 965 | R40: 965 | S40: 1 | T40: 0.0% | U40: 0.0% | V40: 0.0%
B41: 2009 | C41: WY | D41: 997 | E41: 997 | F41: 4 | G41: 0.0% | H41: 100.0% | I41: 0.0% | J41: 0 | K41: 0 | L41: 0 | O41: 2009 | P41: WY | Q41: 997 | R41: 997 | S41: 4 | T41: 0.0% | U41: 0.0% | V41: 0.0%
B42: 2010 | C42: WY | D42: 2,044 | E42: 2,044 | F42: 7 | G42: 72.7% | H42: 100.0% | I42: 0.0% | J42: 5 | K42: 5 | L42: 0 | O42: 2010 | P42: WY | Q42: 2,044 | R42: 2,044 | S42: 7 | T42: 7.7% | U42: 100.0% | V42: 0.0%
B43: 2011 | C43: WY | D43: 2,083 | E43: 2,083 | F43: 7 | G43: 46.6% | H43: 0.0% | I43: 0.0% | J43: 3 | K43: 0 | L43: 0 | O43: 2011 | P43: WY | Q43: 2,083 | R43: 2,083 | S43: 7 | T43: 32.2% | U43: 100.0% | V43: 0.0%
B44: 2012 | C44: WY | D44: 1,581 | E44: 1,581 | F44: 3 | G44: 0.0% | H44: 0.0% | I44: 0.0% | J44: 0 | K44: 0 | L44: 0 | O44: 2012 | P44: WY | Q44: 1,581 | R44: 1,581 | S44: 3 | T44: 0.0% | U44: 0.0% | V44: 0.0%
B45: 2013 | C45: WY | D45: 1,581 | E45: 1,581 | F45: 3 | G45: 0.0% | H45: 0.0% | I45: 0.0% | J45: 0 | K45: 0 | L45: 0 | O45: 2013 | P45: WY | Q45: 1,581 | R45: 1,581 | S45: 3 | T45: 0.0% | U45: 0.0% | V45: 0.0%
B46: 2014 | C46: WY | D46: 5,532 | E46: 5,532 | F46: 5 | G46: 67.1% | H46: 100.0% | I46: 0.0% | J46: 3 | K46: 3 | L46: 0 | O46: 2014 | P46: WY | Q46: 5,532 | R46: 5,532 | S46: 5 | T46: 0.0% | U46: 0.0% | V46: 0.0%
B47: 2008-2012 | C47: WY | G47: 38.8% | H47: 62.2% | I47: 37.8% | O47: 2008-2012 | P47: WY | T47: 12.7% | U47: 100.0% | V47: 0.0%
B48: 2007-2012 | C48: WY | G48: 33.6% | H48: 62.2% | I48: 37.8% | O48: 2007-2012 | P48: WY | T48: 11.0% | U48: 100.0% | V48: 0.0%
B49: 2003-2012 | C49: WY | G49: 21.0% | H49: 31.0% | I49: 69.0% | O49: 2003-2012 | P49: WY | T49: 53.7% | U49: 5.1% | V49: 94.9%

Sheet Rex Sole
B2: Rex Sole: retained catch in all target fisheries- includes fish used to produce fish meal | O2: Rex Sole: retained catch in all target fisheries - excludes catch used to produce fish meal
C3: Allocation Area | F3: Total | G3: Retained Catch % | J3: Retained Catch (mt) | P3: Allocation Area | S3: Total | T3: Retained Catch %
B4: Year | D4: ABC | E4: TAC | F4: Catch | G4: Trawl | H4: Trawl CV | I4: Trawl CP | J4: Trawl | K4: Trawl CV | L4: Trawl CP | O4: Year | Q4: ABC | R4: TAC | S4: Catch | T4: Trawl | U4: Trawl CV | V4: Trawl CP
B5: 2003 | C5: WG | D5: 1,280 | E5: 1,280 | F5: 772 | G5: 95.1% | H5: 62.7% | I5: 37.3% | J5: 734 | K5: 461 | L5: 274 | O5: 2003 | P5: WG | Q5: 1,280 | R5: 1,280 | S5: 772 | T5: 95.0% | U5: 0.0% | V5: 100.0%
B6: 2004 | C6: WG | D6: 1,680 | E6: 1,680 | F6: 527 | G6: 94.2% | H6: 66.3% | I6: 33.7% | J6: 496 | K6: 329 | L6: 167 | O6: 2004 | P6: WG | Q6: 1,680 | R6: 1,680 | S6: 527 | T6: 94.0% | U6: 0.0% | V6: 100.0%
B7: 2005 | C7: WG | D7: 1,680 | E7: 1,680 | F7: 576 | G7: 89.5% | H7: 54.0% | I7: 46.0% | J7: 515 | K7: 278 | L7: 237 | O7: 2005 | P7: WG | Q7: 1,680 | R7: 1,680 | S7: 576 | T7: 89.3% | U7: 0.3% | V7: 99.7%
B8: 2006 | C8: WG | D8: 1,159 | E8: 1,159 | F8: 350 | G8: 94.2% | H8: 62.1% | I8: 37.9% | J8: 330 | K8: 205 | L8: 125 | O8: 2006 | P8: WG | Q8: 1,159 | R8: 1,159 | S8: 350 | T8: 93.7% | U8: 0.2% | V8: 99.8%
B9: 2007 | C9: WG | D9: 1,147 | E9: 1,147 | F9: 411 | G9: 96.0% | H9: 72.9% | I9: 27.1% | J9: 394 | K9: 288 | L9: 107 | O9: 2007 | P9: WG | Q9: 1,147 | R9: 1,147 | S9: 411 | T9: 95.6% | U9: 0.3% | V9: 99.7%
B10: 2008 | C10: WG | D10: 1,022 | E10: 1,022 | F10: 185 | G10: 92.6% | H10: 68.7% | I10: 31.3% | J10: 171 | K10: 118 | L10: 54 | O10: 2008 | P10: WG | Q10: 1,022 | R10: 1,022 | S10: 185 | T10: 91.9% | U10: 1.4% | V10: 98.6%
B11: 2009 | C11: WG | D11: 1,007 | E11: 1,007 | F11: 342 | G11: 97.3% | H11: 72.7% | I11: 27.3% | J11: 333 | K11: 242 | L11: 91 | O11: 2009 | P11: WG | Q11: 1,007 | R11: 1,007 | S11: 342 | T11: 96.9% | U11: 0.0% | V11: 100.0%
B12: 2010 | C12: WG | D12: 1,543 | E12: 1,543 | F12: 134 | G12: 92.9% | H12: 63.7% | I12: 36.3% | J12: 124 | K12: 79 | L12: 45 | O12: 2010 | P12: WG | Q12: 1,543 | R12: 1,543 | S12: 134 | T12: 89.9% | U12: 1.3% | V12: 98.7%
B13: 2011 | C13: WG | D13: 1,517 | E13: 1,517 | F13: 131 | G13: 93.4% | H13: 66.9% | I13: 33.1% | J13: 122 | K13: 82 | L13: 40 | O13: 2011 | P13: WG | Q13: 1,517 | R13: 1,517 | S13: 131 | T13: 90.4% | U13: 0.2% | V13: 99.8%
B14: 2012 | C14: WG | D14: 1,307 | E14: 1,307 | F14: 215 | G14: 96.8% | H14: 61.1% | I14: 38.9% | J14: 208 | K14: 127 | L14: 81 | O14: 2012 | P14: WG | Q14: 1,307 | R14: 1,307 | S14: 215 | T14: 95.9% | U14: 0.0% | V14: 100.0%
B15: 2013 | C15: WG | D15: 1,300 | E15: 1,300 | F15: 104 | G15: 89.6% | H15: 62.4% | I15: 37.6% | J15: 93 | K15: 58 | L15: 35 | O15: 2013 | P15: WG | Q15: 1,300 | R15: 1,300 | S15: 104 | T15: 88.9% | U15: 0.0% | V15: 100.0%
B16: 2014 | C16: WG | D16: 1,270 | E16: 1,270 | F16: 219 | G16: 99.1% | H16: 47.7% | I16: 52.3% | J16: 217 | K16: 104 | L16: 113 | O16: 2014 | P16: WG | Q16: 1,270 | R16: 1,270 | S16: 219 | T16: 99.0% | U16: 47.7% | V16: 52.3%
B17: 2008-2012 | C17: WG | G17: 95.2% | H17: 67.6% | I17: 32.4% | O17: 2008-2012 | P17: WG | T17: 94.0% | U17: 0.5% | V17: 99.5%
B18: 2007-2012 | C18: WG | G18: 95.5% | H18: 69.1% | I18: 30.9% | O18: 2007-2012 | P18: WG | T18: 94.5% | U18: 0.4% | V18: 99.6%
B19: 2003-2012 | C19: WG | G19: 94.0% | H19: 64.3% | I19: 35.7% | O19: 2003-2012 | P19: WG | T19: 93.5% | U19: 0.2% | V19: 99.8%
B20: 2003 | C20: CG | D20: 5,540 | E20: 5,540 | F20: 2,727 | G20: 94.5% | H20: 62.7% | I20: 37.3% | J20: 2,578 | K20: 1,617 | L20: 961 | O20: 2003 | P20: CG | Q20: 5,540 | R20: 5,540 | S20: 2,727 | T20: 92.8% | U20: 3.2% | V20: 96.8%
B21: 2004 | C21: CG | D21: 7,340 | E21: 7,340 | F21: 940 | G21: 93.1% | H21: 66.3% | I21: 33.7% | J21: 876 | K21: 580 | L21: 295 | O21: 2004 | P21: CG | Q21: 7,340 | R21: 7,340 | S21: 940 | T21: 86.2% | U21: 25.4% | V21: 74.6%
B22: 2005 | C22: CG | D22: 7,340 | E22: 7,340 | F22: 1,603 | G22: 91.7% | H22: 54.0% | I22: 46.0% | J22: 1,469 | K22: 794 | L22: 676 | O22: 2005 | P22: CG | Q22: 7,340 | R22: 7,340 | S22: 1,603 | T22: 89.7% | U22: 19.6% | V22: 80.4%
B23: 2006 | C23: CG | D23: 5,506 | E23: 5,506 | F23: 2,944 | G23: 96.0% | H23: 62.1% | I23: 37.9% | J23: 2,826 | K23: 1,755 | L23: 1,071 | O23: 2006 | P23: CG | Q23: 5,506 | R23: 5,506 | S23: 2,944 | T23: 95.4% | U23: 21.2% | V23: 78.8%
B24: 2007 | C24: CG | D24: 5,446 | E24: 5,446 | F24: 2,438 | G24: 97.9% | H24: 72.9% | I24: 27.1% | J24: 2,388 | K24: 1,742 | L24: 646 | O24: 2007 | P24: CG | Q24: 5,446 | R24: 5,446 | S24: 2,438 | T24: 97.3% | U24: 25.5% | V24: 74.5%
B25: 2008 | C25: CG | D25: 6,731 | E25: 6,731 | F25: 2,522 | G25: 96.9% | H25: 68.7% | I25: 31.3% | J25: 2,443 | K25: 1,678 | L25: 765 | O25: 2008 | P25: CG | Q25: 6,731 | R25: 6,731 | S25: 2,522 | T25: 95.2% | U25: 25.9% | V25: 74.1%
B26: 2009 | C26: CG | D26: 6,630 | E26: 6,630 | F26: 4,410 | G26: 99.2% | H26: 72.7% | I26: 27.3% | J26: 4,375 | K26: 3,180 | L26: 1,195 | O26: 2009 | P26: CG | Q26: 6,630 | R26: 6,630 | S26: 4,410 | T26: 97.1% | U26: 25.5% | V26: 74.5%
B27: 2010 | C27: CG | D27: 6,403 | E27: 6,403 | F27: 3,500 | G27: 98.1% | H27: 63.7% | I27: 36.3% | J27: 3,435 | K27: 2,186 | L27: 1,248 | O27: 2010 | P27: CG | Q27: 6,403 | R27: 6,403 | S27: 3,500 | T27: 96.2% | U27: 26.5% | V27: 73.5%
B28: 2011 | C28: CG | D28: 6,294 | E28: 6,294 | F28: 2,745 | G28: 96.9% | H28: 66.9% | I28: 33.1% | J28: 2,659 | K28: 1,780 | L28: 880 | O28: 2011 | P28: CG | Q28: 6,294 | R28: 6,294 | S28: 2,745 | T28: 95.2% | U28: 38.1% | V28: 61.9%
B29: 2012 | C29: CG | D29: 6,412 | E29: 6,412 | F29: 2,210 | G29: 96.0% | H29: 61.1% | I29: 38.9% | J29: 2,121 | K29: 1,296 | L29: 825 | O29: 2012 | P29: CG | Q29: 6,412 | R29: 6,412 | S29: 2,210 | T29: 94.8% | U29: 40.5% | V29: 59.5%
B30: 2013 | C30: CG | D30: 6,376 | E30: 6,376 | F30: 3,603 | G30: 98.4% | H30: 62.4% | I30: 37.6% | J30: 3,545 | K30: 2,213 | L30: 1,332 | O30: 2013 | P30: CG | Q30: 6,376 | R30: 6,376 | S30: 3,603 | T30: 95.9% | U30: 47.8% | V30: 52.2%
B31: 2014 | C31: CG | D31: 6,231 | E31: 6,231 | F31: 3,450 | G31: 138.3% | H31: 71.6% | I31: 28.4% | J31: 4,770 | K31: 3,414 | L31: 1,356 | O31: 2014 | P31: CG | Q31: 6,231 | R31: 6,231 | S31: 3,450 | T31: 134.7% | U31: 70.8% | V31: 29.2%
B32: 2008-2012 | C32: CG | G32: 97.7% | H32: 67.3% | I32: 32.7% | O32: 2008-2012 | P32: CG | T32: 95.9% | U32: 30.2% | V32: 69.8%
B33: 2007-2012 | C33: CG | G33: 97.7% | H33: 68.1% | I33: 31.9% | O33: 2007-2012 | P33: CG | T33: 96.1% | U33: 29.5% | V33: 70.5%
B34: 2003-2012 | C34: CG | G34: 96.9% | H34: 65.5% | I34: 34.5% | O34: 2003-2012 | P34: CG | T34: 95.0% | U34: 27.9% | V34: 72.1%
B35: 2003 | C35: WY | D35: 1,600 | E35: 1,600 | F35: 1 | G35: 0.0% | H35: 0.0% | I35: 0.0% | J35: 0 | K35: 0 | L35: 0 | O35: 2003 | P35: WY | Q35: 1,600 | R35: 1,600 | S35: 1 | T35: 0.0% | U35: 0.0% | V35: 0.0%
B36: 2004 | C36: WY | D36: 1,340 | E36: 1,340 | F36: 0 | G36: 0.0% | H36: 0.0% | I36: 100.0% | J36: 0 | K36: 0 | L36: 0 | O36: 2004 | P36: WY | Q36: 1,340 | R36: 1,340 | S36: 0 | T36: 0.0% | U36: 0.0% | V36: 0.0%
B37: 2005 | C37: WY | D37: 1,340 | E37: 1,340 | F37: 0 | G37: 0.0% | H37: 0.0% | I37: 0.0% | J37: 0 | K37: 0 | L37: 0 | O37: 2005 | P37: WY | Q37: 1,340 | R37: 1,340 | S37: 0 | T37: 0.0% | U37: 0.0% | V37: 0.0%
B38: 2006 | C38: WY | D38: 1,049 | E38: 1,049 | F38: 0 | G38: 0.0% | H38: 0.0% | I38: 100.0% | J38: 0 | K38: 0 | L38: 0 | O38: 2006 | P38: WY | Q38: 1,049 | R38: 1,049 | S38: 0 | T38: 0.0% | U38: 0.0% | V38: 0.0%
B39: 2007 | C39: WY | D39: 1,037 | E39: 1,037 | F39: 1 | G39: 129.6% | H39: 100.0% | I39: 0.0% | J39: 1 | K39: 1 | L39: 0 | O39: 2007 | P39: WY | Q39: 1,037 | R39: 1,037 | S39: 1 | T39: 100.0% | U39: 100.0% | V39: 0.0%
B40: 2008 | C40: WY | D40: 859 | E40: 859 | F40: 0 | G40: 0.0% | H40: 0.0% | I40: 0.0% | J40: 0 | K40: 0 | L40: 0 | O40: 2008 | P40: WY | Q40: 859 | R40: 859 | S40: 0 | T40: 0.0% | U40: 0.0% | V40: 0.0%
B41: 2009 | C41: WY | D41: 513 | E41: 846 | F41: 1 | G41: 127.9% | H41: 100.0% | I41: 0.0% | J41: 1 | K41: 1 | L41: 0 | O41: 2009 | P41: WY | Q41: 513 | R41: 846 | S41: 1 | T41: 100.0% | U41: 100.0% | V41: 0.0%
B42: 2010 | C42: WY | D42: 883 | E42: 883 | F42: 2 | G42: 17.6% | H42: 63.7% | I42: 36.3% | J42: 0 | K42: 0 | L42: 0 | O42: 2010 | P42: WY | Q42: 883 | R42: 883 | S42: 2 | T42: 15.1% | U42: 100.0% | V42: 0.0%
B43: 2011 | C43: WY | D43: 868 | E43: 868 | F43: 1 | G43: 84.8% | H43: 66.9% | I43: 33.1% | J43: 1 | K43: 1 | L43: 0 | O43: 2011 | P43: WY | Q43: 868 | R43: 868 | S43: 1 | T43: 43.5% | U43: 30.8% | V43: 69.2%
B44: 2012 | C44: WY | D44: 836 | E44: 836 | F44: 0 | G44: 0.0% | H44: 0.0% | I44: 0.0% | J44: 0 | K44: 0 | L44: 0 | O44: 2012 | P44: WY | Q44: 836 | R44: 836 | S44: 0 | T44: 0.0% | U44: 0.0% | V44: 0.0%
B45: 2013 | C45: WY | D45: 832 | E45: 832 | F45: 0 | G45: 0.0% | H45: 0.0% | I45: 100.0% | J45: 0 | K45: 0 | L45: 0 | O45: 2013 | P45: WY | Q45: 832 | R45: 832 | S45: 0 | T45: 0.0% | U45: 0.0% | V45: 0.0%
B46: 2014 | C46: WY | D46: 813 | E46: 813 | F46: 1 | G46: 75.8% | H46: 100.0% | I46: 0.0% | J46: 1 | K46: 1 | L46: 0 | O46: 2014 | P46: WY | Q46: 813 | R46: 813 | S46: 1 | T46: 25.4% | U46: 100.0% | V46: 0.0%
B47: 2008-2012 | C47: WY | G47: 62.0% | H47: 83.5% | I47: 16.5% | O47: 2008-2012 | P47: WY | T47: 43.4% | U47: 82.7% | V47: 17.3%
B48: 2007-2012 | C48: WY | G48: 75.5% | H48: 89.2% | I48: 10.8% | O48: 2007-2012 | P48: WY | T48: 54.7% | U48: 89.0% | V48: 11.0%
B49: 2003-2012 | C49: WY | G49: 62.9% | H49: 89.2% | I49: 10.8% | O49: 2003-2012 | P49: WY | T49: 45.6% | U49: 89.0% | V49: 11.0%

Sheet Rockfish WG
B2: Rockfish (Western GOA only): retained catch in all target fisheries- includes fish used to produce fish meal | O2: Rockfish (Western GOA only): retained catch in all target fisheries - excludes catch used to produce fish meal
C3: Allocation Species | F3: Total | G3: Retained Catch % | J3: Retained Catch (mt) | P3: Allocation Species | S3: Total | T3: Retained Catch %
B4: Year | D4: ABC | E4: TAC | F4: Catch | G4: Trawl | H4: Trawl CV | I4: Trawl CP | J4: Trawl | K4: Trawl CV | L4: Trawl CP | O4: Year | Q4: ABC | R4: TAC | S4: Catch | T4: Trawl | U4: Trawl CV | V4: Trawl CP
B5: 2003 | C5: Northern | D5: 890 | E5: 890 | F5: 449 | G5: 54.9% | H5: 0.0% | I5: 100.0% | J5: 247 | K5: 0 | L5: 247 | O5: 2003 | P5: Northern | Q5: 890 | R5: 890 | S5: 449 | T5: 54.9% | U5: 0.0% | V5: 100.0%
B6: 2004 | C6: Northern | D6: 770 | E6: 770 | F6: 1,030 | G6: 80.0% | H6: 0.0% | I6: 100.0% | J6: 824 | K6: 0 | L6: 824 | O6: 2004 | P6: Northern | Q6: 770 | R6: 770 | S6: 1,030 | T6: 80.0% | U6: 0.0% | V6: 100.0%
B7: 2005 | C7: Northern | D7: 808 | E7: 808 | F7: 575 | G7: 89.8% | H7: 0.1% | I7: 99.9% | J7: 516 | K7: 0 | L7: 516 | O7: 2005 | P7: Northern | Q7: 808 | R7: 808 | S7: 575 | T7: 89.8% | U7: 0.0% | V7: 100.0%
B8: 2006 | C8: Northern | D8: 1,483 | E8: 1,483 | F8: 972 | G8: 86.9% | H8: 0.3% | I8: 99.7% | J8: 845 | K8: 3 | L8: 842 | O8: 2006 | P8: Northern | Q8: 1,483 | R8: 1,483 | S8: 972 | T8: 86.8% | U8: 0.2% | V8: 99.8%
B9: 2007 | C9: Northern | D9: 1,439 | E9: 1,439 | F9: 1,108 | G9: 96.0% | H9: 3.9% | I9: 96.1% | J9: 1,063 | K9: 42 | L9: 1,021 | O9: 2007 | P9: Northern | Q9: 1,439 | R9: 1,439 | S9: 1,108 | T9: 95.9% | U9: 3.9% | V9: 96.1%
B10: 2008 | C10: Northern | D10: 2,141 | E10: 2,141 | F10: 1,903 | G10: 95.8% | H10: 0.0% | I10: 100.0% | J10: 1,823 | K10: 0 | L10: 1,823 | O10: 2008 | P10: Northern | Q10: 2,141 | R10: 2,141 | S10: 1,903 | T10: 95.8% | U10: 0.0% | V10: 100.0%
B11: 2009 | C11: Northern | D11: 2,054 | E11: 2,054 | F11: 1,945 | G11: 96.3% | H11: 0.0% | I11: 100.0% | J11: 1,872 | K11: 0 | L11: 1,872 | O11: 2009 | P11: Northern | Q11: 2,054 | R11: 2,054 | S11: 1,945 | T11: 96.3% | U11: 0.0% | V11: 100.0%
B12: 2010 | C12: Northern | D12: 2,703 | E12: 2,703 | F12: 2,038 | G12: 98.5% | H12: 0.0% | I12: 100.0% | J12: 2,007 | K12: 0 | L12: 2,007 | O12: 2010 | P12: Northern | Q12: 2,703 | R12: 2,703 | S12: 2,038 | T12: 98.5% | U12: 0.0% | V12: 100.0%
B13: 2011 | C13: Northern | D13: 2,573 | E13: 2,573 | F13: 1,742 | G13: 98.1% | H13: 0.0% | I13: 100.0% | J13: 1,709 | K13: 0 | L13: 1,709 | O13: 2011 | P13: Northern | Q13: 2,573 | R13: 2,573 | S13: 1,742 | T13: 98.1% | U13: 0.0% | V13: 100.0%
B14: 2012 | C14: Northern | D14: 2,156 | E14: 2,156 | F14: 1,817 | G14: 98.7% | H14: 0.0% | I14: 100.0% | J14: 1,793 | K14: 0 | L14: 1,793 | O14: 2012 | P14: Northern | Q14: 2,156 | R14: 2,156 | S14: 1,817 | T14: 98.7% | U14: 0.0% | V14: 100.0%
B15: 2013 | C15: Northern | D15: 2,008 | E15: 2,008 | F15: 2,175 | G15: 99.1% | H15: 0.0% | I15: 100.0% | J15: 2,155 | K15: 0 | L15: 2,155 | O15: 2013 | P15: Northern | Q15: 2,008 | R15: 2,008 | S15: 2,175 | T15: 99.1% | U15: 0.0% | V15: 100.0%
B16: 2014 | C16: Northern | D16: 1,305 | E16: 1,305 | F16: 853 | G16: 193.5% | H16: 51.5% | I16: 48.5% | J16: 1,651 | K16: 850 | L16: 801 | O16: 2014 | P16: Northern | Q16: 1,305 | R16: 1,305 | S16: 853 | T16: 193.5% | U16: 51.5% | V16: 48.5%
B17: 2008-2012 | C17: Northern | G17: 97.5% | H17: 0.0% | I17: 100.0% | O17: 2008-2012 | P17: Northern | T17: 97.5% | U17: 0.0% | V17: 100.0%
B18: 2007-2012 | C18: Northern | G18: 97.3% | H18: 0.4% | I18: 99.6% | O18: 2007-2012 | P18: Northern | T18: 97.3% | U18: 0.4% | V18: 99.6%
B19: 2003-2012 | C19: Northern | G19: 93.5% | H19: 0.4% | I19: 99.6% | O19: 2003-2012 | P19: Northern | T19: 93.5% | U19: 0.3% | V19: 99.7%
B20: 2003 | C20: POP | D20: 2,700 | E20: 2,700 | F20: 2,124 | G20: 65.5% | H20: 0.7% | I20: 99.3% | J20: 1,391 | K20: 9 | L20: 1,381 | O20: 2003 | P20: POP | Q20: 2,700 | R20: 2,700 | S20: 2,124 | T20: 65.3% | U20: 0.3% | V20: 99.7%
B21: 2004 | C21: POP | D21: 2,520 | E21: 2,520 | F21: 2,196 | G21: 90.2% | H21: 0.1% | I21: 99.9% | J21: 1,981 | K21: 2 | L21: 1,979 | O21: 2004 | P21: POP | Q21: 2,520 | R21: 2,520 | S21: 2,196 | T21: 90.2% | U21: 0.1% | V21: 99.9%
B22: 2005 | C22: POP | D22: 2,567 | E22: 2,567 | F22: 2,338 | G22: 97.5% | H22: 0.0% | I22: 100.0% | J22: 2,279 | K22: 1 | L22: 2,278 | O22: 2005 | P22: POP | Q22: 2,567 | R22: 2,567 | S22: 2,338 | T22: 97.4% | U22: 0.0% | V22: 100.0%
B23: 2006 | C23: POP | D23: 4,155 | E23: 4,155 | F23: 4,051 | G23: 92.5% | H23: 0.4% | I23: 99.6% | J23: 3,748 | K23: 15 | L23: 3,734 | O23: 2006 | P23: POP | Q23: 4,155 | R23: 4,155 | S23: 4,051 | T23: 92.5% | U23: 0.3% | V23: 99.7%
B24: 2007 | C24: POP | D24: 4,244 | E24: 4,244 | F24: 4,430 | G24: 93.8% | H24: 1.1% | I24: 98.9% | J24: 4,154 | K24: 47 | L24: 4,107 | O24: 2007 | P24: POP | Q24: 4,244 | R24: 4,244 | S24: 4,430 | T24: 93.7% | U24: 1.1% | V24: 98.9%
B25: 2008 | C25: POP | D25: 3,686 | E25: 3,686 | F25: 3,678 | G25: 91.4% | H25: 6.9% | I25: 93.1% | J25: 3,362 | K25: 233 | L25: 3,129 | O25: 2008 | P25: POP | Q25: 3,686 | R25: 3,686 | S25: 3,678 | T25: 91.4% | U25: 6.9% | V25: 93.1%
B26: 2009 | C26: POP | D26: 3,713 | E26: 3,713 | F26: 3,804 | G26: 87.4% | H26: 0.0% | I26: 100.0% | J26: 3,326 | K26: 0 | L26: 3,325 | O26: 2009 | P26: POP | Q26: 3,713 | R26: 3,713 | S26: 3,804 | T26: 87.4% | U26: 0.0% | V26: 100.0%
B27: 2010 | C27: POP | D27: 2,895 | E27: 2,895 | F27: 3,141 | G27: 92.1% | H27: 0.0% | I27: 100.0% | J27: 2,893 | K27: 1 | L27: 2,892 | O27: 2010 | P27: POP | Q27: 2,895 | R27: 2,895 | S27: 3,141 | T27: 92.1% | U27: 0.0% | V27: 100.0%
B28: 2011 | C28: POP | D28: 2,798 | E28: 2,798 | F28: 1,819 | G28: 93.8% | H28: 0.4% | I28: 99.6% | J28: 1,706 | K28: 6 | L28: 1,699 | O28: 2011 | P28: POP | Q28: 2,798 | R28: 2,798 | S28: 1,819 | T28: 93.7% | U28: 0.3% | V28: 99.7%
B29: 2012 | C29: POP | D29: 2,102 | E29: 2,102 | F29: 2,452 | G29: 88.4% | H29: 0.0% | I29: 100.0% | J29: 2,167 | K29: 1 | L29: 2,166 | O29: 2012 | P29: POP | Q29: 2,102 | R29: 2,102 | S29: 2,452 | T29: 88.4% | U29: 0.0% | V29: 100.0%
B30: 2013 | C30: POP | D30: 2,040 | E30: 2,040 | F30: 447 | G30: 43.1% | H30: 0.2% | I30: 99.8% | J30: 193 | K30: 0 | L30: 192 | O30: 2013 | P30: POP | Q30: 2,040 | R30: 2,040 | S30: 447 | T30: 43.1% | U30: 0.0% | V30: 100.0%
B31: 2014 | C31: POP | D31: 2,399 | E31: 2,399 | F31: 2,096 | G31: 197.8% | H31: 51.1% | I31: 48.9% | J31: 4,145 | K31: 2,118 | L31: 2,028 | O31: 2014 | P31: POP | Q31: 2,399 | R31: 2,399 | S31: 2,096 | T31: 197.6% | U31: 51.0% | V31: 49.0%
B32: 2008-2012 | C32: POP | G32: 90.3% | H32: 1.8% | I32: 98.2% | O32: 2008-2012 | P32: POP | T32: 90.3% | U32: 1.8% | V32: 98.2%
B33: 2007-2012 | C33: POP | G33: 91.1% | H33: 1.6% | I33: 98.4% | O33: 2007-2012 | P33: POP | T33: 91.1% | U33: 1.6% | V33: 98.4%
B34: 2003-2012 | C34: POP | G34: 89.9% | H34: 1.2% | I34: 98.8% | O34: 2003-2012 | P34: POP | T34: 89.9% | U34: 1.1% | V34: 98.9%
B35: 2003 | C35: Pelagic Shelf | D35: 510 | E35: 510 | F35: 226 | G35: 91.5% | H35: 0.0% | I35: 100.0% | J35: 207 | K35: 0 | L35: 207 | O35: 2003 | P35: Pelagic Shelf | Q35: 510 | R35: 510 | S35: 226 | T35: 91.5% | U35: 0.0% | V35: 100.0%
B36: 2004 | C36: Pelagic Shelf | D36: 370 | E36: 370 | F36: 285 | G36: 71.4% | H36: 0.1% | I36: 99.9% | J36: 204 | K36: 0 | L36: 203 | O36: 2004 | P36: Pelagic Shelf | Q36: 370 | R36: 370 | S36: 285 | T36: 71.4% | U36: 0.0% | V36: 100.0%
B37: 2005 | C37: Pelagic Shelf | D37: 377 | E37: 377 | F37: 121 | G37: 86.6% | H37: 1.1% | I37: 98.9% | J37: 105 | K37: 1 | L37: 104 | O37: 2005 | P37: Pelagic Shelf | Q37: 377 | R37: 377 | S37: 121 | T37: 85.6% | U37: 0.0% | V37: 100.0%
B38: 2006 | C38: Pelagic Shelf | D38: 1,438 | E38: 1,438 | F38: 558 | G38: 80.5% | H38: 1.7% | I38: 98.3% | J38: 449 | K38: 8 | L38: 441 | O38: 2006 | P38: Pelagic Shelf | Q38: 1,438 | R38: 1,438 | S38: 558 | T38: 79.1% | U38: 0.0% | V38: 100.0%
B39: 2007 | C39: Pelagic Shelf | D39: 1,466 | E39: 1,466 | F39: 595 | G39: 94.1% | H39: 0.7% | I39: 99.3% | J39: 560 | K39: 4 | L39: 556 | O39: 2007 | P39: Pelagic Shelf | Q39: 1,466 | R39: 1,466 | S39: 595 | T39: 93.8% | U39: 0.5% | V39: 99.5%
B40: 2008 | C40: Pelagic Shelf | D40: 1,003 | E40: 1,003 | F40: 566 | G40: 97.4% | H40: 0.1% | I40: 99.9% | J40: 551 | K40: 0 | L40: 551 | O40: 2008 | P40: Pelagic Shelf | Q40: 1,003 | R40: 1,003 | S40: 566 | T40: 97.4% | U40: 0.0% | V40: 100.0%
B41: 2009 | C41: Pelagic Shelf | D41: 819 | E41: 819 | F41: 717 | G41: 94.5% | H41: 0.0% | I41: 100.0% | J41: 678 | K41: 0 | L41: 678 | O41: 2009 | P41: Pelagic Shelf | Q41: 819 | R41: 819 | S41: 717 | T41: 94.5% | U41: 0.0% | V41: 100.0%
B42: 2010 | C42: Pelagic Shelf | D42: 650 | E42: 650 | F42: 533 | G42: 96.5% | H42: 0.0% | I42: 100.0% | J42: 514 | K42: 0 | L42: 514 | O42: 2010 | P42: Pelagic Shelf | Q42: 650 | R42: 650 | S42: 533 | T42: 96.5% | U42: 0.0% | V42: 100.0%
B43: 2011 | C43: Pelagic Shelf | D43: 611 | E43: 611 | F43: 367 | G43: 93.8% | H43: 0.0% | I43: 100.0% | J43: 344 | K43: 0 | L43: 344 | O43: 2011 | P43: Pelagic Shelf | Q43: 611 | R43: 611 | S43: 367 | T43: 93.8% | U43: 0.0% | V43: 100.0%
B44: 2012 | C44: Dusky | D44: 409 | E44: 409 | F44: 435 | G44: 89.4% | H44: 0.1% | I44: 99.9% | J44: 389 | K44: 0 | L44: 389 | O44: 2012 | P44: Dusky | Q44: 409 | R44: 409 | S44: 435 | T44: 89.4% | U44: 0.0% | V44: 100.0%
B45: 2013 | C45: Dusky | D45: 377 | E45: 377 | F45: 217 | G45: 95.5% | H45: 0.0% | I45: 100.0% | J45: 207 | K45: 0 | L45: 207 | O45: 2013 | P45: Dusky | Q45: 377 | R45: 377 | S45: 217 | T45: 95.5% | U45: 0.0% | V45: 100.0%
B46: 2014 | C46: Dusky | D46: 317 | E46: 317 | F46: 139 | G46: 195.3% | H46: 57.5% | I46: 42.5% | J46: 271 | K46: 156 | L46: 115 | O46: 2014 | P46: Dusky | Q46: 317 | R46: 317 | S46: 139 | T46: 195.2% | U46: 57.5% | V46: 42.5%
B47: 2008-2012 | C47: Dusky/PS | G47: 94.6% | H47: 0.0% | I47: 100.0% | O47: 2008-2012 | P47: Dusky/PS | T47: 94.6% | U47: 0.0% | V47: 100.0%
B48: 2007-2012 | C48: Dusky/PS | G48: 94.5% | H48: 0.2% | I48: 99.8% | O48: 2007-2012 | P48: Dusky/PS | T48: 94.4% | U48: 0.1% | V48: 99.9%
B49: 2003-2012 | C49: Dusky/PS | G49: 90.9% | H49: 0.4% | I49: 99.6% | O49: 2003-2012 | P49: Dusky/PS | T49: 90.6% | U49: 0.1% | V49: 99.9%
B53: Year | C53: Species | D53: ABC | E53: TAC | F53: Total Catch | G53: Trawl (mt) | H53: % Trawl CV | I53: % Trawl CP | O53: Year | P53: Species | Q53: ABC | R53: TAC | S53: Total Catch | T53: Trawl (mt) | U53: % Trawl CV | V53: % Trawl CP
B54: 2003 | C54: Dusky | G54: 207 | H54: 0.0% | I54: 100.0% | O54: 2003 | P54: Dusky | T54: 207 | U54: 0.0% | V54: 100.0%
B55: 2004 | C55: Dusky | G55: 204 | H55: 0.1% | I55: 99.9% | O55: 2004 | P55: Dusky | T55: 203 | U55: 0.0% | V55: 100.0%
B56: 2005 | C56: Dusky | G56: 105 | H56: 1.1% | I56: 98.9% | O56: 2005 | P56: Dusky | T56: 104 | U56: 0.0% | V56: 100.0%
B57: 2006 | C57: Dusky | G57: 449 | H57: 1.7% | I57: 98.3% | O57: 2006 | P57: Dusky | T57: 441 | U57: 0.0% | V57: 100.0%
B58: 2007 | C58: Dusky | G58: 560 | H58: 0.7% | I58: 99.3% | O58: 2007 | P58: Dusky | T58: 558 | U58: 0.5% | V58: 99.5%
B59: 2008 | C59: Dusky | G59: 551 | H59: 0.1% | I59: 99.9% | O59: 2008 | P59: Dusky | T59: 551 | U59: 0.0% | V59: 100.0%
B60: 2009 | C60: Dusky | G60: 678 | H60: 0.0% | I60: 100.0% | O60: 2009 | P60: Dusky | T60: 678 | U60: 0.0% | V60: 100.0%
B61: 2010 | C61: Dusky | G61: 514 | H61: 0.0% | I61: 100.0% | O61: 2010 | P61: Dusky | T61: 514 | U61: 0.0% | V61: 100.0%
B62: 2011 | C62: Dusky | G62: 344 | H62: 0.0% | I62: 100.0% | O62: 2011 | P62: Dusky | T62: 344 | U62: 0.0% | V62: 100.0%
B63: 2012 | C63: Dusky | D63: 409 | E63: 409 | F63: 435 | G63: 389 | H63: 0.1% | I63: 99.9% | O63: 2012 | P63: Dusky | Q63: 409 | R63: 409 | S63: 435 | T63: 389 | U63: 0.0% | V63: 100.0%
B64: 2013 | C64: Dusky | D64: 377 | E64: 377 | F64: 217 | G64: 207 | H64: 0.0% | I64: 100.0% | O64: 2013 | P64: Dusky | Q64: 377 | R64: 377 | S64: 217 | T64: 207 | U64: 0.0% | V64: 100.0%
B65: 2014 | C65: Dusky | D65: 317 | E65: 317 | F65: 139 | G65: 2 | H65: 57.5% | I65: 42.5% | O65: 2014 | P65: Dusky | Q65: 317 | R65: 317 | S65: 139 | T65: 2 | U65: 57.5% | V65: 42.5%
B66: 2008-2012 | C66: Dusky | H66: 0.0% | I66: 100.0% | O66: 2008-2012 | P66: Dusky | U66: 0.0% | V66: 100.0%
B67: 2007-2012 | C67: Dusky | H67: 0.2% | I67: 99.8% | O67: 2007-2012 | P67: Dusky | U67: 0.1% | V67: 99.9%
B68: 2003-2012 | C68: Dusky | H68: 0.4% | I68: 99.6% | O68: 2003-2012 | P68: Dusky | U68: 0.1% | V68: 99.9%

Sheet Rockfish WY
B2: Rockfish for the West Yakutat District
B3: Rockfish (West Yakutat only): retained catch in all target fisheries- includes fish used to produce fish meal | O3: Rockfish (West Yakutat only): retained catch in all target fisheries - excludes catch used to produce fish meal
C4: Allocation Species | F4: Total | G4: Retained Catch % | J4: Retained Catch (mt) | P4: Allocation Species | S4: Total | T4: Retained Catch %
B5: Year | D5: ABC | E5: TAC | F5: Catch | G5: Trawl | H5: Trawl CV | I5: Trawl CP | J5: Trawl | K5: Trawl CV | L5: Trawl CP | O5: Year | Q5: ABC | R5: TAC | S5: Catch | T5: Trawl | U5: Trawl CV | V5: Trawl CP
B6: 2003 | C6: POP | D6: 810 | E6: 810 | F6: 606 | G6: 99.6% | H6: 2.1% | I6: 97.9% | J6: 604 | K6: 12 | L6: 591 | O6: 2003 | P6: POP | Q6: 810 | R6: 810 | S6: 606 | T6: 99.6% | U6: 2.1% | V6: 97.9%
B7: 2004 | C7: POP | D7: 830 | E7: 830 | F7: 877 | G7: 97.8% | H7: 0.5% | I7: 99.5% | J7: 858 | K7: 5 | L7: 853 | O7: 2004 | P7: POP | Q7: 830 | R7: 830 | S7: 877 | T7: 97.8% | U7: 0.5% | V7: 99.5%
B8: 2005 | C8: POP | D8: 841 | E8: 841 | F8: 846 | G8: 96.9% | H8: 3.6% | I8: 96.4% | J8: 820 | K8: 30 | L8: 790 | O8: 2005 | P8: POP | Q8: 841 | R8: 841 | S8: 846 | T8: 96.8% | U8: 3.6% | V8: 96.4%
B9: 2006 | C9: POP | D9: 1,101 | E9: 1,101 | F9: 1,259 | G9: 98.4% | H9: 30.8% | I9: 69.2% | J9: 1,239 | K9: 381 | L9: 858 | O9: 2006 | P9: POP | Q9: 1,101 | R9: 1,101 | S9: 1,259 | T9: 97.7% | U9: 30.3% | V9: 69.7%
B10: 2007 | C10: POP | D10: 1,140 | E10: 1,140 | F10: 1,242 | G10: 93.2% | H10: 25.8% | I10: 74.2% | J10: 1,158 | K10: 298 | L10: 859 | O10: 2007 | P10: POP | Q10: 1,140 | R10: 1,140 | S10: 1,242 | T10: 93.2% | U10: 25.7% | V10: 74.3%
B11: 2008 | C11: POP | D11: 1,100 | E11: 1,100 | F11: 1,100 | G11: 100.0% | H11: 33.5% | I11: 66.5% | J11: 1,100 | K11: 368 | L11: 731 | O11: 2008 | P11: POP | Q11: 1,100 | R11: 1,100 | S11: 1,100 | T11: 99.7% | U11: 33.3% | V11: 66.7%
B12: 2009 | C12: POP | D12: 1,108 | E12: 1,108 | F12: 1,148 | G12: 96.3% | H12: 1.6% | I12: 98.4% | J12: 1,105 | K12: 17 | L12: 1,088 | O12: 2009 | P12: POP | Q12: 1,108 | R12: 1,108 | S12: 1,148 | T12: 96.2% | U12: 1.5% | V12: 98.5%
B13: 2010 | C13: POP | D13: 2,004 | E13: 2,004 | F13: 1,926 | G13: 99.2% | H13: 31.6% | I13: 68.4% | J13: 1,910 | K13: 604 | L13: 1,306 | O13: 2010 | P13: POP | Q13: 2,004 | R13: 2,004 | S13: 1,926 | T13: 98.8% | U13: 31.4% | V13: 68.6%
B14: 2011 | C14: POP | D14: 1,937 | E14: 1,937 | F14: 1,870 | G14: 98.0% | H14: 33.1% | I14: 66.9% | J14: 1,833 | K14: 606 | L14: 1,227 | O14: 2011 | P14: POP | Q14: 1,937 | R14: 1,937 | S14: 1,870 | T14: 97.7% | U14: 32.8% | V14: 67.2%
B15: 2012 | C15: POP | D15: 1,692 | E15: 1,692 | F15: 1,682 | G15: 90.4% | H15: 18.4% | I15: 81.6% | J15: 1,520 | K15: 280 | L15: 1,241 | O15: 2012 | P15: POP | Q15: 1,692 | R15: 1,692 | S15: 1,682 | T15: 90.3% | U15: 18.3% | V15: 81.7%
B16: 2013 | C16: POP | D16: 1,641 | E16: 1,641 | F16: 1,537 | G16: 99.8% | H16: 3.9% | I16: 96.1% | J16: 1,534 | K16: 60 | L16: 1,475 | O16: 2013 | P16: POP | Q16: 1,641 | R16: 1,641 | S16: 1,537 | T16: 99.6% | U16: 3.7% | V16: 96.3%
B17: 2014 | C17: POP | D17: 1,931 | E17: 1,931 | F17: 1,870 | G17: 198.5% | H17: 52.0% | I17: 48.0% | J17: 3,711 | K17: 1,929 | L17: 1,783 | O17: 2014 | P17: POP | Q17: 1,931 | R17: 1,931 | S17: 1,870 | T17: 198.4% | U17: 52.0% | V17: 48.0%
B18: 2008-2012 | C18: POP | G18: 96.7% | H18: 25.1% | I18: 74.9% | O18: 2008-2012 | P18: POP | T18: 96.4% | U18: 24.9% | V18: 75.1%
B19: 2007-2012 | C19: POP | G19: 96.2% | H19: 25.2% | I19: 74.8% | O19: 2007-2012 | P19: POP | T19: 96.0% | U19: 25.1% | V19: 74.9%
B20: 2003-2012 | C20: POP | G20: 96.7% | H20: 21.4% | I20: 78.6% | O20: 2003-2012 | P20: POP | T20: 96.5% | U20: 21.3% | V20: 78.7%
B21: 2003 | C21: Pelagic Shelf | D21: 640 | E21: 640 | F21: 607 | G21: 99.8% | H21: 0.0% | I21: 100.0% | J21: 606 | K21: 0 | L21: 606 | O21: 2003 | P21: Pelagic Shelf | Q21: 640 | R21: 640 | S21: 607 | T21: 99.8% | U21: 0.0% | V21: 100.0%
B22: 2004 | C22: Pelagic Shelf | D22: 210 | E22: 210 | F22: 199 | G22: 99.6% | H22: 0.0% | I22: 100.0% | J22: 198 | K22: 0 | L22: 198 | O22: 2004 | P22: Pelagic Shelf | Q22: 210 | R22: 210 | S22: 199 | T22: 99.6% | U22: 0.0% | V22: 100.0%
B23: 2005 | C23: Pelagic Shelf | D23: 211 | E23: 211 | F23: 215 | G23: 99.7% | H23: 0.0% | I23: 100.0% | J23: 214 | K23: 0 | L23: 214 | O23: 2005 | P23: Pelagic Shelf | Q23: 211 | R23: 211 | S23: 215 | T23: 99.7% | U23: 0.0% | V23: 100.0%
B24: 2006 | C24: Pelagic Shelf | D24: 301 | E24: 301 | F24: 173 | G24: 96.6% | H24: 1.7% | I24: 98.3% | J24: 167 | K24: 3 | L24: 164 | O24: 2006 | P24: Pelagic Shelf | Q24: 301 | R24: 301 | S24: 173 | T24: 96.5% | U24: 1.6% | V24: 98.4%
B25: 2007 | C25: Pelagic Shelf | D25: 307 | E25: 307 | F25: 293 | G25: 99.6% | H25: 4.9% | I25: 95.1% | J25: 292 | K25: 14 | L25: 278 | O25: 2007 | P25: Pelagic Shelf | Q25: 307 | R25: 307 | S25: 293 | T25: 99.6% | U25: 4.9% | V25: 95.1%
B26: 2008 | C26: Pelagic Shelf | D26: 251 | E26: 251 | F26: 195 | G26: 100.0% | H26: 22.4% | I26: 77.6% | J26: 195 | K26: 44 | L26: 151 | O26: 2008 | P26: Pelagic Shelf | Q26: 251 | R26: 251 | S26: 195 | T26: 100.0% | U26: 22.4% | V26: 77.6%
B27: 2009 | C27: Pelagic Shelf | D27: 234 | E27: 234 | F27: 177 | G27: 99.7% | H27: 0.0% | I27: 100.0% | J27: 176 | K27: 0 | L27: 176 | O27: 2009 | P27: Pelagic Shelf | Q27: 234 | R27: 234 | S27: 177 | T27: 99.7% | U27: 0.0% | V27: 100.0%
B28: 2010 | C28: Pelagic Shelf | D28: 434 | E28: 434 | F28: 75 | G28: 92.1% | H28: 3.5% | I28: 96.5% | J28: 69 | K28: 2 | L28: 67 | O28: 2010 | P28: Pelagic Shelf | Q28: 434 | R28: 434 | S28: 75 | T28: 91.9% | U28: 3.4% | V28: 96.6%
B29: 2011 | C29: Pelagic Shelf | D29: 407 | E29: 407 | F29: 58 | G29: 96.7% | H29: 5.4% | I29: 94.6% | J29: 56 | K29: 3 | L29: 53 | O29: 2011 | P29: Pelagic Shelf | Q29: 407 | R29: 407 | S29: 58 | T29: 96.7% | U29: 5.4% | V29: 94.6%
B30: 2012 | C30: Dusky | D30: 542 | E30: 542 | F30: 2 | G30: 75.3% | H30: 62.7% | I30: 37.3% | J30: 1 | K30: 1 | L30: 1 | O30: 2012 | P30: Dusky | Q30: 542 | R30: 542 | S30: 2 | T30: 75.1% | U30: 62.6% | V30: 37.4%
B31: 2013 | C31: Dusky | D31: 495 | E31: 495 | F31: 4 | G31: 39.8% | H31: 0.7% | I31: 99.3% | J31: 2 | K31: 0 | L31: 2 | O31: 2013 | P31: Dusky | Q31: 495 | R31: 495 | S31: 4 | T31: 39.8% | U31: 0.7% | V31: 99.3%
B32: 2014 | C32: Dusky | D32: 1,384 | E32: 1,384 | F32: 87 | G32: 207.6% | H32: 54.0% | I32: 46.0% | J32: 181 | K32: 98 | L32: 83 | O32: 2014 | P32: Dusky | Q32: 1,384 | R32: 1,384 | S32: 87 | T32: 207.6% | U32: 54.0% | V32: 46.0%
B33: 2008-2012 | C33: Dusky/PS | G33: 98.2% | H33: 10.0% | I33: 90.0% | O33: 2008-2012 | P33: Dusky/PS | T33: 98.2% | U33: 10.0% | V33: 90.0%
B34: 2007-2012 | C34: Dusky/PS | G34: 98.7% | H34: 8.1% | I34: 91.9% | O34: 2007-2012 | P34: Dusky/PS | T34: 98.7% | U34: 8.1% | V34: 91.9%
B35: 2003-2012 | C35: Dusky/PS | G35: 99.1% | H35: 3.4% | I35: 96.6% | O35: 2003-2012 | P35: Dusky/PS | T35: 99.1% | U35: 3.4% | V35: 96.6%

Sheet Secondary Rockfish
B2: Other rockfish: retained catch in all target fisheries- includes fish used to produce fish meal | O2: Other Rockfish: retained catch in all target fisheries - excludes catch used to produce fish meal
C3: Allocation Area | F3: Total | G3: Retained Catch % | J3: Retained Catch (mt) | P3: Allocation Area | S3: Total | T3: Retained Catch %
B4: Year | D4: ABC | E4: TAC | F4: Catch | G4: Trawl | H4: Trawl CV | I4: Trawl CP | J4: Trawl | K4: Trawl CV | L4: Trawl CP | O4: Year | Q4: ABC | R4: TAC | S4: Catch | T4: Trawl | U4: Trawl CV | V4: Trawl CP
B5: 2003 | C5: CG | D5: 550 | E5: 550 | F5: 704 | G5: 26.0% | H5: 20.5% | I5: 79.5% | J5: 183 | K5: 37 | L5: 146 | O5: 2003 | P5: CG | Q5: 550 | R5: 550 | S5: 704 | T5: 20.7% | U5: 0.1% | V5: 99.9%
B6: 2004 | C6: CG | D6: 300 | E6: 300 | F6: 536 | G6: 35.8% | H6: 23.1% | I6: 76.9% | J6: 192 | K6: 44 | L6: 148 | O6: 2004 | P6: CG | Q6: 300 | R6: 300 | S6: 536 | T6: 28.0% | U6: 1.7% | V6: 98.3%
B7: 2005 | C7: CG | D7: 300 | E7: 300 | F7: 517 | G7: 62.8% | H7: 14.7% | I7: 85.3% | J7: 325 | K7: 48 | L7: 277 | O7: 2005 | P7: CG | Q7: 300 | R7: 300 | S7: 517 | T7: 62.7% | U7: 14.6% | V7: 85.4%
B8: 2006 | C8: CG | D8: 386 | E8: 386 | F8: 612 | G8: 25.6% | H8: 23.0% | I8: 77.0% | J8: 157 | K8: 36 | L8: 120 | O8: 2006 | P8: CG | Q8: 386 | R8: 386 | S8: 612 | T8: 20.0% | U8: 1.7% | V8: 98.3%
B9: 2007 | C9: CG | D9: 386 | E9: 386 | F9: 344 | G9: 33.9% | H9: 29.7% | I9: 70.3% | J9: 117 | K9: 35 | L9: 82 | O9: 2007 | P9: CG | Q9: 386 | R9: 386 | S9: 344 | T9: 25.8% | U9: 7.8% | V9: 92.2%
B10: 2008 | C10: CG | D10: 569 | E10: 569 | F10: 439 | G10: 24.6% | H10: 66.7% | I10: 33.3% | J10: 108 | K10: 72 | L10: 36 | O10: 2008 | P10: CG | Q10: 569 | R10: 569 | S10: 439 | T10: 12.4% | U10: 33.7% | V10: 66.3%
B11: 2009 | C11: CG | D11: 569 | E11: 569 | F11: 398 | G11: 35.1% | H11: 42.0% | I11: 58.0% | J11: 140 | K11: 59 | L11: 81 | O11: 2009 | P11: CG | Q11: 569 | R11: 569 | S11: 398 | T11: 21.7% | U11: 6.4% | V11: 93.6%
B12: 2010 | C12: CG | D12: 507 | E12: 507 | F12: 420 | G12: 34.9% | H12: 46.8% | I12: 53.2% | J12: 147 | K12: 69 | L12: 78 | O12: 2010 | P12: CG | Q12: 507 | R12: 507 | S12: 420 | T12: 23.5% | U12: 20.9% | V12: 79.1%
B13: 2011 | C13: CG | D13: 507 | E13: 507 | F13: 355 | G13: 44.2% | H13: 25.7% | I13: 74.3% | J13: 157 | K13: 40 | L13: 117 | O13: 2011 | P13: CG | Q13: 507 | R13: 507 | S13: 355 | T13: 35.4% | U13: 7.2% | V13: 92.8%
B14: 2012 | C14: CG | D14: 606 | E14: 606 | F14: 723 | G14: 36.0% | H14: 30.3% | I14: 69.7% | J14: 260 | K14: 79 | L14: 181 | O14: 2012 | P14: CG | Q14: 606 | R14: 606 | S14: 723 | T14: 27.0% | U14: 7.1% | V14: 92.9%
B15: 2013 | C15: CG | D15: 606 | E15: 606 | F15: 475 | G15: 23.3% | H15: 69.5% | I15: 30.5% | J15: 111 | K15: 77 | L15: 34 | O15: 2013 | P15: CG | Q15: 606 | R15: 606 | S15: 475 | T15: 9.7% | U15: 26.6% | V15: 73.4%
B16: 2014* | C16: WG&CG | D16: 1,031 | E16: 1,031 | F16: 888 | G16: 61.8% | H16: 53.6% | I16: 46.4% | J16: 549 | K16: 294 | L16: 255 | O16: 2014* | P16: WG&CG | Q16: 1,031 | R16: 1,031 | S16: 888 | T16: 48.4% | U16: 40.7% | V16: 59.3%
B17: 2008-2012 | C17: CG | G17: 34.8% | H17: 39.2% | I17: 60.8% | O17: 2008-2012 | P17: CG | T17: 24.0% | U17: 12.0% | V17: 88.0%
B18: 2007-2012 | C18: CG | G18: 34.6% | H18: 38.1% | I18: 61.9% | O18: 2007-2012 | P18: CG | T18: 24.2% | U18: 11.4% | V18: 88.6%
B19: 2003-2012 | C19: CG | G19: 35.3% | H19: 29.1% | I19: 70.9% | O19: 2003-2012 | P19: CG | T19: 27.6% | U19: 9.1% | V19: 90.9%
B20: 2003 | C20: WG | D20: 90 | E20: 90 | F20: 183 | G20: 49.2% | H20: 0.0% | I20: 100.0% | J20: 90 | K20: 0 | L20: 90 | O20: 2003 | P20: WG | Q20: 90 | R20: 90 | S20: 183 | T20: 49.2% | U20: 0.0% | V20: 100.0%
B21: 2004 | C21: WG | D21: 40 | E21: 40 | F21: 245 | G21: 36.1% | H21: 0.0% | I21: 100.0% | J21: 88 | K21: 0 | L21: 88 | O21: 2004 | P21: WG | Q21: 40 | R21: 40 | S21: 245 | T21: 36.1% | U21: 0.0% | V21: 100.0%
B22: 2005 | C22: WG | D22: 40 | E22: 40 | F22: 92 | G22: 49.1% | H22: 0.0% | I22: 100.0% | J22: 45 | K22: 0 | L22: 45 | O22: 2005 | P22: WG | Q22: 40 | R22: 40 | S22: 92 | T22: 49.1% | U22: 0.0% | V22: 100.0%
B23: 2006 | C23: WG | D23: 577 | E23: 577 | F23: 304 | G23: 20.7% | H23: 0.0% | I23: 100.0% | J23: 63 | K23: 0 | L23: 63 | O23: 2006 | P23: WG | Q23: 577 | R23: 577 | S23: 304 | T23: 20.7% | U23: 0.0% | V23: 100.0%
B24: 2007 | C24: WG | D24: 577 | E24: 577 | F24: 251 | G24: 65.2% | H24: 0.9% | I24: 99.1% | J24: 164 | K24: 1 | L24: 162 | O24: 2007 | P24: WG | Q24: 577 | R24: 577 | S24: 251 | T24: 64.6% | U24: 0.0% | V24: 100.0%
B25: 2008 | C25: WG | D25: 357 | E25: 357 | F25: 300 | G25: 28.8% | H25: 0.0% | I25: 100.0% | J25: 87 | K25: 0 | L25: 87 | O25: 2008 | P25: WG | Q25: 357 | R25: 357 | S25: 300 | T25: 28.8% | U25: 0.0% | V25: 100.0%
B26: 2009 | C26: WG | D26: 357 | E26: 357 | F26: 403 | G26: 26.6% | H26: 0.0% | I26: 100.0% | J26: 107 | K26: 0 | L26: 107 | O26: 2009 | P26: WG | Q26: 357 | R26: 357 | S26: 403 | T26: 26.6% | U26: 0.0% | V26: 100.0%
B27: 2010 | C27: WG | D27: 212 | E27: 212 | F27: 364 | G27: 15.1% | H27: 0.2% | I27: 99.8% | J27: 55 | K27: 0 | L27: 55 | O27: 2010 | P27: WG | Q27: 212 | R27: 212 | S27: 364 | T27: 15.1% | U27: 0.0% | V27: 100.0%
B28: 2011 | C28: WG | D28: 212 | E28: 212 | F28: 300 | G28: 18.2% | H28: 0.0% | I28: 100.0% | J28: 55 | K28: 0 | L28: 55 | O28: 2011 | P28: WG | Q28: 212 | R28: 212 | S28: 300 | T28: 18.2% | U28: 0.0% | V28: 100.0%
B29: 2012 | C29: WG | D29: 44 | E29: 44 | F29: 255 | G29: 27.7% | H29: 0.0% | I29: 100.0% | J29: 71 | K29: 0 | L29: 71 | O29: 2012 | P29: WG | Q29: 44 | R29: 44 | S29: 255 | T29: 27.7% | U29: 0.0% | V29: 100.0%
B30: 2013 | C30: WG | D30: 44 | E30: 44 | F30: 201 | G30: 9.7% | H30: 0.0% | I30: 100.0% | J30: 20 | K30: 0 | L30: 20 | O30: 2013 | P30: WG | Q30: 44 | R30: 44 | S30: 201 | T30: 9.7% | U30: 0.0% | V30: 100.0%
B31: 2014* | C31: WG&CG | D31: 1,031 | E31: 1,031 | F31: 888 | G31: 61.8% | H31: 53.6% | I31: 46.4% | J31: 549 | K31: 294 | L31: 255 | O31: 2014* | P31: WG&CG | Q31: 1,031 | R31: 1,031 | S31: 888 | T31: 48.4% | U31: 40.7% | V31: 59.3%
B32: 2008-2012 | C32: WG | G32: 23.0% | H32: 0.0% | I32: 100.0% | O32: 2008-2012 | P32: WG | T32: 23.0% | U32: 0.0% | V32: 100.0%
B33: 2007-2012 | C33: WG | G33: 28.7% | H33: 0.3% | I33: 99.7% | O33: 2007-2012 | P33: WG | T33: 28.6% | U33: 0.0% | V33: 100.0%
B34: 2003-2012 | C34: WG | G34: 30.6% | H34: 0.2% | I34: 99.8% | O34: 2003-2012 | P34: WG | T34: 30.5% | U34: 0.0% | V34: 100.0%
B35: Western and Central GOA ABC and TAC combined in 2014, if allocated may need to have separate allocations of CG and WG.
B37: Rougheye/blackspotted Rockfish: retained catch in all target fisheries- includes fish used to produce fish meal | O37: Rougheye/blackspotted Rockfish: retained catch in all target fisheries - excludes catch used to produce fish meal
C38: Allocation Area | F38: Total | G38: Retained Catch % | J38: Retained Catch (mt) | P38: Allocation Area | S38: Total | T38: Retained Catch
B39: Year | D39: ABC | E39: TAC | F39: Catch | G39: Trawl | H39: Trawl CV | I39: Trawl CP | J39: Trawl | K39: Trawl CV | L39: Trawl CP | O39: Year | Q39: ABC | R39: TAC | S39: Catch | T39: %Trawl | U39: % Trawl CV | V39: % Trawl CP
B40: 2003 | C40: WG | D40: Combined with Shortraker | H40: 0.0% | I40: 100.0% | O40: 2003 | P40: WG | Q40: Combined with Shortraker | U40: 0.0% | V40: 100.0%
B41: 2004 | C41: WG | D41: Combined with Shortraker | H41: 0.0% | I41: 100.0% | O41: 2004 | P41: WG | Q41: Combined with Shortraker | U41: 0.0% | V41: 100.0%
B42: 2005 | C42: WG | D42: 188 | E42: 188 | F42: 53 | G42: 70.7% | H42: 0.0% | I42: 100.0% | J42: 37 | K42: 0 | L42: 37 | O42: 2005 | P42: WG | Q42: 188 | R42: 188 | S42: 53 | T42: 70.7% | U42: 0.0% | V42: 100.0%
B43: 2006 | C43: WG | D43: 136 | E43: 136 | F43: 58 | G43: 56.5% | H43: 0.1% | I43: 99.9% | J43: 33 | K43: 0 | L43: 33 | O43: 2006 | P43: WG | Q43: 136 | R43: 136 | S43: 58 | T43: 56.5% | U43: 0.1% | V43: 99.9%
B44: 2007 | C44: WG | D44: 136 | E44: 136 | F44: 71 | G44: 68.5% | H44: 0.7% | I44: 99.3% | J44: 49 | K44: 0 | L44: 48 | O44: 2007 | P44: WG | Q44: 136 | R44: 136 | S44: 71 | T44: 68.5% | U44: 0.7% | V44: 99.3%
B45: 2008 | C45: WG | D45: 125 | E45: 125 | F45: 77 | G45: 62.1% | H45: 0.3% | I45: 99.7% | J45: 48 | K45: 0 | L45: 48 | O45: 2008 | P45: WG | Q45: 125 | R45: 125 | S45: 77 | T45: 62.1% | U45: 0.3% | V45: 99.7%
B46: 2009 | C46: WG | D46: 125 | E46: 125 | F46: 77 | G46: 71.0% | H46: 0.1% | I46: 99.9% | J46: 55 | K46: 0 | L46: 55 | O46: 2009 | P46: WG | Q46: 125 | R46: 125 | S46: 77 | T46: 71.0% | U46: 0.1% | V46: 99.9%
B47: 2010 | C47: WG | D47: 80 | E47: 80 | F47: 91 | G47: 61.7% | H47: 0.4% | I47: 99.6% | J47: 56 | K47: 0 | L47: 56 | O47: 2010 | P47: WG | Q47: 80 | R47: 80 | S47: 91 | T47: 61.2% | U47: 0.4% | V47: 99.6%
B48: 2011 | C48: WG | D48: 81 | E48: 81 | F48: 25 | G48: 62.2% | H48: 1.8% | I48: 98.2% | J48: 16 | K48: 0 | L48: 15 | O48: 2011 | P48: WG | Q48: 81 | R48: 81 | S48: 25 | T48: 62.2% | U48: 1.8% | V48: 98.2%
B49: 2012 | C49: WG | D49: 80 | E49: 80 | F49: 29 | G49: 62.4% | H49: 4.7% | I49: 95.3% | J49: 18 | K49: 1 | L49: 17 | O49: 2012 | P49: WG | Q49: 80 | R49: 80 | S49: 29 | T49: 62.4% | U49: 4.7% | V49: 95.3%
B50: 2013 | C50: WG | D50: 81 | E50: 81 | F50: 15 | G50: 14.5% | H50: 2.8% | I50: 97.2% | J50: 2 | K50: 0 | L50: 2 | O50: 2013 | P50: WG | Q50: 81 | R50: 81 | S50: 15 | T50: 14.5% | U50: 2.8% | V50: 97.2%
B51: 2014 | C51: WG | D51: 82 | E51: 82 | F51: 26 | G51: 81.1% | H51: 38.4% | I51: 61.6% | J51: 21 | K51: 8 | L51: 13 | O51: 2014 | P51: WG | Q51: 82 | R51: 82 | S51: 26 | T51: 76.4% | U51: 34.6% | V51: 65.4%
B52: 2008-2012 | C52: WG | G52: 64.1% | H52: 0.8% | I52: 99.2% | O52: 2008-2012 | P52: WG | T52: 64.1% | U52: 0.8% | V52: 99.2%
B53: 2007-2012 | C53: WG | G53: 65.0% | H53: 0.8% | I53: 99.2% | O53: 2007-2012 | P53: WG | T53: 65.0% | U53: 0.8% | V53: 99.2%
B54: 2003-2012 | C54: WG | G54: n/a | H54: n/a | I54: n/a | O54: 2003-2012 | P54: WG | T54: n/a | U54: n/a | V54: n/a
B55: 2003 | C55: CG | D55: Combined with Shortraker | H55: 44.6% | I55: 55.4% | O55: 2003 | P55: CG | Q55: Combined with Shortraker | U55: 44.6% | V55: 55.4%
B56: 2004 | C56: CG | D56: Combined with Shortraker | H56: 52.5% | I56: 47.5% | O56: 2004 | P56: CG | Q56: Combined with Shortraker | U56: 52.5% | V56: 47.5%
B57: 2005 | C57: CG | D57: 557 | E57: 557 | F57: 126 | G57: 53.8% | H57: 32.3% | I57: 67.7% | J57: 68 | K57: 22 | L57: 46 | O57: 2005 | P57: CG | Q57: 557 | R57: 557 | S57: 126 | T57: 52.9% | U57: 31.2% | V57: 68.8%
B58: 2006 | C58: CG | D58: 608 | E58: 608 | F58: 140 | G58: 54.8% | H58: 76.7% | I58: 23.3% | J58: 77 | K58: 59 | L58: 18 | O58: 2006 | P58: CG | Q58: 608 | R58: 608 | S58: 140 | T58: 54.0% | U58: 76.4% | V58: 23.6%
B59: 2007 | C59: CG | D59: 611 | E59: 611 | F59: 194 | G59: 34.1% | H59: 64.4% | I59: 35.6% | J59: 66 | K59: 43 | L59: 24 | O59: 2007 | P59: CG | Q59: 611 | R59: 611 | S59: 194 | T59: 34.1% | U59: 64.3% | V59: 35.7%
B60: 2008 | C60: CG | D60: 834 | E60: 834 | F60: 192 | G60: 35.6% | H60: 70.3% | I60: 29.7% | J60: 68 | K60: 48 | L60: 20 | O60: 2008 | P60: CG | Q60: 834 | R60: 834 | S60: 192 | T60: 33.5% | U60: 68.5% | V60: 31.5%
B61: 2009 | C61: CG | D61: 833 | E61: 833 | F61: 99 | G61: 37.0% | H61: 50.8% | I61: 49.2% | J61: 37 | K61: 19 | L61: 18 | O61: 2009 | P61: CG | Q61: 833 | R61: 833 | S61: 99 | T61: 36.6% | U61: 50.3% | V61: 49.7%
B62: 2010 | C62: CG | D62: 862 | E62: 862 | F62: 216 | G62: 26.6% | H62: 42.6% | I62: 57.4% | J62: 58 | K62: 24 | L62: 33 | O62: 2010 | P62: CG | Q62: 862 | R62: 862 | S62: 216 | T62: 26.0% | U62: 41.2% | V62: 58.8%
B63: 2011 | C63: CG | D63: 868 | E63: 868 | F63: 367 | G63: 15.1% | H63: 36.9% | I63: 63.1% | J63: 56 | K63: 20 | L63: 35 | O63: 2011 | P63: CG | Q63: 868 | R63: 868 | S63: 367 | T63: 14.7% | U63: 35.0% | V63: 65.0%
B64: 2012 | C64: CG | D64: 850 | E64: 850 | F64: 376 | G64: 11.5% | H64: 49.0% | I64: 51.0% | J64: 43 | K64: 21 | L64: 22 | O64: 2012 | P64: CG | Q64: 850 | R64: 850 | S64: 376 | T64: 10.9% | U64: 46.0% | V64: 54.0%
B65: 2013 | C65: CG | D65: 856 | E65: 856 | F65: 388 | G65: 9.6% | H65: 44.3% | I65: 55.7% | J65: 37 | K65: 16 | L65: 21 | O65: 2013 | P65: CG | Q65: 856 | R65: 856 | S65: 388 | T65: 9.4% | U65: 43.6% | V65: 56.4%
B66: 2014 | C66: CG | D66: 864 | E66: 864 | F66: 540 | G66: 10.5% | H66: 52.7% | I66: 47.3% | J66: 57 | K66: 30 | L66: 27 | O66: 2014 | P66: CG | Q66: 864 | R66: 864 | S66: 540 | T66: 10.3% | U66: 51.9% | V66: 48.1%
B67: 2008-2012 | C67: CG | G67: 20.9% | H67: 50.8% | I67: 49.2% | O67: 2008-2012 | P67: CG | T67: 20.1% | U67: 48.9% | V67: 51.1%
B68: 2007-2012 | C68: CG | G68: 22.7% | H68: 53.6% | I68: 46.4% | O68: 2007-2012 | P68: CG | T68: 22.0% | U68: 52.1% | V68: 47.9%
B69: 2003-2012 | C69: CG | G69: n/a | H69: n/a | I69: n/a | O69: 2003-2012 | P69: CG | T69: n/a | U69: n/a | V69: n/a
B72: Shortraker Rockfish: retained catch in all target fisheries- includes fish used to produce fish meal | O72: Shortraker Rockfish: retained catch in all target fisheries- excludes fish used to produce fish meal
C73: Allocation Area | F73: Total | G73: Retained Catch % | J73: Retained Catch (mt) | P73: Allocation Area | S73: Total | T73: Retained Catch %
B74: Year | D74: ABC | E74: TAC | F74: Catch | G74: Trawl | H74: Trawl CV | I74: Trawl CP | J74: Trawl | K74: Trawl CV | L74: Trawl CP | O74: Year | Q74: ABC | R74: TAC | S74: Catch | T74: Trawl | U74: Trawl CV | V74: Trawl CP
B75: 2003 | C75: WG | D75: combined with rougheye | H75: 0.0% | I75: 100.0% | O75: 2003 | P75: WG | Q75: combined with rougheye | U75: 0.0% | V75: 100.0%
B76: 2004 | C76: WG | D76: combined with rougheye | H76: 0.0% | I76: 100.0% | O76: 2004 | P76: WG | Q76: combined with rougheye | U76: 0.0% | V76: 100.0%
B77: 2005 | C77: WG | D77: 155 | E77: 155 | F77: 71 | G77: 48.8% | H77: 0.0% | I77: 100.0% | J77: 35 | K77: 0 | L77: 35 | O77: 2005 | P77: WG | Q77: 155 | R77: 155 | S77: 71 | T77: 48.8% | U77: 0.0% | V77: 100.0%
B78: 2006 | C78: WG | D78: 153 | E78: 153 | F78: 91 | G78: 56.1% | H78: 0.0% | I78: 100.0% | J78: 51 | K78: 0 | L78: 51 | O78: 2006 | P78: WG | Q78: 153 | R78: 153 | S78: 91 | T78: 56.1% | U78: 0.0% | V78: 100.0%
B79: 2007 | C79: WG | D79: 153 | E79: 153 | F79: 195 | G79: 83.5% | H79: 0.1% | I79: 99.9% | J79: 163 | K79: 0 | L79: 163 | O79: 2007 | P79: WG | Q79: 153 | R79: 153 | S79: 195 | T79: 83.4% | U79: 0.0% | V79: 100.0%
B80: 2008 | C80: WG | D80: 120 | E80: 120 | F80: 131 | G80: 74.4% | H80: 0.0% | I80: 100.0% | J80: 97 | K80: 0 | L80: 97 | O80: 2008 | P80: WG | Q80: 120 | R80: 120 | S80: 131 | T80: 74.4% | U80: 0.0% | V80: 100.0%
B81: 2009 | C81: WG | D81: 120 | E81: 120 | F81: 157 | G81: 63.4% | H81: 0.0% | I81: 100.0% | J81: 100 | K81: 0 | L81: 100 | O81: 2009 | P81: WG | Q81: 120 | R81: 120 | S81: 157 | T81: 63.4% | U81: 0.0% | V81: 100.0%
B82: 2010 | C82: WG | D82: 134 | E82: 134 | F82: 80 | G82: 34.3% | H82: 0.2% | I82: 99.8% | J82: 27 | K82: 0 | L82: 27 | O82: 2010 | P82: WG | Q82: 134 | R82: 134 | S82: 80 | T82: 34.3% | U82: 0.0% | V82: 100.0%
B83: 2011 | C83: WG | D83: 134 | E83: 134 | F83: 81 | G83: 64.3% | H83: 0.0% | I83: 100.0% | J83: 52 | K83: 0 | L83: 52 | O83: 2011 | P83: WG | Q83: 134 | R83: 134 | S83: 81 | T83: 64.3% | U83: 0.0% | V83: 100.0%
B84: 2012 | C84: WG | D84: 104 | E84: 104 | F84: 91 | G84: 60.3% | H84: 0.1% | I84: 99.9% | J84: 55 | K84: 0 | L84: 55 | O84: 2012 | P84: WG | Q84: 104 | R84: 104 | S84: 91 | T84: 60.3% | U84: 0.0% | V84: 100.0%
B85: 2013 | C85: WG | D85: 104 | E85: 104 | F85: 35 | G85: 3.5% | H85: 0.2% | I85: 99.8% | J85: 1 | K85: 0 | L85: 1 | O85: 2013 | P85: WG | Q85: 104 | R85: 104 | S85: 35 | T85: 3.5% | U85: 0.0% | V85: 100.0%
B86: 2014 | C86: WG | D86: 92 | E86: 92 | F86: 76 | G86: 122.0% | H86: 49.2% | I86: 50.8% | J86: 93 | K86: 46 | L86: 47 | O86: 2014 | P86: WG | Q86: 92 | R86: 92 | S86: 76 | T86: 122.0% | U86: 55.5% | V86: 44.5%
B87: 2008-2012 | C87: WG | G87: 61.4% | H87: 0.0% | I87: 100.0% | O87: 2008-2012 | P87: WG | T87: 61.3% | U87: 0.0% | V87: 100.0%
B88: 2007-2012 | C88: WG | G88: 67.2% | H88: 0.1% | I88: 99.9% | O88: 2007-2012 | P88: WG | T88: 67.2% | U88: 0.0% | V88: 100.0%
B89: 2003-2012 | C89: WG | G89: n/a | H89: n/a | I89: n/a | O89: 2003-2012 | P89: WG | T89: n/a | U89: n/a | V89: n/a
B90: 2003 | C90: CG | D90: combined with rougheye | H90: 17.0% | I90: 83.0% | O90: 2003 | P90: CG | Q90: combined with rougheye | U90: 16.9% | V90: 83.1%
B91: 2004 | C91: CG | D91: combined with rougheye | H91: 16.8% | I91: 83.2% | O91: 2004 | P91: CG | Q91: combined with rougheye | U91: 13.6% | V91: 86.4%
B92: 2005 | C92: CG | D92: 1,010 | E92: 1,010 | F92: 391 | G92: 39.6% | H92: 12.4% | I92: 87.6% | J92: 155 | K92: 19 | L92: 135 | O92: 2005 | P92: CG | Q92: 1,010 | R92: 1,010 | S92: 391 | T92: 38.9% | U92: 11.0% | V92: 89.0%
B93: 2006 | C93: CG | D93: 989 | E93: 989 | F93: 403 | G93: 54.4% | H93: 26.4% | I93: 73.6% | J93: 219 | K93: 58 | L93: 161 | O93: 2006 | P93: CG | Q93: 989 | R93: 989 | S93: 403 | T93: 53.5% | U93: 25.3% | V93: 74.7%
B94: 2007 | C94: CG | D94: 353 | E94: 353 | F94: 210 | G94: 58.0% | H94: 44.0% | I94: 56.0% | J94: 122 | K94: 54 | L94: 68 | O94: 2007 | P94: CG | Q94: 353 | R94: 353 | S94: 210 | T94: 59.9% | U94: 45.8% | V94: 54.2%
B95: 2008 | C95: CG | D95: 315 | E95: 315 | F95: 235 | G95: 30.6% | H95: 64.6% | I95: 35.4% | J95: 72 | K95: 46 | L95: 25 | O95: 2008 | P95: CG | Q95: 315 | R95: 315 | S95: 235 | T95: 46.8% | U95: 50.8% | V95: 49.2%
B96: 2009 | C96: CG | D96: 315 | E96: 315 | F96: 203 | G96: 26.2% | H96: 8.1% | I96: 91.9% | J96: 53 | K96: 4 | L96: 49 | O96: 2009 | P96: CG | Q96: 315 | R96: 315 | S96: 203 | T96: 31.0% | U96: 11.1% | V96: 88.9%
B97: 2010 | C97: CG | D97: 325 | E97: 325 | F97: 142 | G97: 7.5% | H97: 58.4% | I97: 41.6% | J97: 11 | K97: 6 | L97: 4 | O97: 2010 | P97: CG | Q97: 325 | R97: 325 | S97: 142 | T97: 26.3% | U97: 28.0% | V97: 72.0%
B98: 2011 | C98: CG | D98: 325 | E98: 325 | F98: 240 | G98: 34.6% | H98: 10.2% | I98: 89.8% | J98: 83 | K98: 8 | L98: 75 | O98: 2011 | P98: CG | Q98: 325 | R98: 325 | S98: 240 | T98: 62.3% | U98: 11.4% | V98: 88.6%
B99: 2012 | C99: CG | D99: 452 | E99: 452 | F99: 309 | G99: 2.2% | H99: 64.8% | I99: 35.2% | J99: 7 | K99: 4 | L99: 2 | O99: 2012 | P99: CG | Q99: 452 | R99: 452 | S99: 309 | T99: 57.9% | U99: 3.7% | V99: 96.3%
B100: 2013 | C100: CG | D100: 452 | E100: 452 | F100: 431 | G100: 2.3% | H100: 21.7% | I100: 78.3% | J100: 10 | K100: 2 | L100: 8 | O100: 2013 | P100: CG | Q100: 452 | R100: 452 | S100: 431 | T100: 46.5% | U100: 4.7% | V100: 95.3%
B101: 2014 | C101: CG | D101: 397 | E101: 397 | F101: 324 | G101: 42.8% | H101: 49.8% | I101: 50.2% | J101: 139 | K101: 69 | L101: 70 | O101: 2014 | P101: CG | Q101: 397 | R101: 397 | S101: 324 | T101: 42.8% | U101: 49.8% | V101: 50.2%
B102: 2008-2012 | C102: CG | G102: 20.0% | H102: 0.0% | I102: 100.0% | O102: 2008-2012 | P102: CG | T102: 19.7% | U102: 30.0% | V102: 70.0%
B103: 2007-2012 | C103: CG | G103: 25.9% | H103: 0.1% | I103: 99.9% | O103: 2007-2012 | P103: CG | T103: 25.7% | U103: 34.9% | V103: 65.1%
B104: 2003-2012 | C104: CG | G104: n/a | H104: n/a | I104: n/a | O104: 2003-2012 | P104: CG | T104: n/a | U104: n/a | V104: n/a
B107: Thornyhead Rockfish: retained catch in all target fisheries- includes fish used to produce fish meal | O107: Thornyhead Rockfish: retained catch in all target fisheries- excludes fish used to produce fish meal
C108: Allocation Area | F108: Total | G108: Retained Catch % | J108: Retained Catch (mt) | P108: Allocation Area | S108: Total | T108: Retained Catch %
B109: Year | D109: ABC | E109: TAC | F109: Catch | G109: Trawl | H109: Trawl CV | I109: Trawl CP | J109: Trawl | K109: Trawl CV | L109: Trawl CP | O109: Year | Q109: ABC | R109: TAC | S109: Catch | T109: Trawl | U109: Trawl CV | V109: Trawl CP
B110: 2003 | C110: WG | D110: 360 | E110: 360 | F110: 317 | G110: 43.5% | H110: 0.0% | I110: 100.0% | J110: 138 | K110: 0 | L110: 138 | O110: 2003 | P110: WG | Q110: 360 | R110: 360 | S110: 317 | T110: 43.5% | U110: 0.0% | V110: 100.0%
B111: 2004 | C111: WG | D111: 410 | E111: 410 | F111: 276 | G111: 50.7% | H111: 0.0% | I111: 100.0% | J111: 140 | K111: 0 | L111: 140 | O111: 2004 | P111: WG | Q111: 410 | R111: 410 | S111: 276 | T111: 50.7% | U111: 0.0% | V111: 100.0%
B112: 2005 | C112: WG | D112: 410 | E112: 410 | F112: 190 | G112: 42.5% | H112: 0.4% | I112: 99.6% | J112: 81 | K112: 0 | L112: 80 | O112: 2005 | P112: WG | Q112: 410 | R112: 410 | S112: 190 | T112: 42.4% | U112: 0.1% | V112: 99.9%
B113: 2006 | C113: WG | D113: 513 | E113: 513 | F113: 197 | G113: 29.5% | H113: 0.4% | I113: 99.6% | J113: 58 | K113: 0 | L113: 58 | O113: 2006 | P113: WG | Q113: 513 | R113: 513 | S113: 197 | T113: 29.4% | U113: 0.3% | V113: 99.7%
B114: 2007 | C114: WG | D114: 513 | E114: 513 | F114: 347 | G114: 64.2% | H114: 0.1% | I114: 99.9% | J114: 223 | K114: 0 | L114: 223 | O114: 2007 | P114: WG | Q114: 513 | R114: 513 | S114: 347 | T114: 64.2% | U114: 0.0% | V114: 100.0%
B115: 2008 | C115: WG | D115: 267 | E115: 267 | F115: 273 | G115: 61.8% | H115: 0.3% | I115: 99.7% | J115: 169 | K115: 1 | L115: 168 | O115: 2008 | P115: WG | Q115: 267 | R115: 267 | S115: 273 | T115: 61.8% | U115: 0.3% | V115: 99.7%
B116: 2009 | C116: WG | D116: 267 | E116: 267 | F116: 235 | G116: 53.2% | H116: 0.0% | I116: 100.0% | J116: 125 | K116: 0 | L116: 125 | O116: 2009 | P116: WG | Q116: 267 | R116: 267 | S116: 235 | T116: 53.2% | U116: 0.0% | V116: 100.0%
B117: 2010 | C117: WG | D117: 425 | E117: 425 | F117: 140 | G117: 16.9% | H117: 0.0% | I117: 100.0% | J117: 24 | K117: 0 | L117: 24 | O117: 2010 | P117: WG | Q117: 425 | R117: 425 | S117: 140 | T117: 16.9% | U117: 0.0% | V117: 100.0%
B118: 2011 | C118: WG | D118: 425 | E118: 425 | F118: 159 | G118: 36.5% | H118: 0.0% | I118: 100.0% | J118: 58 | K118: 0 | L118: 58 | O118: 2011 | P118: WG | Q118: 425 | R118: 425 | S118: 159 | T118: 36.5% | U118: 0.0% | V118: 100.0%
B119: 2012 | C119: WG | D119: 150 | E119: 150 | F119: 186 | G119: 21.0% | H119: 0.0% | I119: 100.0% | J119: 39 | K119: 0 | L119: 39 | O119: 2012 | P119: WG | Q119: 150 | R119: 150 | S119: 186 | T119: 21.0% | U119: 0.0% | V119: 100.0%
B120: 2013 | C120: WG | D120: 150 | E120: 150 | F120: 302 | G120: 2.6% | H120: 0.3% | I120: 99.7% | J120: 8 | K120: 0 | L120: 8 | O120: 2013 | P120: WG | Q120: 150 | R120: 150 | S120: 302 | T120: 2.6% | U120: 0.0% | V120: 100.0%
B121: 2014 | C121: WG | D121: 235 | E121: 235 | F121: 244 | G121: 68.2% | H121: 46.6% | I121: 53.4% | J121: 166 | K121: 78 | L121: 89 | O121: 2014 | P121: WG | Q121: 235 | R121: 235 | S121: 244 | T121: 68.2% | U121: 46.6% | V121: 53.4%
B122: 2008-2012 | C122: WG | G122: 41.7% | H122: 0.1% | I122: 99.9% | O122: 2008-2012 | P122: WG | T122: 41.7% | U122: 0.1% | V122: 99.9%
B123: 2007-2012 | C123: WG | G123: 47.6% | H123: 0.1% | I123: 99.9% | O123: 2007-2012 | P123: WG | T123: 47.6% | U123: 0.1% | V123: 99.9%
B124: 2003-2012 | C124: WG | G124: 45.4% | H124: 0.1% | I124: 99.9% | O124: 2003-2012 | P124: WG | T124: 45.4% | U124: 0.1% | V124: 99.9%
B125: 2003 | C125: CG | D125: 840 | E125: 840 | F125: 739 | G125: 74.2% | H125: 16.8% | I125: 83.2% | J125: 549 | K125: 92 | L125: 456 | O125: 2003 | P125: CG | Q125: 840 | R125: 840 | S125: 739 | T125: 72.6% | U125: 14.9% | V125: 85.1%
B126: 2004 | C126: CG | D126: 1,010 | E126: 1,010 | F126: 410 | G126: 60.4% | H126: 20.9% | I126: 79.1% | J126: 248 | K126: 52 | L126: 196 | O126: 2004 | P126: CG | Q126: 1,010 | R126: 1,010 | S126: 410 | T126: 59.6% | U126: 19.7% | V126: 80.3%
B127: 2005 | C127: CG | D127: 1,010 | E127: 1,010 | F127: 391 | G127: 59.5% | H127: 18.7% | I127: 81.3% | J127: 233 | K127: 44 | L127: 189 | O127: 2005 | P127: CG | Q127: 1,010 | R127: 1,010 | S127: 391 | T127: 59.3% | U127: 18.5% | V127: 81.5%
B128: 2006 | C128: CG | D128: 989 | E128: 989 | F128: 403 | G128: 54.7% | H128: 20.2% | I128: 79.8% | J128: 220 | K128: 44 | L128: 176 | O128: 2006 | P128: CG | Q128: 989 | R128: 989 | S128: 403 | T128: 54.3% | U128: 19.7% | V128: 80.3%
B129: 2007 | C129: CG | D129: 989 | E129: 989 | F129: 266 | G129: 46.0% | H129: 40.4% | I129: 59.6% | J129: 122 | K129: 49 | L129: 73 | O129: 2007 | P129: CG | Q129: 989 | R129: 989 | S129: 266 | T129: 45.5% | U129: 39.7% | V129: 60.3%
B130: 2008 | C130: CG | D130: 860 | E130: 860 | F130: 306 | G130: 46.4% | H130: 41.3% | I130: 58.7% | J130: 142 | K130: 59 | L130: 83 | O130: 2008 | P130: CG | Q130: 860 | R130: 860 | S130: 306 | T130: 44.4% | U130: 38.7% | V130: 61.3%
B131: 2009 | C131: CG | D131: 860 | E131: 860 | F131: 277 | G131: 41.4% | H131: 46.4% | I131: 53.6% | J131: 115 | K131: 53 | L131: 61 | O131: 2009 | P131: CG | Q131: 860 | R131: 860 | S131: 277 | T131: 39.9% | U131: 44.4% | V131: 55.6%
B132: 2010 | C132: CG | D132: 637 | E132: 637 | F132: 279 | G132: 46.8% | H132: 47.1% | I132: 52.9% | J132: 130 | K132: 61 | L132: 69 | O132: 2010 | P132: CG | Q132: 637 | R132: 637 | S132: 279 | T132: 46.2% | U132: 46.5% | V132: 53.5%
B133: 2011 | C133: CG | D133: 637 | E133: 637 | F133: 302 | G133: 46.4% | H133: 45.6% | I133: 54.4% | J133: 140 | K133: 64 | L133: 76 | O133: 2011 | P133: CG | Q133: 637 | R133: 637 | S133: 302 | T133: 45.9% | U133: 45.0% | V133: 55.0%
B134: 2012 | C134: CG | D134: 766 | E134: 766 | F134: 344 | G134: 26.2% | H134: 48.6% | I134: 51.4% | J134: 90 | K134: 44 | L134: 46 | O134: 2012 | P134: CG | Q134: 766 | R134: 766 | S134: 344 | T134: 26.0% | U134: 48.2% | V134: 51.8%
B135: 2013 | C135: CG | D135: 766 | E135: 766 | F135: 540 | G135: 34.2% | H135: 44.7% | I135: 55.3% | J135: 185 | K135: 83 | L135: 102 | O135: 2013 | P135: CG | Q135: 766 | R135: 766 | S135: 540 | T135: 33.6% | U135: 43.6% | V135: 56.4%
B136: 2014 | C136: CG | D136: 875 | E136: 875 | F136: 667 | G136: 33.3% | H136: 70.7% | I136: 29.3% | J136: 222 | K136: 157 | L136: 65 | O136: 2014 | P136: CG | Q136: 875 | R136: 875 | S136: 667 | T136: 32.9% | U136: 70.3% | V136: 29.7%
B137: 2008-2012 | C137: CG | G137: 18.3% | H137: 31.8% | I137: 68.2% | O137: 2008-2012 | P137: CG | T137: 18.0% | U137: 30.5% | V137: 69.5%
B138: 2007-2012 | C138: CG | G138: 19.8% | H138: 25.5% | I138: 74.5% | O138: 2007-2012 | P138: CG | T138: 19.5% | U138: 24.4% | V138: 75.6%
B139: 2003-2012 | C139: CG | G139: 43.0% | H139: 20.1% | I139: 79.9% | O139: 2003-2012 | P139: CG | T139: 42.4% | U139: 18.9% | V139: 81.1%

Sheet Longnose skates
B2: Longnose skates: retained catch in all target fisheries- includes fish used to produce fish meal | O2: Longnose skates: retained catch in all target fisheries- excludes fish used to produce fish meal
C3: Allocation Area | F3: Total | G3: Retained Catch % | J3: Retained Catch (mt) | P3: Allocation Area | S3: Total | T3: Retained Catch %
B4: Year | D4: ABC | E4: TAC | F4: Catch | G4: Trawl | H4: Trawl CV | I4: Trawl CP | J4: Trawl | K4: Trawl CV | L4: Trawl CP | O4: Year | Q4: ABC | R4: TAC | S4: Catch | T4: Trawl | U4: Trawl CV | V4: Trawl CP
B5: 2003 | C5: WG | D5: Gulf wide all skates | G5: n/a | H5: n/a | I5: n/a | O5: 2003 | P5: WG | Q5: Gulf wide all skates | T5: n/a | U5: n/a | V5: n/a
B6: 2004 | C6: WG | D6: Gulf wide all skates | G6: n/a | H6: n/a | I6: n/a | O6: 2004 | P6: WG | Q6: Gulf wide all skates | T6: n/a | U6: n/a | V6: n/a
B7: 2005 | C7: WG | D7: 66 | E7: 66 | F7: 37 | G7: 3.6% | H7: 0.0% | I7: 100.0% | J7: 1 | K7: 0 | L7: 1 | O7: 2005 | P7: WG | Q7: 66 | R7: 66 | S7: 37 | T7: 3.6% | U7: 0.0% | V7: 100.0%
B8: 2006 | C8: WG | D8: 65 | E8: 65 | F8: 57 | G8: 0.7% | H8: 0.0% | I8: 100.0% | J8: 0 | K8: 0 | L8: 0 | O8: 2006 | P8: WG | Q8: 65 | R8: 65 | S8: 57 | T8: 0.7% | U8: 0.0% | V8: 100.0%
B9: 2007 | C9: WG | D9: 65 | E9: 65 | F9: 76 | G9: 7.3% | H9: 10.9% | I9: 89.1% | J9: 6 | K9: 1 | L9: 5 | O9: 2007 | P9: WG | Q9: 65 | R9: 65 | S9: 76 | T9: 6.5% | U9: 0.0% | V9: 100.0%
B10: 2008 | C10: WG | D10: 78 | E10: 78 | F10: 34 | G10: 13.3% | H10: 4.8% | I10: 95.2% | J10: 5 | K10: 0 | L10: 4 | O10: 2008 | P10: WG | Q10: 78 | R10: 78 | S10: 34 | T10: 12.6% | U10: 0.0% | V10: 100.0%
B11: 2009 | C11: WG | D11: 78 | E11: 78 | F11: 78 | G11: 4.4% | H11: 3.3% | I11: 96.7% | J11: 3 | K11: 0 | L11: 3 | O11: 2009 | P11: WG | Q11: 78 | R11: 78 | S11: 78 | T11: 4.3% | U11: 0.0% | V11: 100.0%
B12: 2010 | C12: WG | D12: 81 | E12: 81 | F12: 104 | G12: 7.6% | H12: 5.8% | I12: 94.2% | J12: 8 | K12: 0 | L12: 7 | O12: 2010 | P12: WG | Q12: 81 | R12: 81 | S12: 104 | T12: 7.2% | U12: 0.0% | V12: 100.0%
B13: 2011 | C13: WG | D13: 81 | E13: 81 | F13: 62 | G13: 4.5% | H13: 2.1% | I13: 97.9% | J13: 3 | K13: 0 | L13: 3 | O13: 2011 | P13: WG | Q13: 81 | R13: 81 | S13: 62 | T13: 4.4% | U13: 0.0% | V13: 100.0%
B14: 2012 | C14: WG | D14: 70 | E14: 70 | F14: 35 | G14: 12.1% | H14: 4.1% | I14: 95.9% | J14: 4 | K14: 0 | L14: 4 | O14: 2012 | P14: WG | Q14: 70 | R14: 70 | S14: 35 | T14: 11.6% | U14: 0.0% | V14: 100.0%
B15: 2013 | C15: WG | D15: 70 | E15: 70 | F15: 90 | G15: 2.1% | H15: 1.3% | I15: 98.7% | J15: 2 | K15: 0 | L15: 2 | O15: 2013 | P15: WG | Q15: 70 | R15: 70 | S15: 90 | T15: 2.0% | U15: 0.0% | V15: 100.0%
B16: 2014 | C16: WG | D16: 107 | E16: 107 | F16: 60 | G16: 10.7% | H16: 43.0% | I16: 57.0% | J16: 6 | K16: 3 | L16: 4 | O16: 2014 | P16: WG | Q16: 107 | R16: 107 | S16: 60 | T16: 10.4% | U16: 41.2% | V16: 58.8%
B17: 2008-2012 | C17: WG | G17: 7.3% | H17: 4.5% | I17: 95.5% | O17: 2008-2012 | P17: WG | T17: 7.0% | U17: 0.0% | V17: 100.0%
B18: 2007-2012 | C18: WG | G18: 7.3% | H18: 5.7% | I18: 94.3% | O18: 2007-2012 | P18: WG | T18: 6.9% | U18: 0.0% | V18: 100.0%
B19: 2003-2012 | C19: WG | G19: n/a | H19: n/a | I19: n/a | O19: 2003-2012 | P19: WG | T19: n/a | U19: n/a | V19: n/a
B20: 2003 | C20: CG | D20: Gulf wide all skates | G20: n/a | H20: n/a | I20: n/a | O20: 2003 | P20: CG | Q20: Gulf wide all skates | T20: n/a | U20: n/a | V20: n/a
B21: 2004 | C21: CG | D21: Gulf wide all skates | G21: n/a | H21: n/a | I21: n/a | O21: 2004 | P21: CG | Q21: Gulf wide all skates | T21: n/a | U21: n/a | V21: n/a
B22: 2005 | C22: CG | D22: 1,972 | E22: 1,972 | F22: 993 | G22: 65.5% | H22: 92.7% | I22: 7.3% | J22: 650 | K22: 603 | L22: 47 | O22: 2005 | P22: CG | Q22: 1,972 | R22: 1,972 | S22: 993 | T22: 64.8% | U22: 92.6% | V22: 7.4%
B23: 2006 | C23: CG | D23: 1,969 | E23: 1,969 | F23: 682 | G23: 25.9% | H23: 79.5% | I23: 20.5% | J23: 177 | K23: 141 | L23: 36 | O23: 2006 | P23: CG | Q23: 1,969 | R23: 1,969 | S23: 682 | T23: 24.2% | U23: 78.1% | V23: 21.9%
B24: 2007 | C24: CG | D24: 1,969 | E24: 1,969 | F24: 982 | G24: 27.7% | H24: 88.5% | I24: 11.5% | J24: 272 | K24: 241 | L24: 31 | O24: 2007 | P24: CG | Q24: 1,969 | R24: 1,969 | S24: 982 | T24: 27.3% | U24: 88.3% | V24: 11.7%
B25: 2008 | C25: CG | D25: 2,041 | E25: 2,041 | F25: 965 | G25: 45.6% | H25: 77.6% | I25: 22.4% | J25: 440 | K25: 342 | L25: 99 | O25: 2008 | P25: CG | Q25: 2,041 | R25: 2,041 | S25: 965 | T25: 45.0% | U25: 77.3% | V25: 22.7%
B26: 2009 | C26: CG | D26: 2,041 | E26: 2,041 | F26: 1,065 | G26: 34.6% | H26: 75.5% | I26: 24.5% | J26: 368 | K26: 278 | L26: 90 | O26: 2009 | P26: CG | Q26: 2,041 | R26: 2,041 | S26: 1,065 | T26: 34.4% | U26: 75.4% | V26: 24.6%
B27: 2010 | C27: CG | D27: 2,009 | E27: 2,009 | F27: 848 | G27: 51.1% | H27: 82.4% | I27: 17.6% | J27: 433 | K27: 357 | L27: 76 | O27: 2010 | P27: CG | Q27: 2,009 | R27: 2,009 | S27: 848 | T27: 50.8% | U27: 82.3% | V27: 17.7%
B28: 2011 | C28: CG | D28: 2,009 | E28: 2,009 | F28: 852 | G28: 48.6% | H28: 73.8% | I28: 26.2% | J28: 414 | K28: 306 | L28: 108 | O28: 2011 | P28: CG | Q28: 2,009 | R28: 2,009 | S28: 852 | T28: 48.2% | U28: 73.6% | V28: 26.4%
B29: 2012 | C29: CG | D29: 1,879 | E29: 1,879 | F29: 783 | G29: 40.9% | H29: 62.9% | I29: 37.1% | J29: 320 | K29: 201 | L29: 119 | O29: 2012 | P29: CG | Q29: 1,879 | R29: 1,879 | S29: 783 | T29: 40.7% | U29: 62.8% | V29: 37.2%
B30: 2013 | C30: CG | D30: 1,879 | E30: 1,879 | F30: 1,258 | G30: 28.6% | H30: 82.0% | I30: 18.0% | J30: 359 | K30: 295 | L30: 65 | O30: 2013 | P30: CG | Q30: 1,879 | R30: 1,879 | S30: 1,258 | T30: 28.2% | U30: 81.8% | V30: 18.2%
B31: 2014 | C31: CG | D31: 1,935 | E31: 1,935 | F31: 1,162 | G31: 56.4% | H31: 83.0% | I31: 17.0% | J31: 655 | K31: 543 | L31: 111 | O31: 2014 | P31: CG | Q31: 1,935 | R31: 1,935 | S31: 1,162 | T31: 56.0% | U31: 82.9% | V31: 17.1%
B32: 2008-2012 | C32: CG | G32: 43.8% | H32: 75.1% | I32: 24.9% | O32: 2008-2012 | P32: CG | T32: 43.5% | U32: 74.9% | V32: 25.1%
B33: 2007-2012 | C33: CG | G33: 40.9% | H33: 76.7% | I33: 23.3% | O33: 2007-2012 | P33: CG | T33: 40.6% | U33: 76.5% | V33: 23.5%
B34: 2003-2012 | C34: CG | G34: n/a | H34: n/a | I34: n/a | O34: 2003-2012 | P34: CG | T34: n/a | U34: n/a | V34: n/a

Sheet Halibut PSC annual
B1: Annual trawl halibut PSC mortality by area and sector
C2: CP | F2: CV | I2: Area Totals
B3: Year | C3: WG | D3: CG | E3: Total | F3: WG | G3: CG | H3: Total | I3: WG | J3: CG | K3: GOA | N3: Western Gulf halibut PSC mortality by fishery , sector and year (% of annual total)
C4: Metric tons of halibut mortality | N4: Sector | O4: Target | P4: 2003 | Q4: 2004 | R4: 2005 | S4: 2006 | T4: 2007 | U4: 2008 | V4: 2009 | W4: 2010 | X4: 2011 | Y4: 2012 | Z4: 2013 | AA4: 2014
B5: 2003 | C5: 255 | D5: 590 | E5: =SUM(C5:D5) -> 846 | F5: 49 | G5: 1,177 | H5: =SUM(F5:G5) -> 1,226 | I5: =C5+F5 -> 304 | J5: =D5+G5 -> 1,767 | K5: =H5+E5 -> 2,071 | N5: CP | O5: Arrowtooth Flounder | P5: 143 | Q5: 25 | R5: 44 | S5: 19 | T5: 109 | U5: 45 | V5: 16 | W5: 7 | X5: 16 | Y5: 25 | AA5: 42
B6: 2004 | C6: 176 | D6: 591 | E6: =SUM(C6:D6) -> 767 | F6: 61 | G6: 1,595 | H6: =SUM(F6:G6) -> 1,655 | I6: =C6+F6 -> 237 | J6: 2,186 | K6: 2,423 | O6: Atka Mackerel | Z6: 1
B7: 2005 | C7: 136 | D7: 426 | E7: 562 | F7: 25 | G7: 1,517 | H7: 1,542 | I7: 162 | J7: 1,943 | K7: 2,104 | O7: Deep Water Flatfish - GOA | AA7: 0
B8: 2006 | C8: 90 | D8: 467 | E8: 558 | F8: 62 | G8: 1,362 | H8: 1,424 | I8: 152 | J8: 1,830 | K8: 1,982 | O8: Flathead Sole | P8: 32 | Q8: 53 | R8: 32 | S8: 12 | T8: 16 | U8: 15 | V8: 11 | W8: 14 | X8: 15 | Y8: 6 | Z8: 18 | AA8: 0
B9: 2007 | C9: 205 | D9: 245 | E9: 450 | F9: 42 | G9: 1,444 | H9: 1,486 | I9: 247 | J9: 1,689 | K9: 1,936 | O9: Other Species | P9: 1
B10: 2008 | C10: 141 | D10: 327 | E10: 468 | F10: 102 | G10: 1,363 | H10: 1,466 | I10: 243 | J10: 1,690 | K10: 1,934 | O10: Pacific Cod | P10: 22 | Q10: 30 | R10: 0 | S10: 0 | T10: 10 | U10: 2 | V10: 10 | W10: 2 | X10: 9 | Y10: 11 | Z10: 0
B11: 2009 | C11: 99 | D11: 385 | E11: 484 | F11: 44 | G11: 1,295 | H11: 1,339 | I11: 142 | J11: 1,681 | K11: 1,823 | O11: Pollock | X11: 1 | Z11: 1 | AA11: 0
B12: 2010 | C12: 62 | D12: 419 | E12: 482 | F12: 9 | G12: 1,076 | H12: 1,086 | I12: 72 | J12: 1,496 | K12: 1,568 | O12: Rex Sole - GOA | P12: 21 | Q12: 36 | R12: 9 | S12: 7 | T12: 13 | U12: 2 | V12: 6 | W12: 2 | X12: 2 | Y12: 0 | Z12: 4 | AA12: 4
B13: 2011 | C13: 64 | D13: 422 | E13: 487 | F13: 43 | G13: 1,265 | H13: 1,308 | I13: 108 | J13: 1,687 | K13: 1,794 | O13: Rockfish | P13: 29 | Q13: 30 | R13: 39 | S13: 35 | T13: 56 | U13: 78 | V13: 54 | W13: 36 | X13: 22 | Y13: 34 | Z13: 24 | AA13: 29
B14: 2012 | C14: 77 | D14: 282 | E14: 359 | F14: 113 | G14: 1,143 | H14: 1,256 | I14: 190 | J14: 1,425 | K14: 1,615 | O14: Shallow Water Flatfish - GOA | P14: 7 | Q14: 2 | R14: 12 | S14: 17 | T14: 2 | V14: 2
B15: 2013 | C15: 47 | D15: 297 | E15: 344 | F15: 93 | G15: 729 | H15: 822 | I15: 140 | J15: 1,026 | K15: 1,166 | N15: CP Total | P15: 255 | Q15: 176 | R15: 136 | S15: 90 | T15: 205 | U15: 141 | V15: 99 | W15: 62 | X15: 64 | Y15: 77 | Z15: 47 | AA15: 75
B16: 2014 | C16: 75 | D16: 387 | E16: 462 | F16: 70 | G16: 782 | H16: 851 | I16: 145 | J16: 1,169 | K16: 1,314 | N16: CV | O16: Arrowtooth Flounder | R16: 0
C17: Percent of annual halibut mortality | O17: Flathead Sole | P17: 3 | Q17: 2
B18: 2003 | C18: =C5/$K5 -> 12.3% | D18: =D5/$K5 -> 28.5% | E18: 40.8% | F18: 2.3% | G18: 56.8% | H18: 59.2% | I18: =C18+F18 -> 14.7% | J18: =D18+G18 -> 85.3% | K18: 100.0% | O18: Other Species | P18: 0
B19: 2004 | C19: =C6/$K6 -> 7.3% | D19: 24.4% | E19: 31.7% | F19: 2.5% | G19: 65.8% | H19: 68.3% | I19: =C19+F19 -> 9.8% | J19: 90.2% | K19: 100.0% | O19: Pacific Cod | P19: 44 | Q19: 57 | R19: 25 | S19: 60 | T19: 41 | U19: 98 | V19: 43 | W19: 6 | X19: 37 | Y19: 112 | Z19: 93 | AA19: 69
B20: 2005 | C20: 6.5% | D20: 20.3% | E20: 26.7% | F20: 1.2% | G20: 72.1% | H20: 73.3% | I20: 7.7% | J20: 92.3% | K20: 100.0% | O20: Pollock | P20: 0 | Q20: 1 | R20: 0 | S20: 1 | T20: 1 | U20: 4 | V20: 0 | W20: 3 | X20: 6 | Y20: 1 | Z20: 1 | AA20: 1
B21: 2006 | C21: 4.6% | D21: 23.6% | E21: 28.1% | F21: 3.1% | G21: 68.7% | H21: 71.9% | I21: 7.7% | J21: 92.3% | K21: 100.0% | O21: Rockfish | T21: 0
B22: 2007 | C22: 10.6% | D22: 12.7% | E22: 23.2% | F22: 2.2% | G22: 74.6% | H22: 76.8% | I22: 12.8% | J22: 87.2% | K22: 100.0% | O22: Shallow Water Flatfish - GOA | P22: 2 | Q22: 1 | S22: 1
B23: 2008 | C23: 7.3% | D23: 16.9% | E23: 24.2% | F23: 5.3% | G23: 70.5% | H23: 75.8% | I23: 12.6% | J23: 87.4% | K23: 100.0% | N23: CV Total | P23: 49 | Q23: 61 | R23: 25 | S23: 62 | T23: 42 | U23: 102 | V23: 44 | W23: 9 | X23: 43 | Y23: 113 | Z23: 93 | AA23: 70
B24: 2009 | C24: 5.4% | D24: 21.1% | E24: 26.6% | F24: 2.4% | G24: 71.0% | H24: 73.4% | I24: 7.8% | J24: 92.2% | K24: 100.0% | N24: Total | P24: 304 | Q24: 237 | R24: 162 | S24: 152 | T24: 247 | U24: 243 | V24: 142 | W24: 72 | X24: 108 | Y24: 190 | Z24: 140 | AA24: 145
B25: 2010 | C25: 4.0% | D25: 26.8% | E25: 30.7% | F25: 0.6% | G25: 68.7% | H25: 69.3% | I25: 4.6% | J25: 95.4% | K25: 100.0%
B26: 2011 | C26: 3.6% | D26: 23.5% | E26: 27.1% | F26: 2.4% | G26: 70.5% | H26: 72.9% | I26: 6.0% | J26: 94.0% | K26: 100.0%
B27: 2012 | C27: 4.8% | D27: 17.5% | E27: 22.2% | F27: 7.0% | G27: 70.8% | H27: 77.8% | I27: 11.8% | J27: 88.2% | K27: 100.0% | N27: Western Gulf halibut PSC mortality by fishery , sector and year (mt)
B28: 2013 | C28: 4.0% | D28: 25.5% | E28: 29.5% | F28: 8.0% | G28: 62.5% | H28: 70.5% | I28: 12.0% | J28: 88.0% | K28: 100.0% | N28: Sector | O28: Target | P28: 2003 | Q28: 2004 | R28: 2005 | S28: 2006 | T28: 2007 | U28: 2008 | V28: 2009 | W28: 2010 | X28: 2011 | Y28: 2012 | Z28: 2013 | AA28: 2014
B29: 2014 | C29: 5.7% | D29: 29.5% | E29: 35.2% | F29: 5.3% | G29: 59.5% | H29: 64.8% | I29: 11.0% | J29: 89.0% | K29: 100.0% | N29: CP | O29: Arrowtooth Flounder | P29: 46.88% | Q29: 10.74% | R29: 27.48% | S29: 12.29% | T29: 44.00% | U29: 18.29% | V29: 11.02% | W29: 10.35% | X29: 15.10% | Y29: 12.98% | Z29: 0.00% | AA29: 29.18%
O30: Atka Mackerel | P30: 0.00% | Q30: 0.00% | R30: 0.00% | S30: 0.00% | T30: 0.00% | U30: 0.00% | V30: 0.00% | W30: 0.00% | X30: 0.00% | Y30: 0.00% | Z30: 0.36% | AA30: 0.00%
O31: Deep Water Flatfish - GOA | P31: 0.00% | Q31: 0.00% | R31: 0.00% | S31: 0.00% | T31: 0.00% | U31: 0.00% | V31: 0.00% | W31: 0.00% | X31: 0.00% | Y31: 0.00% | Z31: 0.00% | AA31: 0.00%
O32: Flathead Sole | P32: 10.67% | Q32: 22.50% | R32: 19.97% | S32: 7.95% | T32: 6.35% | U32: 6.29% | V32: 7.63% | W32: 20.01% | X32: 13.49% | Y32: 3.20% | Z32: 12.55% | AA32: 0.18%
O33: Other Species | P33: 0.35% | Q33: 0.00% | R33: 0.00% | S33: 0.00% | T33: 0.00% | U33: 0.00% | V33: 0.00% | W33: 0.00% | X33: 0.00% | Y33: 0.00% | Z33: 0.00% | AA33: 0.00%
O34: Pacific Cod | P34: 7.11% | Q34: 12.56% | R34: 0.16% | S34: 0.28% | T34: 3.91% | U34: 0.82% | V34: 6.92% | W34: 3.44% | X34: 8.40% | Y34: 6.02% | Z34: 0.04% | AA34: 0.00%
O35: Pollock | P35: 0.00% | Q35: 0.00% | R35: 0.00% | S35: 0.00% | T35: 0.00% | U35: 0.00% | V35: 0.00% | W35: 0.00% | X35: 0.76% | Y35: 0.00% | Z35: 0.73% | AA35: 0.02%
O36: Rex Sole - GOA | P36: 6.99% | Q36: 15.12% | R36: 5.47% | S36: 4.69% | T36: 5.06% | U36: 0.74% | V36: 4.12% | W36: 3.11% | X36: 1.63% | Y36: 0.16% | Z36: 2.65% | AA36: 2.76%
O37: Rockfish | P37: 9.66% | Q37: 12.73% | R37: 23.95% | S37: 23.27% | T37: 22.72% | U37: 31.84% | V37: 37.91% | W37: 50.20% | X37: 20.55% | Y37: 18.07% | Z37: 17.35% | AA37: 19.86%
O38: Shallow Water Flatfish - GOA | P38: 2.32% | Q38: 0.68% | R38: 7.23% | S38: 10.94% | T38: 0.94% | U38: 0.00% | V38: 1.68% | W38: 0.00% | X38: 0.00% | Y38: 0.00% | Z38: 0.00% | AA38: 0.00%
N39: CP Total | P39: 83.99% | Q39: 74.32% | R39: 84.25% | S39: 59.43% | T39: 82.98% | U39: 57.97% | V39: 69.28% | W39: 87.11% | X39: 59.93% | Y39: 40.44% | Z39: 33.68% | AA39: 52.00%
N40: CV | O40: Arrowtooth Flounder | P40: 0.00% | Q40: 0.00% | R40: 0.22% | S40: 0.00% | T40: 0.00% | U40: 0.00% | V40: 0.00% | W40: 0.00% | X40: 0.00% | Y40: 0.00% | Z40: 0.00% | AA40: 0.00%
O41: Flathead Sole | P41: 0.96% | Q41: 0.86% | R41: 0.00% | S41: 0.00% | T41: 0.00% | U41: 0.00% | V41: 0.00% | W41: 0.00% | X41: 0.00% | Y41: 0.00% | Z41: 0.00% | AA41: 0.00%
O42: Other Species | P42: 0.00% | Q42: 0.00% | R42: 0.00% | S42: 0.00% | T42: 0.00% | U42: 0.00% | V42: 0.00% | W42: 0.00% | X42: 0.00% | Y42: 0.00% | Z42: 0.00% | AA42: 0.00%
O43: Pacific Cod | P43: 14.45% | Q43: 24.21% | R43: 15.35% | S43: 39.64% | T43: 16.63% | U43: 40.31% | V43: 30.43% | W43: 8.71% | X43: 34.30% | Y43: 59.10% | Z43: 65.86% | AA43: 47.51%
O44: Pollock | P44: 0.06% | Q44: 0.30% | R44: 0.18% | S44: 0.47% | T44: 0.22% | U44: 1.71% | V44: 0.28% | W44: 4.18% | X44: 5.77% | Y44: 0.46% | Z44: 0.46% | AA44: 0.49%
O45: Rockfish | P45: 0.00% | Q45: 0.00% | R45: 0.00% | S45: 0.00% | T45: 0.17% | U45: 0.00% | V45: 0.00% | W45: 0.00% | X45: 0.00% | Y45: 0.00% | Z45: 0.00% | AA45: 0.00%
O46: Shallow Water Flatfish - GOA | P46: 0.53% | Q46: 0.31% | R46: 0.00% | S46: 0.46% | T46: 0.00% | U46: 0.00% | V46: 0.00% | W46: 0.00% | X46: 0.00% | Y46: 0.00% | Z46: 0.00% | AA46: 0.00%
N47: CV Total | P47: 16.01% | Q47: 25.68% | R47: 15.75% | S47: 40.57% | T47: 17.02% | U47: 42.03% | V47: 30.72% | W47: 12.89% | X47: 40.07% | Y47: 59.56% | Z47: 66.32% | AA47: 48.00%
N48: Total | P48: 100.00% | Q48: 100.00% | R48: 100.00% | S48: 100.00% | T48: 100.00% | U48: 100.00% | V48: 100.00% | W48: 100.00% | X48: 100.00% | Y48: 100.00% | Z48: 100.00% | AA48: 100.00%
N51: Central Gulf halibut PSC mortality by fishery , sector and year (mt)
N52: Sector | O52: Target | P52: 2003 | Q52: 2004 | R52: 2005 | S52: 2006 | T52: 2007 | U52: 2008 | V52: 2009 | W52: 2010 | X52: 2011 | Y52: 2012 | Z52: 2013 | AA52: 2014
N53: CP | O53: Arrowtooth Flounder | P53: 273 | Q53: 2 | R53: 180 | S53: 228 | T53: 99 | U53: 165 | V53: 39 | W53: 69 | X53: 258 | Y53: 183 | Z53: 110 | AA53: 329
O54: Atka Mackerel | Z54: 1
O55: Flathead Sole | P55: 5 | Q55: 4 | R55: 11 | S55: 3 | T55: 1 | U55: 25 | V55: 45 | W55: 104 | X55: 36 | Y55: 13 | Z55: 11
O56: Other Species | P56: 3 | Q56: 8 | R56: 0
O57: Pacific Cod | P57: 29 | Q57: 56 | R57: 33 | S57: 20 | U57: 4 | V57: 16 | Y57: 2
O58: Pollock | X58: 0 | Y58: 3 | Z58: 3 | AA58: 0
O59: Rex Sole - GOA | P59: 212 | Q59: 154 | R59: 77 | S59: 122 | T59: 120 | U59: 104 | V59: 249 | W59: 237 | X59: 102 | Y59: 67 | Z59: 132 | AA59: 42
O60: Rockfish | P60: 66 | Q60: 49 | R60: 67 | S60: 58 | T60: 26 | U60: 29 | V60: 19 | W60: 6 | X60: 3 | Z60: 3 | AA60: 1
O61: Sablefish | Q61: 1
O62: Shallow Water Flatfish - GOA | P62: 3 | Q62: 318 | R62: 58 | S62: 37 | V62: 17 | W62: 3 | X62: 23 | Y62: 15 | Z62: 37 | AA62: 15
N63: CP Total | P63: 590 | Q63: 591 | R63: 426 | S63: 467 | T63: 245 | U63: 327 | V63: 385 | W63: 419 | X63: 422 | Y63: 282 | Z63: 297 | AA63: 387
N64: CV | O64: Arrowtooth Flounder | P64: 13 | Q64: 286 | R64: 276 | S64: 366 | T64: 233 | U64: 309 | V64: 236 | W64: 335 | X64: 518 | Y64: 372 | Z64: 238 | AA64: 413
O65: Deep Water Flatfish - GOA | P65: 14 | Q65: 56 | T65: 0 | W65: 0
O66: Flathead Sole | P66: 80 | Q66: 5 | R66: 0 | S66: 8 | T66: 0 | U66: 18 | V66: 5 | W66: 43 | X66: 9 | Y66: 104 | Z66: 0 | AA66: 2
O67: Other Species | P67: 17 | Q67: 18 | U67: 0 | V67: 1 | Y67: 0
O68: Pacific Cod | P68: 367 | Q68: 795 | R68: 606 | S68: 266 | T68: 418 | U68: 475 | V68: 214 | W68: 229 | X68: 389 | Y68: 365 | Z68: 197 | AA68: 128
O69: Pollock | P69: 10 | Q69: 13 | R69: 2 | S69: 69 | T69: 81 | U69: 65 | V69: 37 | W69: 28 | X69: 107 | Y69: 48 | Z69: 152 | AA69: 82
O70: Rex Sole - GOA | P70: 3 | U70: 2 | V70: 19 | W70: 9 | X70: 6 | Y70: 10 | Z70: 17 | AA70: 9
O71: Rockfish | P71: 155 | Q71: 215 | R71: 139 | S71: 74 | U71: 0 | W71: 0 | X71: 0 | Y71: 0
O72: Sablefish | P72: 0 | S72: 0 | X72: 0 | Z72: 0
O73: Shallow Water Flatfish - GOA | P73: 518 | Q73: 206 | R73: 494 | S73: 580 | T73: 712 | U73: 495 | V73: 784 | W73: 432 | X73: 235 | Y73: 243 | Z73: 125 | AA73: 149
N74: CV Total | P74: 1,177 | Q74: 1,595 | R74: 1,517 | S74: 1,362 | T74: 1,444 | U74: 1,363 | V74: 1,295 | W74: 1,076 | X74: 1,265 | Y74: 1,143 | Z74: 729 | AA74: 782
N75: Grand Total | P75: 1,767 | Q75: 2,186 | R75: 1,943 | S75: 1,830 | T75: 1,689 | U75: 1,690 | V75: 1,681 | W75: 1,496 | X75: 1,687 | Y75: 1,425 | Z75: 1,026 | AA75: 1,169
N77: Central Gulf halibut PSC mortality by fishery , sector and year (% of annual total)
N78: Sector | O78: Target | P78: 2003 | Q78: 2004 | R78: 2005 | S78: 2006 | T78: 2007 | U78: 2008 | V78: 2009 | W78: 2010 | X78: 2011 | Y78: 2012 | Z78: 2013 | AA78: 2014
N79: CP | O79: Arrowtooth Flounder | P79: 15.42% | Q79: 0.10% | R79: 9.28% | S79: 12.46% | T79: 5.87% | U79: 9.76% | V79: 2.33% | W79: 4.60% | X79: 15.32% | Y79: 12.85% | Z79: 10.74% | AA79: 28.12%
O80: Atka Mackerel | P80: 0.00% | Q80: 0.00% | R80: 0.00% | S80: 0.00% | T80: 0.00% | U80: 0.00% | V80: 0.00% | W80: 0.00% | X80: 0.00% | Y80: 0.00% | Z80: 0.07% | AA80: 0.00%
O81: Flathead Sole | P81: 0.27% | Q81: 0.19% | R81: 0.55% | S81: 0.17% | T81: 0.03% | U81: 1.46% | V81: 2.67% | W81: 6.99% | X81: 2.14% | Y81: 0.89% | Z81: 1.03% | AA81: 0.00%
O82: Other Species | P82: 0.17% | Q82: 0.35% | R82: 0.00% | S82: 0.00% | T82: 0.00% | U82: 0.00% | V82: 0.00% | W82: 0.00% | X82: 0.00% | Y82: 0.00% | Z82: 0.00% | AA82: 0.00%
O83: Pacific Cod | P83: 1.66% | Q83: 2.55% | R83: 1.70% | S83: 1.08% | T83: 0.00% | U83: 0.21% | V83: 0.95% | W83: 0.00% | X83: 0.00% | Y83: 0.13% | Z83: 0.00% | AA83: 0.00%
O84: Pollock | P84: 0.00% | Q84: 0.00% | R84: 0.00% | S84: 0.00% | T84: 0.00% | U84: 0.00% | V84: 0.00% | W84: 0.00% | X84: 0.00% | Y84: 0.21% | Z84: 0.31% | AA84: 0.00%
O85: Rex Sole - GOA | P85: 11.99% | Q85: 7.03% | R85: 3.95% | S85: 6.67% | T85: 7.09% | U85: 6.18% | V85: 14.81% | W85: 15.85% | X85: 6.02% | Y85: 4.68% | Z85: 12.87% | AA85: 3.62%
O86: Rockfish | P86: 3.73% | Q86: 2.23% | R86: 3.46% | S86: 3.16% | T86: 1.53% | U86: 1.72% | V86: 1.14% | W86: 0.41% | X86: 0.20% | Y86: 0.00% | Z86: 0.28% | AA86: 0.06%
O87: Sablefish | P87: 0.00% | Q87: 0.04% | R87: 0.00% | S87: 0.00% | T87: 0.00% | U87: 0.00% | V87: 0.00% | W87: 0.00% | X87: 0.00% | Y87: 0.00% | Z87: 0.00% | AA87: 0.00%
O88: Shallow Water Flatfish - GOA | P88: 0.16% | Q88: 14.54% | R88: 2.99% | S88: 2.01% | T88: 0.00% | U88: 0.00% | V88: 1.03% | W88: 0.20% | X88: 1.35% | Y88: 1.06% | Z88: 3.63% | AA88: 1.31%
N89: CP Total | P89: 33.40% | Q89: 27.04% | R89: 21.94% | S89: 25.54% | T89: 14.51% | U89: 19.33% | V89: 22.93% | W89: 28.04% | X89: 25.03% | Y89: 19.81% | Z89: 28.93% | AA89: 33.11%
N90: CV | O90: Arrowtooth Flounder | P90: 0.76% | Q90: 13.06% | R90: 14.18% | S90: 20.00% | T90: 13.80% | U90: 18.30% | V90: 14.01% | W90: 22.41% | X90: 30.73% | Y90: 26.07% | Z90: 23.17% | AA90: 35.30%
O91: Deep Water Flatfish - GOA | P91: 0.78% | Q91: 2.58% | R91: 0.00% | S91: 0.00% | T91: 0.02% | U91: 0.00% | V91: 0.00% | W91: 0.00% | X91: 0.00% | Y91: 0.00% | Z91: 0.00% | AA91: 0.00%
O92: Flathead Sole | P92: 4.52% | Q92: 0.25% | R92: 0.01% | S92: 0.41% | T92: 0.02% | U92: 1.06% | V92: 0.30% | W92: 2.91% | X92: 0.54% | Y92: 7.33% | Z92: 0.00% | AA92: 0.18%
O93: Other Species | P93: 0.95% | Q93: 0.80% | R93: 0.00% | S93: 0.00% | T93: 0.00% | U93: 0.01% | V93: 0.07% | W93: 0.00% | X93: 0.00% | Y93: 0.01% | Z93: 0.00% | AA93: 0.00%
O94: Pacific Cod | P94: 20.77% | Q94: 36.39% | R94: 31.19% | S94: 14.51% | T94: 24.73% | U94: 28.09% | V94: 12.71% | W94: 15.29% | X94: 23.04% | Y94: 25.58% | Z94: 19.23% | AA94: 10.95%
O95: Pollock | P95: 0.55% | Q95: 0.60% | R95: 0.11% | S95: 3.76% | T95: 4.77% | U95: 3.83% | V95: 2.21% | W95: 1.89% | X95: 6.33% | Y95: 3.39% | Z95: 14.78% | AA95: 6.99%
O96: Rex Sole - GOA | P96: 0.19% | Q96: 0.00% | R96: 0.00% | S96: 0.00% | T96: 0.00% | U96: 0.09% | V96: 1.12% | W96: 0.58% | X96: 0.38% | Y96: 0.72% | Z96: 1.65% | AA96: 0.74%
O97: Rockfish | P97: 8.75% | Q97: 9.84% | R97: 7.14% | S97: 4.07% | T97: 0.00% | U97: 0.00% | V97: 0.00% | W97: 0.01% | X97: 0.01% | Y97: 0.00% | Z97: 0.00% | AA97: 0.00%
O98: Sablefish | P98: 0.00% | Q98: 0.00% | R98: 0.00% | S98: 0.00% | T98: 0.00% | U98: 0.00% | V98: 0.00% | W98: 0.00% | X98: 0.00% | Y98: 0.00% | Z98: 0.01% | AA98: 0.00%
O99: Shallow Water Flatfish - GOA | P99: 29.33% | Q99: 9.44% | R99: 25.43% | S99: 31.71% | T99: 42.15% | U99: 29.27% | V99: 46.64% | W99: 28.87% | X99: 13.95% | Y99: 17.08% | Z99: 12.21% | AA99: 12.73%
N100: CV Total | P100: 66.60% | Q100: 72.96% | R100: 78.06% | S100: 74.46% | T100: 85.49% | U100: 80.67% | V100: 77.07% | W100: 71.96% | X100: 74.97% | Y100: 80.19% | Z100: 71.07% | AA100: 66.89%
N101: Total | P101: 100.00% | Q101: 100.00% | R101: 100.00% | S101: 100.00% | T101: 100.00% | U101: 100.00% | V101: 100.00% | W101: 100.00% | X101: 100.00% | Y101: 100.00% | Z101: 100.00% | AA101: 100.00%

Sheet Halibut PSC alts with reduction
B2: Metric tons of halibut PSC allocted to C/Ps by fishery and area
C3: Status Quo | F3: 10% Halibut PSC Reduction | I3: 15% Halibut PSC Reduction
B4: Fishery | C4: WG | D4: CG&WY | E4: Total | F4: WG | G4: CG&WY | H4: Total | I4: WG | J4: CG&WY | K4: Total
C5: 2008-2012
B6: Flatfish | C6: 31.5 | D6: 313.3 | E6: 344.8 | F6: 28.3 | G6: 282.0 | H6: 310.3 | I6: 26.8 | J6: 266.3 | K6: 293.1
B7: Rockfish | C7: 33.2 | D7: 9.3 | E7: 42.5 | F7: 29.9 | G7: 8.4 | H7: 38.3 | I7: 28.3 | J7: 7.9 | K7: 36.2
B8: All other | C8: 5.7 | D8: 1.9 | E8: 10.0 | F8: 5.1 | G8: 1.7 | H8: 9.0 | I8: 4.8 | J8: 1.6 | K8: 8.5
B9: Total | C9: 70.4 | D9: 324.5 | E9: 397.4 | F9: 63.4 | G9: 292.1 | H9: 357.6 | I9: 59.9 | J9: 275.8 | K9: 337.8
C10: 2007-2012
B11: Flatfish | C11: 44.2 | D11: 290.6 | E11: 334.8 | F11: 39.8 | G11: 261.6 | H11: 301.4 | I11: 37.6 | J11: 247.0 | K11: 284.6
B12: Rockfish | C12: 32.9 | D12: 9.7 | E12: 42.6 | F12: 29.6 | G12: 8.7 | H12: 38.3 | I12: 28.0 | J12: 8.2 | K12: 36.2
B13: All other | C13: 6.0 | D13: 0.9 | E13: 9.6 | F13: 5.4 | G13: 0.8 | H13: 8.7 | I13: 5.1 | J13: 0.7 | K13: 8.2
B14: Total | C14: 83.2 | D14: 301.1 | E14: 387.1 | F14: 74.8 | G14: 271.0 | H14: 348.4 | I14: 70.7 | J14: 256.0 | K14: 329.0
C15: 2003-2012
B16: Flatfish | C16: 60.6 | D16: 293.2 | E16: 353.7 | F16: 54.5 | G16: 263.8 | H16: 318.3 | I16: 51.5 | J16: 249.2 | K16: 300.7
B17: Rockfish | C17: 29.0 | D17: 24.5 | E17: 53.4 | F17: 26.1 | G17: 22.0 | H17: 48.1 | I17: 24.6 | J17: 20.8 | K17: 45.4
B18: All other | C18: 7.4 | D18: 10.5 | E18: 20.7 | F18: 6.7 | G18: 9.4 | H18: 18.6 | I18: 6.3 | J18: 8.9 | K18: 17.6
B19: Total | C19: 96.9 | D19: 328.1 | E19: 427.8 | F19: 87.2 | G19: 295.3 | H19: 385.1 | I19: 82.4 | J19: 278.9 | K19: 363.7
B22: Metric tons of halibut PSC allocted to CVs by fishery and area
C23: Status Quo | F23: 10% Halibut PSC Reduction | I23: 15% Halibut PSC Reduction
B24: Fishery | C24: WG | D24: CG&WY | E24: Total | F24: WG | G24: CG&WY | H24: Total | I24: WG | J24: CG&WY | K24: Total
C25: 2008-2012
B26: Flatfish | C26: 0 | D26: 699.3 | E26: 699.3 | F26: 0 | G26: 629.4 | H26: 629.4 | I26: 0 | J26: 594.4 | K26: 594.4
B27: Pacific Cod | C27: 59.7 | D27: 286.3 | E27: 346.0 | F27: 53.7 | G27: 257.7 | H27: 311.4 | I27: 50.7 | J27: 243.4 | K27: 294.1
B28: Pollock | C28: 2.6 | D28: 68.2 | E28: 70.8 | F28: 2.3 | G28: 61.4 | H28: 63.7 | I28: 2.2 | J28: 58.0 | K28: 60.2
B29: Rockfish | C29: 0 | D29: 1.2 | E29: 1.2 | F29: 0 | G29: 1.1 | H29: 1.1 | I29: 0 | J29: 1.0 | K29: 1.0
B30: All other | C30: 0 | D30: 0.3 | E30: 0.3 | F30: 0 | G30: 0.2 | H30: 0.2 | I30: 0 | J30: 0.2 | K30: 0.2
B31: Total | C31: 62.3 | D31: 1,055.3 | E31: 1,117.6 | F31: 56.1 | G31: 949.8 | H31: 1,005.9 | I31: 53.0 | J31: 897.0 | K31: 950.0
C32: 2007-2012
B33: Flatfish | C33: 0 | D33: 707.2 | E33: 707.2 | F33: 0 | G33: 636.5 | H33: 636.5 | I33: 0 | J33: 601.2 | K33: 601.2
B34: Pacific Cod | C34: 55.2 | D34: 293.3 | E34: 348.5 | F34: 49.7 | G34: 263.9 | H34: 313.6 | I34: 46.9 | J34: 249.3 | K34: 296.2
B35: Pollock | C35: 2.3 | D35: 67.4 | E35: 69.7 | F35: 2.0 | G35: 60.7 | H35: 62.7 | I35: 1.9 | J35: 57.3 | K35: 59.2
B36: Rockfish | C36: 0.1 | D36: 1.5 | E36: 1.6 | F36: 0.0 | G36: 1.4 | H36: 1.4 | I36: 0.0 | J36: 1.3 | K36: 1.3
B37: All other | C37: 0 | D37: 0.2 | E37: 0.2 | F37: 0 | G37: 0.2 | H37: 0.2 | I37: 0 | J37: 0.2 | K37: 0.2
B38: Total | C38: 57.5 | D38: 1,069.6 | E38: 1,127.2 | F38: 51.8 | G38: 962.7 | H38: 1,014.4 | I38: 48.9 | J38: 909.2 | K38: 958.1
C39: 2003-2012
B40: Flatfish | C40: 0.6 | D40: 625.9 | E40: 626.5 | F40: 0.6 | G40: 563.3 | H40: 563.9 | I40: 0.5 | J40: 532.0 | K40: 532.5
B41: Pacific Cod | C41: 45.8 | D41: 320.6 | E41: 366.4 | F41: 41.2 | G41: 288.5 | H41: 329.7 | I41: 38.9 | J41: 272.5 | K41: 311.4
B42: Pollock | C42: 1.4 | D42: 45.9 | E42: 47.4 | F42: 1.3 | G42: 41.3 | H42: 42.6 | I42: 1.2 | J42: 39.0 | K42: 40.3
B43: Rockfish | C43: 0.0 | D43: 44.2 | E43: 44.2 | F43: 0.0 | G43: 39.8 | H43: 39.8 | I43: 0.0 | J43: 37.6 | K43: 37.6
B44: All other | C44: 0.0 | D44: 2.7 | E44: 2.7 | F44: 0.0 | G44: 2.4 | H44: 2.4 | I44: 0.0 | J44: 2.3 | K44: 2.3
B45: Total | C45: 47.9 | D45: 1,039.3 | E45: 1,087.2 | F45: 43.1 | G45: 935.4 | H45: 978.4 | I45: 40.7 | J45: 883.4 | K45: 924.1

Sheet Chinook PSC annual
B4: Central Gulf Chinook salmon PSC mortality by fishery , sector and year (mt)
B5: Sector | C5: Target | D5: 2003 | E5: 2004 | F5: 2005 | G5: 2006 | H5: 2007 | I5: 2008 | J5: 2009 | K5: 2010 | L5: 2011 | M5: 2012 | N5: 2013 | O5: 2014 | R5: Western Gulf Chinook salmon PSC mortality by fishery , sector and year (# of salmon)
B6: CP | C6: Arrowtooth Flounder | D6: 1,413 | E6: 0 | F6: 0 | G6: 57 | H6: 499 | I6: 2,193 | J6: 0 | K6: 427 | L6: 737 | M6: 126 | N6: 722 | O6: 376 | R6: Sector | S6: Target | T6: 2003 | U6: 2004 | V6: 2005 | W6: 2006 | X6: 2007 | Y6: 2008 | Z6: 2009 | AA6: 2010 | AB6: 2011 | AC6: 2012 | AD6: 2013 | AE6: 2014
C7: Atka Mackerel | N7: 0 | R7: CP | S7: Arrowtooth Flounder | T7: 1,878 | U7: 276 | V7: 1,364 | W7: 53 | X7: 46 | Y7: 125 | Z7: 0 | AA7: 840 | AB7: 1 | AC7: 0 | AE7: 646
C8: Flathead Sole | D8: 11 | E8: 2 | F8: 0 | G8: 0 | H8: 0 | I8: 0 | J8: 118 | K8: 348 | L8: 17 | M8: 0 | N8: 502 | S8: Atka Mackerel | AD8: 18
C9: Other Species | D9: 0 | F9: 0 | S9: Deep Water Flatfish - GOA | AE9: 0
C10: Pacific Cod | D10: 89 | E10: 44 | F10: 0 | G10: 20 | I10: 4 | J10: 0 | M10: 0 | S10: Flathead Sole | T10: 0 | U10: 1,333 | V10: 16 | W10: 54 | X10: 0 | Y10: 0 | Z10: 0 | AA10: 144 | AB10: 15 | AC10: 53 | AD10: 37 | AE10: 129
C11: Pollock | L11: 0 | M11: 0 | N11: 0 | O11: 0 | S11: Other Species
C12: Rex Sole - GOA | D12: 2,784 | E12: 371 | F12: 812 | G12: 1,402 | H12: 675 | I12: 0 | J12: 1,758 | K12: 2,273 | L12: 1,260 | M12: 885 | N12: 2,186 | O12: 289 | S12: Pacific Cod | T12: 72 | U12: 92 | V12: 0 | X12: 191 | Y12: 0 | Z12: 0 | AA12: 0 | AB12: 246 | AC12: 0 | AD12: 16
C13: Rockfish | D13: 0 | E13: 75 | F13: 352 | G13: 0 | H13: 1,506 | I13: 280 | J13: 299 | K13: 3 | L13: 145 | N13: 176 | O13: 0 | S13: Pollock | AB13: 0 | AD13: 50 | AE13: 0
C14: Sablefish | S14: Rex Sole - GOA | T14: 27 | U14: 127 | V14: 170 | W14: 43 | X14: 39 | Y14: 0 | Z14: 0 | AA14: 0 | AB14: 0 | AC14: 0 | AD14: 40 | AE14: 50
C15: Shallow Water Flatfish - GOA | D15: 0 | F15: 4 | G15: 0 | J15: 0 | K15: 55 | L15: 0 | M15: 0 | N15: 0 | O15: 654 | S15: Rockfish | T15: 0 | U15: 0 | V15: 0 | W15: 0 | X15: 19 | Y15: 49 | Z15: 214 | AA15: 292 | AB15: 225 | AC15: 385 | AD15: 0 | AE15: 551
B16: CP Total | D16: 4,297 | E16: 492 | F16: 1,168 | G16: 1,479 | H16: 2,680 | I16: 2,477 | J16: 2,175 | K16: 3,106 | L16: 2,159 | M16: 1,011 | N16: 3,587 | O16: 1,319 | S16: Shallow Water Flatfish - GOA | T16: 1 | U16: 2 | V16: 8 | W16: 0 | X16: 0 | Z16: 0
B17: CV | C17: Arrowtooth Flounder | D17: 58 | E17: 83 | F17: 377 | G17: 298 | H17: 964 | I17: 277 | J17: 6 | K17: 2,770 | L17: 2,256 | M17: 186 | N17: 3,322 | O17: 27 | R17: CP Total | T17: 1,978 | U17: 1,830 | V17: 1,558 | W17: 150 | X17: 295 | Y17: 174 | Z17: 214 | AA17: 1,277 | AB17: 487 | AC17: 438 | AD17: 161 | AE17: 1,376
C18: Deep Water Flatfish - GOA | D18: 0 | E18: 0 | H18: 0 | K18: 0 | R18: CV | S18: Arrowtooth Flounder | V18: 58
C19: Flathead Sole | D19: 588 | E19: 96 | F19: 0 | G19: 2 | H19: 0 | I19: 0 | K19: 5 | L19: 4 | M19: 0 | N19: 0 | O19: 1,035 | S19: Flathead Sole | U19: 15
C20: Other Species | D20: 0 | E20: 0 | I20: 0 | J20: 0 | M20: 0 | S20: Other Species
C21: Pacific Cod | D21: 2,863 | E21: 769 | F21: 41 | G21: 667 | H21: 420 | I21: 264 | J21: 101 | K21: 434 | L21: 1,008 | M21: 393 | N21: 355 | O21: 277 | S21: Pacific Cod | T21: 143 | U21: 3 | V21: 0 | W21: 201 | X21: 9 | Y21: 107 | Z21: 10 | AA21: 0 | AB21: 96 | AC21: 1 | AD21: 15 | AE21: 1
C22: Pollock | D22: 3,557 | E22: 10,655 | F22: 21,429 | G22: 10,908 | H22: 31,660 | I22: 8,063 | J22: 2,212 | K22: 12,308 | L22: 10,759 | M22: 10,838 | N22: 11,056 | O22: 7,463 | S22: Pollock | T22: 738 | U22: 2,327 | V22: 5,951 | W22: 4,521 | X22: 3,264 | Y22: 2,116 | Z22: 438 | AA22: 31,796 | AB22: 3,573 | AC22: 6,118 | AD22: 1,571 | AE22: 3,142
C23: Rex Sole - GOA | D23: 7 | J23: 153 | K23: 25 | L23: 94 | M23: 94 | N23: 364 | O23: 42 | S23: Rockfish | X23: 0
C24: Rockfish | D24: 800 | E24: 810 | F24: 98 | G24: 261 | I24: 1 | K24: 0 | L24: 3 | M24: 16 | S24: Shallow Water Flatfish - GOA | U24: 2
C25: Sablefish | D25: 0 | G25: 0 | L25: 0 | N25: 0 | R25: CV Total | T25: 881 | U25: 2,347 | V25: 6,009 | W25: 4,722 | X25: 3,273 | Y25: 2,223 | Z25: 448 | AA25: 31,796 | AB25: 3,669 | AC25: 6,119 | AD25: 1,586 | AE25: 3,143
C26: Shallow Water Flatfish - GOA | D26: 114 | E26: 494 | F26: 44 | G26: 0 | H26: 473 | I26: 207 | J26: 1,746 | K26: 927 | L26: 80 | M26: 237 | N26: 477 | O26: 49 | R26: Grand Total | T26: 2,860 | U26: 4,176 | V26: 7,567 | W26: 4,871 | X26: 3,568 | Y26: 2,397 | Z26: 662 | AA26: 33,073 | AB26: 4,156 | AC26: 6,557 | AD26: 1,747 | AE26: 4,519
B27: CV Total | D27: 7,987 | E27: 12,906 | F27: 21,989 | G27: 12,136 | H27: 33,517 | I27: 8,812 | J27: 4,219 | K27: 16,469 | L27: 14,204 | M27: 11,764 | N27: 15,575 | O27: 8,893
B28: Total | D28: 12,284 | E28: 13,398 | F28: 23,157 | G28: 13,615 | H28: 36,197 | I28: 11,289 | J28: 6,393 | K28: 19,574 | L28: 16,363 | M28: 12,775 | N28: 19,162 | O28: 10,212
B31: Central Gulf Chinook salmon PSC mortality by fishery , sector and year (% of annual total) | R31: Western Gulf Chinook salmon PSC mortality by fishery , sector and year (% of annual total)
B32: Sector | C32: Target | D32: 2003 | E32: 2004 | F32: 2005 | G32: 2006 | H32: 2007 | I32: 2008 | J32: 2009 | K32: 2010 | L32: 2011 | M32: 2012 | N32: 2013 | O32: 2014 | R32: Sector | S32: Target | T32: 2003 | U32: 2004 | V32: 2005 | W32: 2006 | X32: 2007 | Y32: 2008 | Z32: 2009 | AA32: 2010 | AB32: 2011 | AC32: 2012 | AD32: 2013 | AE32: 2014
B33: CP | C33: Arrowtooth Flounder | D33: 11.51% | E33: 0.00% | F33: 0.00% | G33: 0.42% | H33: 1.38% | I33: 19.43% | J33: 0.00% | K33: 2.18% | L33: 4.51% | M33: 0.98% | N33: 3.77% | O33: 3.68% | R33: CP | S33: Arrowtooth Flounder | T33: 65.66% | U33: 6.61% | V33: 18.02% | W33: 1.09% | X33: 1.29% | Y33: 5.20% | Z33: 0.00% | AA33: 2.54% | AB33: 0.02% | AC33: 0.00% | AD33: 0.00% | AE33: 14.30%
C34: Atka Mackerel | D34: 0.00% | E34: 0.00% | F34: 0.00% | G34: 0.00% | H34: 0.00% | I34: 0.00% | J34: 0.00% | K34: 0.00% | L34: 0.00% | M34: 0.00% | N34: 0.00% | O34: 0.00% | S34: Atka Mackerel | T34: 0.00% | U34: 0.00% | V34: 0.00% | W34: 0.00% | X34: 0.00% | Y34: 0.00% | Z34: 0.00% | AA34: 0.00% | AB34: 0.00% | AC34: 0.00% | AD34: 1.01% | AE34: 0.00%
C35: Flathead Sole | D35: 0.09% | E35: 0.02% | F35: 0.00% | G35: 0.00% | H35: 0.00% | I35: 0.00% | J35: 1.85% | K35: 1.78% | L35: 0.10% | M35: 0.00% | N35: 2.62% | O35: 0.00% | S35: Deep Water Flatfish - GOA | T35: 0.00% | U35: 0.00% | V35: 0.00% | W35: 0.00% | X35: 0.00% | Y35: 0.00% | Z35: 0.00% | AA35: 0.00% | AB35: 0.00% | AC35: 0.00% | AD35: 0.00% | AE35: 0.00%
C36: Other Species | D36: 0.00% | E36: 0.00% | F36: 0.00% | G36: 0.00% | H36: 0.00% | I36: 0.00% | J36: 0.00% | K36: 0.00% | L36: 0.00% | M36: 0.00% | N36: 0.00% | O36: 0.00% | S36: Flathead Sole | T36: 0.00% | U36: 31.92% | V36: 0.21% | W36: 1.11% | X36: 0.00% | Y36: 0.00% | Z36: 0.00% | AA36: 0.44% | AB36: 0.36% | AC36: 0.81% | AD36: 2.12% | AE36: 2.85%
C37: Pacific Cod | D37: 0.72% | E37: 0.33% | F37: 0.00% | G37: 0.15% | H37: 0.00% | I37: 0.04% | J37: 0.00% | K37: 0.00% | L37: 0.00% | M37: 0.00% | N37: 0.00% | O37: 0.00% | S37: Other Species | T37: 0.00% | U37: 0.00% | V37: 0.00% | W37: 0.00% | X37: 0.00% | Y37: 0.00% | Z37: 0.00% | AA37: 0.00% | AB37: 0.00% | AC37: 0.00% | AD37: 0.00% | AE37: 0.00%
C38: Pollock | D38: 0.00% | E38: 0.00% | F38: 0.00% | G38: 0.00% | H38: 0.00% | I38: 0.00% | J38: 0.00% | K38: 0.00% | L38: 0.00% | M38: 0.00% | N38: 0.00% | O38: 0.00% | S38: Pacific Cod | T38: 2.52% | U38: 2.20% | V38: 0.00% | W38: 0.00% | X38: 5.35% | Y38: 0.01% | Z38: 0.00% | AA38: 0.00% | AB38: 5.92% | AC38: 0.00% | AD38: 0.91% | AE38: 0.00%
C39: Rex Sole - GOA | D39: 22.66% | E39: 2.77% | F39: 3.51% | G39: 10.29% | H39: 1.87% | I39: 0.00% | J39: 27.49% | K39: 11.61% | L39: 7.70% | M39: 6.93% | N39: 11.41% | O39: 2.83% | S39: Pollock | T39: 0.00% | U39: 0.00% | V39: 0.00% | W39: 0.00% | X39: 0.00% | Y39: 0.00% | Z39: 0.00% | AA39: 0.00% | AB39: 0.00% | AC39: 0.00% | AD39: 2.86% | AE39: 0.00%
C40: Rockfish | D40: 0.00% | E40: 0.56% | F40: 1.52% | G40: 0.00% | H40: 4.16% | I40: 2.48% | J40: 4.68% | K40: 0.02% | L40: 0.89% | M40: 0.00% | N40: 0.92% | O40: 0.00% | S40: Rex Sole - GOA | T40: 0.96% | U40: 3.04% | V40: 2.25% | W40: 0.87% | X40: 1.09% | Y40: 0.00% | Z40: 0.00% | AA40: 0.00% | AB40: 0.00% | AC40: 0.00% | AD40: 2.29% | AE40: 1.11%
C41: Sablefish | D41: 0.00% | E41: 0.00% | F41: 0.00% | G41: 0.00% | H41: 0.00% | I41: 0.00% | J41: 0.00% | K41: 0.00% | L41: 0.00% | M41: 0.00% | N41: 0.00% | O41: 0.00% | S41: Rockfish | T41: 0.00% | U41: 0.00% | V41: 0.00% | W41: 0.00% | X41: 0.53% | Y41: 2.06% | Z41: 32.34% | AA41: 0.88% | AB41: 5.41% | AC41: 5.88% | AD41: 0.00% | AE41: 12.19%
C42: Shallow Water Flatfish - GOA | D42: 0.00% | E42: 0.00% | F42: 0.02% | G42: 0.00% | H42: 0.00% | I42: 0.00% | J42: 0.00% | K42: 0.28% | L42: 0.00% | M42: 0.00% | N42: 0.00% | O42: 6.41% | S42: Shallow Water Flatfish - GOA | T42: 0.05% | U42: 0.05% | V42: 0.11% | W42: 0.00% | X42: 0.01% | Y42: 0.00% | Z42: 0.00% | AA42: 0.00% | AB42: 0.00% | AC42: 0.00% | AD42: 0.00% | AE42: 0.00%
B43: CP Total | D43: 34.98% | E43: 3.67% | F43: 5.04% | G43: 10.86% | H43: 7.40% | I43: 21.94% | J43: 34.02% | K43: 15.87% | L43: 13.20% | M43: 7.92% | N43: 18.72% | O43: 12.92% | R43: CP Total | T43: 69.19% | U43: 43.81% | V43: 20.59% | W43: 3.08% | X43: 8.27% | Y43: 7.27% | Z43: 32.34% | AA43: 3.86% | AB43: 11.71% | AC43: 6.69% | AD43: 9.20% | AE43: 30.45%
B44: CV | C44: Arrowtooth Flounder | D44: 0.47% | E44: 0.62% | F44: 1.63% | G44: 2.19% | H44: 2.66% | I44: 2.46% | J44: 0.09% | K44: 14.15% | L44: 13.79% | M44: 1.45% | N44: 17.34% | O44: 0.26% | R44: CV | S44: Arrowtooth Flounder | T44: 0.00% | U44: 0.00% | V44: 0.76% | W44: 0.00% | X44: 0.00% | Y44: 0.00% | Z44: 0.00% | AA44: 0.00% | AB44: 0.00% | AC44: 0.00% | AD44: 0.00% | AE44: 0.00%
C45: Deep Water Flatfish - GOA | D45: 0.00% | E45: 0.00% | F45: 0.00% | G45: 0.00% | H45: 0.00% | I45: 0.00% | J45: 0.00% | K45: 0.00% | L45: 0.00% | M45: 0.00% | N45: 0.00% | O45: 0.00% | S45: Flathead Sole | T45: 0.00% | U45: 0.36% | V45: 0.00% | W45: 0.00% | X45: 0.00% | Y45: 0.00% | Z45: 0.00% | AA45: 0.00% | AB45: 0.00% | AC45: 0.00% | AD45: 0.00% | AE45: 0.00%
C46: Flathead Sole | D46: 4.79% | E46: 0.72% | F46: 0.00% | G46: 0.02% | H46: 0.00% | I46: 0.00% | J46: 0.00% | K46: 0.02% | L46: 0.03% | M46: 0.00% | N46: 0.00% | O46: 10.13% | S46: Other Species | T46: 0.00% | U46: 0.00% | V46: 0.00% | W46: 0.00% | X46: 0.00% | Y46: 0.00% | Z46: 0.00% | AA46: 0.00% | AB46: 0.00% | AC46: 0.00% | AD46: 0.00% | AE46: 0.00%
C47: Other Species | D47: 0.00% | E47: 0.00% | F47: 0.00% | G47: 0.00% | H47: 0.00% | I47: 0.00% | J47: 0.00% | K47: 0.00% | L47: 0.00% | M47: 0.00% | N47: 0.00% | O47: 0.00% | S47: Pacific Cod | T47: 5.01% | U47: 0.08% | V47: 0.00% | W47: 4.13% | X47: 0.26% | Y47: 4.48% | Z47: 1.47% | AA47: 0.00% | AB47: 2.30% | AC47: 0.01% | AD47: 0.89% | AE47: 0.01%
C48: Pacific Cod | D48: 23.31% | E48: 5.74% | F48: 0.18% | G48: 4.90% | H48: 1.16% | I48: 2.34% | J48: 1.58% | K48: 2.22% | L48: 6.16% | M48: 3.07% | N48: 1.85% | O48: 2.71% | S48: Pollock | T48: 25.81% | U48: 55.71% | V48: 78.65% | W48: 92.80% | X48: 91.47% | Y48: 88.25% | Z48: 66.19% | AA48: 96.14% | AB48: 85.99% | AC48: 93.30% | AD48: 89.92% | AE48: 69.53%
C49: Pollock | D49: 28.96% | E49: 79.53% | F49: 92.54% | G49: 80.12% | H49: 87.47% | I49: 71.42% | J49: 34.60% | K49: 62.88% | L49: 65.75% | M49: 84.84% | N49: 57.70% | O49: 73.08% | S49: Rockfish | T49: 0.00% | U49: 0.00% | V49: 0.00% | W49: 0.00% | X49: 0.01% | Y49: 0.00% | Z49: 0.00% | AA49: 0.00% | AB49: 0.00% | AC49: 0.00% | AD49: 0.00% | AE49: 0.00%
C50: Rex Sole - GOA | D50: 0.06% | E50: 0.00% | F50: 0.00% | G50: 0.00% | H50: 0.00% | I50: 0.00% | J50: 2.40% | K50: 0.13% | L50: 0.57% | M50: 0.73% | N50: 1.90% | O50: 0.41% | S50: Shallow Water Flatfish - GOA | T50: 0.00% | U50: 0.05% | V50: 0.00% | W50: 0.00% | X50: 0.00% | Y50: 0.00% | Z50: 0.00% | AA50: 0.00% | AB50: 0.00% | AC50: 0.00% | AD50: 0.00% | AE50: 0.00%
C51: Rockfish | D51: 6.52% | E51: 6.04% | F51: 0.42% | G51: 1.91% | H51: 0.00% | I51: 0.01% | J51: 0.00% | K51: 0.00% | L51: 0.02% | M51: 0.13% | N51: 0.00% | O51: 0.00% | R51: CV Total | T51: 30.81% | U51: 56.19% | V51: 79.41% | W51: 96.92% | X51: 91.73% | Y51: 92.73% | Z51: 67.66% | AA51: 96.14% | AB51: 88.29% | AC51: 93.31% | AD51: 90.80% | AE51: 69.55%
C52: Sablefish | D52: 0.00% | E52: 0.00% | F52: 0.00% | G52: 0.00% | H52: 0.00% | I52: 0.00% | J52: 0.00% | K52: 0.00% | L52: 0.00% | M52: 0.00% | N52: 0.00% | O52: 0.00% | R52: Total | T52: 100.00% | U52: 100.00% | V52: 100.00% | W52: 100.00% | X52: 100.00% | Y52: 100.00% | Z52: 100.00% | AA52: 100.00% | AB52: 100.00% | AC52: 100.00% | AD52: 100.00% | AE52: 100.00%
C53: Shallow Water Flatfish - GOA | D53: 0.93% | E53: 3.68% | F53: 0.19% | G53: 0.00% | H53: 1.31% | I53: 1.83% | J53: 27.31% | K53: 4.74% | L53: 0.49% | M53: 1.86% | N53: 2.49% | O53: 0.48%
B54: CV Total | D54: 65.02% | E54: 96.33% | F54: 94.96% | G54: 89.14% | H54: 92.60% | I54: 78.06% | J54: 65.98% | K54: 84.13% | L54: 86.80% | M54: 92.08% | N54: 81.28% | O54: 87.08%
B55: Total | D55: 100.00% | E55: 100.00% | F55: 100.00% | G55: 100.00% | H55: 100.00% | I55: 100.00% | J55: 100.00% | K55: 100.00% | L55: 100.00% | M55: 100.00% | N55: 100.00% | O55: 100.00%

Sheet Chinook PSC alts by fishery
B3: Chinook salmon PSC 2003-2012 | J3: Chinook salmon PSC 2007-2012 | R3: Chinook salmon PSC 2008-2012
D4: Area | L4: Area | T4: Area
B5: Sector | C5: Target | D5: WG | E5: CG | F5: WY | G5: GOA Total | J5: Sector | K5: Target | L5: WG | M5: CG | N5: WY | O5: Total | R5: Sector | S5: Target | T5: WG | U5: CG | V5: WY | W5: Total
B6: CP | C6: Arrowtooth Flounder | D6: 1.77% | E6: 2.38% | F6: 0.00% | G6: 4.15% | J6: CP | K6: Arrowtooth Flounder | L6: 0.57% | M6: 2.67% | N6: 0.00% | O6: 3.24% | R6: CP | S6: Arrowtooth Flounder | T6: 0.70% | U6: 3.05% | V6: 0.00% | W6: 3.75%
C7: Atka Mackerel | D7: 0.01% | E7: 0.00% | F7: 0.00% | G7: 0.01% | K7: Atka Mackerel | L7: 0.01% | M7: 0.00% | N7: 0.00% | O7: 0.01% | S7: Atka Mackerel | T7: 0.01% | U7: 0.00% | V7: 0.00% | W7: 0.01%
C8: Flathead Sole | D8: 0.64% | E8: 0.39% | F8: 0.00% | G8: 1.02% | K8: Flathead Sole | L8: 0.14% | M8: 0.56% | N8: 0.00% | O8: 0.70% | S8: Flathead Sole | T8: 0.18% | U8: 0.71% | V8: 0.00% | W8: 0.89%
C9: Other Species | D9: 0.00% | E9: 0.00% | F9: 0.00% | G9: 0.00% | K9: Other Species | L9: 0.00% | M9: 0.00% | N9: 0.00% | O9: 0.00% | S9: Other Species | T9: 0.00% | U9: 0.00% | V9: 0.00% | W9: 0.00%
C10: Pacific Cod | D10: 0.24% | E10: 0.06% | F10: 0.00% | G10: 0.30% | K10: Pacific Cod | L10: 0.26% | M10: 0.00% | N10: 0.00% | O10: 0.26% | S10: Pacific Cod | T10: 0.19% | U10: 0.00% | V10: 0.00% | W10: 0.19%
C11: Pollock | D11: 0.02% | E11: 0.00% | F11: 0.00% | G11: 0.02% | K11: Pollock | L11: 0.03% | M11: 0.00% | N11: 0.00% | O11: 0.03% | S11: Pollock | T11: 0.04% | U11: 0.00% | V11: 0.00% | W11: 0.04%
C12: Rex Sole - GOA | D12: 0.17% | E12: 5.56% | F12: 0.00% | G12: 5.73% | K12: Rex Sole - GOA | L12: 0.04% | M12: 5.13% | N12: 0.00% | O12: 5.17% | S12: Rex Sole - GOA | T12: 0.03% | U12: 6.07% | V12: 0.00% | W12: 6.10%
C13: Rockfish | D13: 0.42% | E13: 0.32% | F13: 0.28% | G13: 1.01% | K13: Rockfish | L13: 0.61% | M13: 0.22% | N13: 0.34% | O13: 1.17% | S13: Rockfish | T13: 0.77% | U13: 0.25% | V13: 0.43% | W13: 1.45%
C14: Sablefish | D14: 0.00% | E14: 0.00% | F14: 0.00% | G14: 0.00% | K14: Sablefish | L14: 0.00% | M14: 0.00% | N14: 0.00% | O14: 0.00% | S14: Sablefish | T14: 0.00% | U14: 0.00% | V14: 0.00% | W14: 0.00%
C15: Shallow Water Flatfish - GOA | D15: 0.00% | E15: 0.02% | F15: 0.00% | G15: 0.03% | K15: Shallow Water Flatfish - GOA | L15: 0.00% | M15: 0.03% | N15: 0.00% | O15: 0.03% | S15: Shallow Water Flatfish - GOA | T15: 0.00% | U15: 0.04% | V15: 0.00% | W15: 0.04%
B16: CP Total | D16: 3.26% | E16: 8.73% | F16: 0.28% | G16: 12.27% | J16: CP Total | L16: 1.67% | M16: 8.61% | N16: 0.34% | O16: 10.62% | R16: CP Total | T16: 1.92% | U16: 10.13% | V16: 0.43% | W16: 12.47%
B17: CV | C17: Arrowtooth Flounder | D17: 0.02% | E17: 4.09% | F17: 0.00% | G17: 4.12% | J17: CV | K17: Arrowtooth Flounder | L17: 0.00% | M17: 5.55% | N17: 0.00% | O17: 5.55% | R17: CV | S17: Arrowtooth Flounder | T17: 0.00% | U17: 6.40% | V17: 0.00% | W17: 6.40%
C18: Deep Water Flatfish - GOA | D18: 0.00% | E18: 0.00% | F18: 0.00% | G18: 0.00% | K18: Deep Water Flatfish - GOA | L18: 0.00% | M18: 0.00% | N18: 0.00% | O18: 0.00% | S18: Deep Water Flatfish - GOA | T18: 0.00% | U18: 0.00% | V18: 0.00% | W18: 0.00%
C19: Flathead Sole | D19: 0.01% | E19: 0.27% | F19: 0.00% | G19: 0.27% | K19: Flathead Sole | L19: 0.00% | M19: 0.00% | N19: 0.00% | O19: 0.00% | S19: Flathead Sole | T19: 0.00% | U19: 0.01% | V19: 0.00% | W19: 0.01%
C20: Other Species | D20: 0.00% | E20: 0.00% | F20: 0.00% | G20: 0.00% | K20: Other Species | L20: 0.00% | M20: 0.00% | N20: 0.00% | O20: 0.00% | S20: Other Species | T20: 0.00% | U20: 0.00% | V20: 0.00% | W20: 0.00%
C21: Pacific Cod | D21: 0.23% | E21: 2.82% | F21: 0.00% | G21: 3.05% | K21: Pacific Cod | L21: 0.14% | M21: 1.69% | N21: 0.00% | O21: 1.82% | S21: Pacific Cod | T21: 0.17% | U21: 1.85% | V21: 0.00% | W21: 2.02%
C22: Pollock | D22: 24.97% | E22: 51.59% | F22: 0.80% | G22: 77.36% | K22: Pollock | L22: 29.01% | M22: 49.39% | N22: 0.79% | O22: 79.19% | S22: Pollock | T22: 34.74% | U22: 40.14% | V22: 0.99% | W22: 75.87%
C23: Rex Sole - GOA | D23: 0.00% | E23: 0.28% | F23: 0.00% | G23: 0.28% | K23: Rex Sole - GOA | L23: 0.00% | M23: 0.41% | N23: 0.00% | O23: 0.41% | S23: Rex Sole - GOA | T23: 0.00% | U23: 0.53% | V23: 0.00% | W23: 0.53%
C24: Rockfish | D24: 0.00% | E24: 0.78% | F24: 0.01% | G24: 0.79% | K24: Rockfish | L24: 0.00% | M24: 0.02% | N24: 0.02% | O24: 0.04% | S24: Rockfish | T24: 0.00% | U24: 0.02% | V24: 0.02% | W24: 0.04%
C25: Sablefish | D25: 0.00% | E25: 0.00% | F25: 0.00% | G25: 0.00% | K25: Sablefish | L25: 0.00% | M25: 0.00% | N25: 0.00% | O25: 0.00% | S25: Sablefish | T25: 0.00% | U25: 0.00% | V25: 0.00% | W25: 0.00%
C26: Shallow Water Flatfish - GOA | D26: 0.00% | E26: 1.85% | F26: 0.00% | G26: 1.85% | K26: Shallow Water Flatfish - GOA | L26: 0.00% | M26: 2.35% | N26: 0.00% | O26: 2.35% | S26: Shallow Water Flatfish - GOA | T26: 0.00% | U26: 2.67% | V26: 0.00% | W26: 2.67%
B27: CV Total | D27: 25.23% | E27: 61.69% | F27: 0.81% | G27: 87.73% | J27: CV Total | L27: 29.15% | M27: 59.42% | N27: 0.81% | O27: 89.38% | R27: CV Total | T27: 34.91% | U27: 51.61% | V27: 1.01% | W27: 87.53%
C29: CV Non-pollock/ non-rockfish
D30: Percentage | G30: Number of Fish
C31: Years | D31: WG | E31: CG & WY | F31: GOA Total | G31: WG | H31: CG & WY | I31: GOA Total
C32: 2003-2012 | D32: =(D27-D22)/(G27-G22) -> 2.46% | E32: =1-D32 -> 97.54% | F32: 100% | G32: 66 | H32: 2,634 | I32: 2,700
C33: 2007-2012 | D33: =(L27-L22)/(O27-O22) -> 1.33% | E33: =1-D33 -> 98.67% | F33: 100% | G33: 36 | H33: 2,664 | I33: 2,700
C34: 2008-2012 | D34: =(T27-T22)/(W27-W22) -> 1.42% | E34: =1-D34 -> 98.58% | F34: 100% | G34: 38 | H34: 2,662 | I34: 2,700
C37: Pollock Fishery CVs
D38: CG | E38: WG | F38: GOA Total
C39: Status Quo | D39: 18,316 | E39: =F39-D39 -> 6,684 | F39: 25,000
C40: 25% Reduction | D40: =D39*0.75 -> 13,737 | E40: =E39*0.75 -> 5,013 | F40: 18,750
C43: CP sector
D44: Percentage | G44: Number of Fish
C45: Years | D45: WG | E45: CG & WY | F45: GOA Total | G45: WG | H45: CG & WY | I45: GOA Total
C46: 2003-2012 | D46: =D16/G16 -> 26.60% | E46: =1-D46 -> 73.40% | F46: 100% | G46: =I46*D46 -> 957 | H46: =I46*E46 -> 2,643 | I46: 3,600
C47: 2007-2012 | D47: =L16/O16 -> 15.70% | E47: =1-D47 -> 84.30% | F47: 100% | G47: =I47*D47 -> 565 | H47: =I47*E47 -> 3,035 | I47: 3,600
C48: 2008-2012 | D48: =T16/W16 -> 15.38% | E48: =1-D48 -> 84.62% | F48: 100% | G48: =I48*D48 -> 554 | H48: =I48*E48 -> 3,046 | I48: 3,600

Sheet PSC (hidden)
